Workbook

Sheet All Years
B1: All Years
R2: Enter the county name in column "S" to populate QSOs & Rank
N3: Enter County | P3: Rank
B4: County | C4: Stations | D4: CW Qs | E4: Phone Qs | F4: Total Qs | G4: % CW | H4: Fixed Qs | I4: Mobile Qs | J4: % Mobile Qs | K4: Rcvd Qs | L4: Rank | P4: =IFERROR(IF(N4="","",INDEX($L$6:$L$77,MATCH(N4,$B$6:$B$77,0))),"") ->  | R4: Sequence | S4: County | T4: CW Qs | U4: PH Qs | V4: Total Qs | W4: Rcvd Qs | X4: Rank
A6: Adams | B6: Taylor | C6: 14 | D6: 407 | E6: 148 | F6: 555 | G6: 0.733 | H6: 57 | I6: 498 | J6: 0.897 | K6: 906 | L6: 1 | R6: 1 | S6: Taylor | T6: =IF(S6="","",VLOOKUP($S6,$B$6:$L$77,3,FALSE)) -> 407 | U6: =IF(S6="","",VLOOKUP($S6,$B$6:$L$77,4,FALSE)) -> 148 | V6: =IF(S6="","",VLOOKUP($S6,$B$6:$L$77,5,FALSE)) -> 555 | W6: =IF(S6="","",VLOOKUP($S6,$B$6:$L$77,10,FALSE)) -> 906 | X6: =IF(S6="","",INDEX($L$6:$L$77,MATCH(S6,$B$6:$B$77,0))) -> 1
A7: Ashland | B7: Florence | C7: 16 | D7: 638 | E7: 209 | F7: 847 | G7: 0.753 | H7: 216 | I7: 631 | J7: 0.745 | K7: 933 | L7: 2 | R7: 2 | S7: Door | T7: =IF(S7="","",VLOOKUP($S7,$B$6:$L$77,3,FALSE)) -> 368 | U7: 490 | V7: 858 | W7: 1353 | X7: =IF(S7="","",INDEX($L$6:$L$77,MATCH(S7,$B$6:$B$77,0))) -> 3
A8: Barron | B8: Door | C8: 14 | D8: 368 | E8: 490 | F8: 858 | G8: 0.429 | H8: 541 | I8: 317 | J8: 0.369 | K8: 1353 | L8: 3 | R8: 3 | S8: Grant | T8: 5377 | U8: 4844 | V8: 10221 | W8: 7469 | X8: 66
A9: Bayfield | B9: Menominee | C9: 17 | D9: 584 | E9: 277 | F9: 861 | G9: 0.678 | H9: 230 | I9: 631 | J9: 0.733 | K9: 661 | L9: 4 | R9: 4
A10: Brown | B10: Langlade | C10: 21 | D10: 755 | E10: 116 | F10: 871 | G10: 0.867 | H10: 61 | I10: 810 | J10: 0.93 | K10: 716 | L10: 5 | R10: 5
A11: Buffalo | B11: Clark | C11: 21 | D11: 786 | E11: 115 | F11: 901 | G11: 0.872 | H11: 49 | I11: 852 | J11: 0.946 | K11: 750 | L11: 6 | R11: 6
A12: Burnett | B12: Burnett | C12: 24 | D12: 375 | E12: 537 | F12: 912 | G12: 0.411 | H12: 523 | I12: 389 | J12: 0.427 | K12: 2071 | L12: 7 | R12: 7
A13: Calumet | B13: Crawford | C13: 17 | D13: 384 | E13: 532 | F13: 916 | G13: 0.419 | H13: 525 | I13: 391 | J13: 0.427 | K13: 904 | L13: 8 | R13: 8
A14: Chippewa | B14: Ashland | C14: 16 | D14: 476 | E14: 508 | F14: 984 | G14: 0.484 | H14: 389 | I14: 595 | J14: 0.605 | K14: 852 | L14: 9 | R14: 9
A15: Clark | B15: Shawano | C15: 17 | D15: 749 | E15: 240 | F15: 989 | G15: 0.757 | H15: 0 | I15: 989 | J15: 1 | K15: 843 | L15: 10 | R15: 10
A16: Columbia | B16: Monroe | C16: 20 | D16: 821 | E16: 173 | F16: 994 | G16: 0.826 | H16: 145 | I16: 849 | J16: 0.854 | K16: 861 | L16: 11 | R16: 11
A17: Crawford | B17: Juneau | C17: 24 | D17: 954 | E17: 182 | F17: 1136 | G17: 0.84 | H17: 120 | I17: 1016 | J17: 0.894 | K17: 917 | L17: 12 | R17: 12
A18: Dane | B18: Iowa | C18: 15 | D18: 558 | E18: 604 | F18: 1162 | G18: 0.48 | H18: 615 | I18: 547 | J18: 0.471 | K18: 955 | L18: 13 | R18: 13
A19: Dodge | B19: Iron | C19: 12 | D19: 228 | E19: 948 | F19: 1176 | G19: 0.194 | H19: 885 | I19: 291 | J19: 0.247 | K19: 596 | L19: 14 | R19: 14
A20: Door | B20: Bayfield | C20: 19 | D20: 661 | E20: 566 | F20: 1227 | G20: 0.539 | H20: 682 | I20: 545 | J20: 0.444 | K20: 960 | L20: 15 | R20: 15
A21: Douglas | B21: Forest | C21: 19 | D21: 1031 | E21: 266 | F21: 1297 | G21: 0.795 | H21: 384 | I21: 913 | J21: 0.704 | K21: 1012 | L21: 16 | R21: 16
A22: Dunn | B22: Marinette | C22: 15 | D22: 788 | E22: 522 | F22: 1310 | G22: 0.602 | H22: 837 | I22: 473 | J22: 0.361 | K22: 1290 | L22: 17 | R22: 17
A23: Eau Claire | B23: Jackson | C23: 21 | D23: 1042 | E23: 309 | F23: 1351 | G23: 0.771 | H23: 299 | I23: 1052 | J23: 0.779 | K23: 1008 | L23: 18 | R23: 18
A24: Florence | B24: Sawyer | C24: 20 | D24: 831 | E24: 543 | F24: 1374 | G24: 0.605 | H24: 550 | I24: 824 | J24: 0.6 | K24: 1174 | L24: 19 | R24: 19
A25: Fond du Lac | B25: Pierce | C25: 28 | D25: 1065 | E25: 320 | F25: 1385 | G25: 0.769 | H25: 340 | I25: 1045 | J25: 0.755 | K25: 1379 | L25: 20 | R25: 20
A26: Forest | B26: Lincoln | C26: 29 | D26: 906 | E26: 495 | F26: 1401 | G26: 0.647 | H26: 404 | I26: 997 | J26: 0.712 | K26: 1303 | L26: 21 | R26: 21
A27: Grant | B27: Barron | C27: 24 | D27: 977 | E27: 428 | F27: 1405 | G27: 0.695 | H27: 383 | I27: 1022 | J27: 0.727 | K27: 1288 | L27: 22 | R27: 22
A28: Green | B28: Polk | C28: 29 | D28: 789 | E28: 647 | F28: 1436 | G28: 0.549 | H28: 628 | I28: 808 | J28: 0.563 | K28: 1395 | L28: 23 | R28: 23
A29: Green Lake | B29: Adams | C29: 26 | D29: 800 | E29: 707 | F29: 1507 | G29: 0.531 | H29: 696 | I29: 811 | J29: 0.538 | K29: 1124 | L29: 24 | R29: 24
A30: Iowa | B30: Pepin | C30: 28 | D30: 971 | E30: 570 | F30: 1541 | G30: 0.63 | H30: 445 | I30: 1096 | J30: 0.711 | K30: 1214 | L30: 25 | R30: 25
A31: Iron | B31: Chippewa | C31: 27 | D31: 1042 | E31: 541 | F31: 1583 | G31: 0.658 | H31: 366 | I31: 1217 | J31: 0.769 | K31: 1569 | L31: 26 | R31: 26
A32: Jackson | B32: Rusk | C32: 22 | D32: 953 | E32: 649 | F32: 1602 | G32: 0.595 | H32: 654 | I32: 948 | J32: 0.592 | K32: 1183 | L32: 27 | R32: 27
A33: Jefferson | B33: Oneida | C33: 27 | D33: 721 | E33: 962 | F33: 1683 | G33: 0.428 | H33: 943 | I33: 740 | J33: 0.44 | K33: 1727 | L33: 28 | R33: 28
A34: Juneau | B34: Green | C34: 18 | D34: 585 | E34: 1118 | F34: 1703 | G34: 0.344 | H34: 1309 | I34: 394 | J34: 0.231 | K34: 1541 | L34: 29 | R34: 29
A35: Kenosha | B35: Vilas | C35: 23 | D35: 703 | E35: 1055 | F35: 1758 | G35: 0.4 | H35: 1207 | I35: 551 | J35: 0.313 | K35: 1282 | L35: 30 | R35: 30
A36: Kewaunee | B36: Kewaunee | C36: 23 | D36: 434 | E36: 1355 | F36: 1789 | G36: 0.243 | H36: 1281 | I36: 508 | J36: 0.284 | K36: 1819 | L36: 31
A37: La Crosse | B37: Wood | C37: 31 | D37: 1092 | E37: 837 | F37: 1929 | G37: 0.566 | H37: 1115 | I37: 814 | J37: 0.422 | K37: 1886 | L37: 32 | R37: Average need out of 72. A lower number is more needed overall: | X37: =(IFERROR(SUM(X6:X36)/COUNTIF(X6:X35,">0"),"")) -> 23.33333333
A38: Lafayette | B38: Trempealeau | C38: 26 | D38: 817 | E38: 1162 | F38: 1979 | G38: 0.413 | H38: 1137 | I38: 842 | J38: 0.425 | K38: 1764 | L38: 33
A39: Langlade | B39: Douglas | C39: 19 | D39: 1090 | E39: 930 | F39: 2020 | G39: 0.54 | H39: 1713 | I39: 307 | J39: 0.152 | K39: 1723 | L39: 34
A40: Lincoln | B40: Washburn | C40: 23 | D40: 915 | E40: 1302 | F40: 2217 | G40: 0.413 | H40: 1800 | I40: 417 | J40: 0.188 | K40: 1527 | L40: 35
A41: Manitowoc | B41: St Croix | C41: 37 | D41: 1656 | E41: 715 | F41: 2371 | G41: 0.698 | H41: 1309 | I41: 1062 | J41: 0.448 | K41: 2048 | L41: 36
A42: Marathon | B42: Buffalo | C42: 41 | D42: 949 | E42: 1467 | F42: 2416 | G42: 0.393 | H42: 1395 | I42: 1021 | J42: 0.423 | K42: 1989 | L42: 37
A43: Marinette | B43: Marquette | C43: 31 | D43: 1079 | E43: 1384 | F43: 2463 | G43: 0.438 | H43: 1440 | I43: 1023 | J43: 0.415 | K43: 2085 | L43: 38
A44: Marquette | B44: Dunn | C44: 36 | D44: 1806 | E44: 849 | F44: 2655 | G44: 0.68 | H44: 1341 | I44: 1314 | J44: 0.495 | K44: 2491 | L44: 39
A45: Menominee | B45: Manitowoc | C45: 34 | D45: 603 | E45: 2099 | F45: 2702 | G45: 0.223 | H45: 2038 | I45: 664 | J45: 0.246 | K45: 2561 | L45: 40
A46: Milwaukee | B46: Columbia | C46: 39 | D46: 1484 | E46: 1354 | F46: 2838 | G46: 0.523 | H46: 2135 | I46: 703 | J46: 0.248 | K46: 2601 | L46: 41
A47: Monroe | B47: Waushara | C47: 41 | D47: 1469 | E47: 1582 | F47: 3051 | G47: 0.481 | H47: 1817 | I47: 1234 | J47: 0.404 | K47: 2285 | L47: 42
A48: Oconto | B48: Oconto | C48: 27 | D48: 1935 | E48: 1222 | F48: 3157 | G48: 0.613 | H48: 2550 | I48: 607 | J48: 0.192 | K48: 2178 | L48: 43
A49: Oneida | B49: Walworth | C49: 26 | D49: 1173 | E49: 2143 | F49: 3316 | G49: 0.354 | H49: 2996 | I49: 320 | J49: 0.097 | K49: 2578 | L49: 44
A50: Outagamie | B50: Marathon | C50: 54 | D50: 1037 | E50: 2342 | F50: 3379 | G50: 0.307 | H50: 2158 | I50: 1221 | J50: 0.361 | K50: 3551 | L50: 45
A51: Ozaukee | B51: Green Lake | C51: 31 | D51: 880 | E51: 2634 | F51: 3514 | G51: 0.25 | H51: 2910 | I51: 604 | J51: 0.172 | K51: 2404 | L51: 46
A52: Pepin | B52: Lafayette | C52: 31 | D52: 2495 | E52: 1092 | F52: 3587 | G52: 0.696 | H52: 3316 | I52: 271 | J52: 0.076 | K52: 2415 | L52: 47
A53: Pierce | B53: Richland | C53: 14 | D53: 1930 | E53: 1663 | F53: 3593 | G53: 0.537 | H53: 3226 | I53: 367 | J53: 0.102 | K53: 2254 | L53: 48
A54: Polk | B54: Jefferson | C54: 35 | D54: 2630 | E54: 1002 | F54: 3632 | G54: 0.724 | H54: 3175 | I54: 457 | J54: 0.126 | K54: 3449 | L54: 49
A55: Portage | B55: Calumet | C55: 47 | D55: 1267 | E55: 2376 | F55: 3643 | G55: 0.348 | H55: 3010 | I55: 633 | J55: 0.174 | K55: 2858 | L55: 50
A56: Price | B56: Racine | C56: 37 | D56: 868 | E56: 3101 | F56: 3969 | G56: 0.219 | H56: 3761 | I56: 208 | J56: 0.052 | K56: 2997 | L56: 51
A57: Racine | B57: Price | C57: 36 | D57: 2937 | E57: 2452 | F57: 5389 | G57: 0.545 | H57: 4697 | I57: 692 | J57: 0.128 | K57: 4374 | L57: 52
A58: Richland | B58: Waupaca | C58: 55 | D58: 2856 | E58: 2537 | F58: 5393 | G58: 0.53 | H58: 4488 | I58: 905 | J58: 0.168 | K58: 3935 | L58: 53
A59: Rock | B59: Vernon | C59: 36 | D59: 1559 | E59: 3960 | F59: 5519 | G59: 0.282 | H59: 4562 | I59: 957 | J59: 0.173 | K59: 3607 | L59: 54
A60: Rusk | B60: Ozaukee | C60: 54 | D60: 1230 | E60: 4655 | F60: 5885 | G60: 0.209 | H60: 5308 | I60: 577 | J60: 0.098 | K60: 3824 | L60: 55
A61: Sauk | B61: Dodge | C61: 55 | D61: 1608 | E61: 4310 | F61: 5918 | G61: 0.272 | H61: 5372 | I61: 546 | J61: 0.092 | K61: 4599 | L61: 56
A62: Sawyer | B62: Sauk | C62: 56 | D62: 2832 | E62: 3147 | F62: 5979 | G62: 0.474 | H62: 5395 | I62: 584 | J62: 0.098 | K62: 4854 | L62: 57
A63: Shawano | B63: Sheboygan | C63: 52 | D63: 1195 | E63: 5056 | F63: 6251 | G63: 0.191 | H63: 5780 | I63: 471 | J63: 0.075 | K63: 4710 | L63: 58
A64: Sheboygan | B64: Portage | C64: 56 | D64: 4144 | E64: 3430 | F64: 7574 | G64: 0.547 | H64: 6123 | I64: 1451 | J64: 0.192 | K64: 5634 | L64: 59
A65: St Croix | B65: Outagamie | C65: 101 | D65: 1799 | E65: 5992 | F65: 7791 | G65: 0.231 | H65: 6927 | I65: 864 | J65: 0.111 | K65: 6698 | L65: 60
A66: Taylor | B66: Washington | C66: 62 | D66: 3785 | E66: 4108 | F66: 7893 | G66: 0.48 | H66: 7525 | I66: 368 | J66: 0.047 | K66: 6247 | L66: 61
A67: Trempealeau | B67: La Crosse | C67: 48 | D67: 1789 | E67: 6340 | F67: 8129 | G67: 0.22 | H67: 7462 | I67: 667 | J67: 0.082 | K67: 5827 | L67: 62
A68: Vernon | B68: Rock | C68: 53 | D68: 2879 | E68: 5484 | F68: 8363 | G68: 0.344 | H68: 8009 | I68: 354 | J68: 0.042 | K68: 5904 | L68: 63
A69: Vilas | B69: Kenosha | C69: 30 | D69: 4318 | E69: 4537 | F69: 8855 | G69: 0.488 | H69: 8722 | I69: 133 | J69: 0.015 | K69: 5846 | L69: 64
A70: Walworth | B70: Brown | C70: 91 | D70: 1936 | E70: 8007 | F70: 9943 | G70: 0.195 | H70: 8881 | I70: 1062 | J70: 0.107 | K70: 7487 | L70: 65
A71: Washburn | B71: Grant | C71: 68 | D71: 5377 | E71: 4844 | F71: 10221 | G71: 0.526 | H71: 9867 | I71: 354 | J71: 0.035 | K71: 7469 | L71: 66
A72: Washington | B72: Eau Claire | C72: 44 | D72: 5610 | E72: 8019 | F72: 13629 | G72: 0.412 | H72: 12518 | I72: 1111 | J72: 0.082 | K72: 9261 | L72: 67
A73: Waukesha | B73: Winnebago | C73: 82 | D73: 5707 | E73: 8241 | F73: 13948 | G73: 0.409 | H73: 13072 | I73: 876 | J73: 0.063 | K73: 10036 | L73: 68
A74: Waupaca | B74: Fond du Lac | C74: 126 | D74: 1287 | E74: 15307 | F74: 16594 | G74: 0.078 | H74: 15991 | I74: 603 | J74: 0.036 | K74: 10366 | L74: 69
A75: Waushara | B75: Waukesha | C75: 153 | D75: 4080 | E75: 12603 | F75: 16683 | G75: 0.245 | H75: 16335 | I75: 348 | J75: 0.021 | K75: 12799 | L75: 70
A76: Winnebago | B76: Dane | C76: 140 | D76: 8584 | E76: 14440 | F76: 23024 | G76: 0.373 | H76: 22557 | I76: 467 | J76: 0.02 | K76: 16282 | L76: 71
A77: Wood | B77: Milwaukee | C77: 179 | D77: 7354 | E77: 16023 | F77: 23377 | G77: 0.315 | H77: 23003 | I77: 374 | J77: 0.016 | K77: 18668 | L77: 72
B79: All Years: | C79: =SUM(C6:C78) -> 2883 | D79: =SUM(D6:D78) -> 122423 | E79: =SUM(E6:E78) -> 190880 | F79: =SUM(F6:F78) -> 313303 | G79: =D79/F79 -> 0.39074953 | H79: =SUM(H6:H78) -> 262700 | I79: =SUM(I6:I78) -> 50603 | J79: =I79/F79 -> 0.1615145722 | K79: =SUM(K6:K78) -> 241657

Sheet 2023
B1: 2023
R2: Enter the county name in column "S" to populate QSOs & Rank
N3: Enter County | P3: Rank
B4: County | C4: Stations | D4: CW Qs | E4: Phone Qs | F4: Total Qs | G4: % CW | H4: Fixed Qs | I4: Mobile Qs | J4: % Mobile Qs | K4: Rcvd Qs | L4: Rank | P4: =IFERROR(IF(N4="","",INDEX($L$6:$L$77,MATCH(N4,$B$6:$B$77,0))),"") ->  | R4: Sequence | S4: County | T4: CW Qs | U4: PH Qs | V4: Total Qs | W4: Rcvd Qs | X4: Rank
A6: Adams | B6: Adams | C6: 3 | D6: 139 | E6: 292 | F6: 431 | G6: 0.323 | H6: 291 | I6: 140 | J6: 0.325 | K6: 329 | L6: 1 | R6: 1 | T6: =IF(S6="","",VLOOKUP($S6,$B$6:$L$77,3,FALSE)) ->  | U6: =IF(S6="","",VLOOKUP($S6,$B$6:$L$77,4,FALSE)) ->  | V6: =IF(S6="","",VLOOKUP($S6,$B$6:$L$77,5,FALSE)) ->  | W6: =IF(S6="","",VLOOKUP($S6,$B$6:$L$77,10,FALSE)) ->  | X6: =IF(S6="","",INDEX($L$6:$L$77,MATCH(S6,$B$6:$B$77,0))) -> 
A7: Ashland | B7: Ashland | C7: 1 | D7: 0 | E7: 83 | F7: 83 | G7: 0 | H7: 83 | I7: 0 | J7: 0 | K7: 81 | L7: 2 | R7: 2 | T7: =IF(S7="","",VLOOKUP($S7,$B$6:$L$77,3,FALSE)) ->  | X7: =IF(S7="","",INDEX($L$6:$L$77,MATCH(S7,$B$6:$B$77,0))) -> 
A8: Barron | B8: Barron | C8: 1 | D8: 37 | E8: 0 | F8: 37 | G8: 1 | H8: 0 | I8: 37 | J8: 1 | K8: 26 | L8: 3 | R8: 3
A9: Bayfield | B9: Bayfield | C9: 0 | D9: 0 | E9: 0 | F9: 0 | G9: 0 | H9: 0 | I9: 0 | J9: 0 | K9: 0 | L9: 4 | R9: 4
A10: Brown | B10: Brown | C10: 11 | D10: 44 | E10: 647 | F10: 691 | G10: 0.064 | H10: 559 | I10: 132 | J10: 0.191 | K10: 699 | L10: 5 | R10: 5
A11: Buffalo | B11: Buffalo | C11: 4 | D11: 36 | E11: 367 | F11: 403 | G11: 0.089 | H11: 367 | I11: 36 | J11: 0.089 | K11: 312 | L11: 6 | R11: 6
A12: Burnett | B12: Burnett | C12: 1 | D12: 8 | E12: 0 | F12: 8 | G12: 1 | H12: 0 | I12: 8 | J12: 1 | K12: 121 | L12: 7 | R12: 7
A13: Calumet | B13: Calumet | C13: 10 | D13: 239 | E13: 800 | F13: 1039 | G13: 0.23 | H13: 883 | I13: 156 | J13: 0.15 | K13: 874 | L13: 8 | R13: 8
A14: Chippewa | B14: Chippewa | C14: 3 | D14: 73 | E14: 260 | F14: 333 | G14: 0.219 | H14: 174 | I14: 159 | J14: 0.477 | K14: 217 | L14: 9 | R14: 9
A15: Clark | B15: Clark | C15: 0 | D15: 0 | E15: 0 | F15: 0 | G15: 0 | H15: 0 | I15: 0 | J15: 0 | K15: 1 | L15: 10 | R15: 10
A16: Columbia | B16: Columbia | C16: 4 | D16: 473 | E16: 272 | F16: 745 | G16: 0.635 | H16: 611 | I16: 134 | J16: 0.18 | K16: 616 | L16: 11 | R16: 11
A17: Crawford | B17: Crawford | C17: 1 | D17: 0 | E17: 57 | F17: 57 | G17: 0 | H17: 57 | I17: 0 | J17: 0 | K17: 78 | L17: 12 | R17: 12
A18: Dane | B18: Dane | C18: 11 | D18: 354 | E18: 847 | F18: 1201 | G18: 0.295 | H18: 1137 | I18: 64 | J18: 0.053 | K18: 1123 | L18: 13 | R18: 13
A19: Dodge | B19: Dodge | C19: 7 | D19: 79 | E19: 1093 | F19: 1172 | G19: 0.067 | H19: 1093 | I19: 79 | J19: 0.067 | K19: 851 | L19: 14 | R19: 14
A20: Door | B20: Door | C20: 1 | D20: 48 | E20: 0 | F20: 48 | G20: 1 | H20: 0 | I20: 48 | J20: 1 | K20: 155 | L20: 15 | R20: 15
A21: Douglas | B21: Douglas | C21: 1 | D21: 23 | E21: 49 | F21: 72 | G21: 0.319 | H21: 72 | I21: 0 | J21: 0 | K21: 67 | L21: 16 | R21: 16
A22: Dunn | B22: Dunn | C22: 5 | D22: 501 | E22: 429 | F22: 930 | G22: 0.539 | H22: 683 | I22: 247 | J22: 0.266 | K22: 719 | L22: 17 | R22: 17
A23: Eau Claire | B23: Eau Claire | C23: 4 | D23: 459 | E23: 625 | F23: 1084 | G23: 0.423 | H23: 782 | I23: 302 | J23: 0.279 | K23: 1063 | L23: 18 | R23: 18
A24: Florence | B24: Florence | C24: 0 | D24: 0 | E24: 0 | F24: 0 | G24: 0 | H24: 0 | I24: 0 | J24: 0 | K24: 1 | L24: 19 | R24: 19
A25: Fond du Lac | B25: Fond du Lac | C25: 11 | D25: 112 | E25: 1540 | F25: 1652 | G25: 0.068 | H25: 1537 | I25: 115 | J25: 0.07 | K25: 1203 | L25: 20 | R25: 20
A26: Forest | B26: Forest | C26: 0 | D26: 0 | E26: 0 | F26: 0 | G26: 0 | H26: 0 | I26: 0 | J26: 0 | K26: 14 | L26: 21 | R26: 21
A27: Grant | B27: Grant | C27: 5 | D27: 401 | E27: 575 | F27: 976 | G27: 0.411 | H27: 976 | I27: 0 | J27: 0 | K27: 793 | L27: 22 | R27: 22
A28: Green | B28: Green | C28: 1 | D28: 2 | E28: 35 | F28: 37 | G28: 0.054 | H28: 37 | I28: 0 | J28: 0 | K28: 48 | L28: 23 | R28: 23
A29: Green Lake | B29: Green Lake | C29: 5 | D29: 322 | E29: 851 | F29: 1173 | G29: 0.275 | H29: 1131 | I29: 42 | J29: 0.036 | K29: 769 | L29: 24 | R29: 24
A30: Iowa | B30: Iowa | C30: 1 | D30: 0 | E30: 259 | F30: 259 | G30: 0 | H30: 259 | I30: 0 | J30: 0 | K30: 211 | L30: 25 | R30: 25
A31: Iron | B31: Iron | C31: 0 | D31: 0 | E31: 0 | F31: 0 | G31: 0 | H31: 0 | I31: 0 | J31: 0 | K31: 0 | L31: 26 | R31: 26
A32: Jackson | B32: Jackson | C32: 2 | D32: 68 | E32: 299 | F32: 367 | G32: 0.185 | H32: 299 | I32: 68 | J32: 0.185 | K32: 286 | L32: 27 | R32: 27
A33: Jefferson | B33: Jefferson | C33: 3 | D33: 313 | E33: 13 | F33: 326 | G33: 0.96 | H33: 255 | I33: 71 | J33: 0.218 | K33: 295 | L33: 28 | R33: 28
A34: Juneau | B34: Juneau | C34: 3 | D34: 126 | E34: 31 | F34: 157 | G34: 0.803 | H34: 49 | I34: 108 | J34: 0.688 | K34: 153 | L34: 29 | R34: 29
A35: Kenosha | B35: Kenosha | C35: 5 | D35: 244 | E35: 352 | F35: 596 | G35: 0.409 | H35: 536 | I35: 60 | J35: 0.101 | K35: 489 | L35: 30 | R35: 30
A36: Kewaunee | B36: Kewaunee | C36: 2 | D36: 63 | E36: 193 | F36: 256 | G36: 0.246 | H36: 193 | I36: 63 | J36: 0.246 | K36: 202 | L36: 31
A37: La Crosse | B37: La Crosse | C37: 5 | D37: 589 | E37: 1061 | F37: 1650 | G37: 0.357 | H37: 1583 | I37: 67 | J37: 0.041 | K37: 1176 | L37: 32 | R37: Average need out of 72. A lower number is more needed overall: | X37: =(IFERROR(SUM(X6:X36)/COUNTIF(X6:X35,">0"),"")) -> 
A38: Lafayette | B38: Lafayette | C38: 0 | D38: 0 | E38: 0 | F38: 0 | G38: 0 | H38: 0 | I38: 0 | J38: 0 | K38: 125 | L38: 33
A39: Langlade | B39: Langlade | C39: 0 | D39: 0 | E39: 0 | F39: 0 | G39: 0 | H39: 0 | I39: 0 | J39: 0 | K39: 0 | L39: 34
A40: Lincoln | B40: Lincoln | C40: 0 | D40: 0 | E40: 0 | F40: 0 | G40: 0 | H40: 0 | I40: 0 | J40: 0 | K40: 22 | L40: 35
A41: Manitowoc | B41: Manitowoc | C41: 4 | D41: 76 | E41: 327 | F41: 403 | G41: 0.189 | H41: 335 | I41: 68 | J41: 0.169 | K41: 308 | L41: 36
A42: Marathon | B42: Marathon | C42: 2 | D42: 35 | E42: 45 | F42: 80 | G42: 0.438 | H42: 0 | I42: 80 | J42: 1 | K42: 230 | L42: 37
A43: Marinette | B43: Marinette | C43: 0 | D43: 0 | E43: 0 | F43: 0 | G43: 0 | H43: 0 | I43: 0 | J43: 0 | K43: 50 | L43: 38
A44: Marquette | B44: Marquette | C44: 3 | D44: 111 | E44: 65 | F44: 176 | G44: 0.631 | H44: 104 | I44: 72 | J44: 0.409 | K44: 138 | L44: 39
A45: Menominee | B45: Menominee | C45: 1 | D45: 55 | E45: 175 | F45: 230 | G45: 0.239 | H45: 230 | I45: 0 | J45: 0 | K45: 173 | L45: 40
A46: Milwaukee | B46: Milwaukee | C46: 20 | D46: 547 | E46: 2082 | F46: 2629 | G46: 0.208 | H46: 2548 | I46: 81 | J46: 0.031 | K46: 2204 | L46: 41
A47: Monroe | B47: Monroe | C47: 1 | D47: 39 | E47: 0 | F47: 39 | G47: 1 | H47: 0 | I47: 39 | J47: 1 | K47: 46 | L47: 42
A48: Oconto | B48: Oconto | C48: 2 | D48: 0 | E48: 473 | F48: 473 | G48: 0 | H48: 426 | I48: 47 | J48: 0.099 | K48: 170 | L48: 43
A49: Oneida | B49: Oneida | C49: 0 | D49: 0 | E49: 0 | F49: 0 | G49: 0 | H49: 0 | I49: 0 | J49: 0 | K49: 4 | L49: 44
A50: Outagamie | B50: Outagamie | C50: 19 | D50: 199 | E50: 879 | F50: 1078 | G50: 0.185 | H50: 936 | I50: 142 | J50: 0.132 | K50: 925 | L50: 45
A51: Ozaukee | B51: Ozaukee | C51: 9 | D51: 335 | E51: 899 | F51: 1234 | G51: 0.271 | H51: 1172 | I51: 62 | J51: 0.05 | K51: 869 | L51: 46
A52: Pepin | B52: Pepin | C52: 2 | D52: 89 | E52: 0 | F52: 89 | G52: 1 | H52: 0 | I52: 89 | J52: 1 | K52: 75 | L52: 47
A53: Pierce | B53: Pierce | C53: 3 | D53: 191 | E53: 56 | F53: 247 | G53: 0.773 | H53: 118 | I53: 129 | J53: 0.522 | K53: 195 | L53: 48
A54: Polk | B54: Polk | C54: 1 | D54: 49 | E54: 0 | F54: 49 | G54: 1 | H54: 0 | I54: 49 | J54: 1 | K54: 42 | L54: 49
A55: Portage | B55: Portage | C55: 5 | D55: 176 | E55: 220 | F55: 396 | G55: 0.444 | H55: 183 | I55: 213 | J55: 0.538 | K55: 410 | L55: 50
A56: Price | B56: Price | C56: 2 | D56: 96 | E56: 306 | F56: 402 | G56: 0.239 | H56: 402 | I56: 0 | J56: 0 | K56: 306 | L56: 51
A57: Racine | B57: Racine | C57: 3 | D57: 44 | E57: 295 | F57: 339 | G57: 0.13 | H57: 295 | I57: 44 | J57: 0.13 | K57: 316 | L57: 52
A58: Richland | B58: Richland | C58: 1 | D58: 97 | E58: 0 | F58: 97 | G58: 1 | H58: 0 | I58: 97 | J58: 1 | K58: 85 | L58: 53
A59: Rock | B59: Rock | C59: 7 | D59: 327 | E59: 1194 | F59: 1521 | G59: 0.215 | H59: 1489 | I59: 32 | J59: 0.021 | K59: 995 | L59: 54
A60: Rusk | B60: Rusk | C60: 0 | D60: 0 | E60: 0 | F60: 0 | G60: 0 | H60: 0 | I60: 0 | J60: 0 | K60: 0 | L60: 55
A61: Sauk | B61: Sauk | C61: 5 | D61: 684 | E61: 341 | F61: 1025 | G61: 0.667 | H61: 946 | I61: 79 | J61: 0.077 | K61: 970 | L61: 56
A62: Sawyer | B62: Sawyer | C62: 1 | D62: 0 | E62: 207 | F62: 207 | G62: 0 | H62: 207 | I62: 0 | J62: 0 | K62: 199 | L62: 57
A63: Shawano | B63: Shawano | C63: 2 | D63: 42 | E63: 118 | F63: 160 | G63: 0.263 | H63: 0 | I63: 160 | J63: 1 | K63: 104 | L63: 58
A64: Sheboygan | B64: Sheboygan | C64: 5 | D64: 75 | E64: 267 | F64: 342 | G64: 0.219 | H64: 265 | I64: 77 | J64: 0.225 | K64: 291 | L64: 59
A65: St Croix | B65: St Croix | C65: 5 | D65: 260 | E65: 238 | F65: 498 | G65: 0.522 | H65: 418 | I65: 80 | J65: 0.161 | K65: 413 | L65: 60
A66: Taylor | B66: Taylor | C66: 1 | D66: 0 | E66: 57 | F66: 57 | G66: 0 | H66: 57 | I66: 0 | J66: 0 | K66: 54 | L66: 61
A67: Trempealeau | B67: Trempealeau | C67: 2 | D67: 133 | E67: 176 | F67: 309 | G67: 0.43 | H67: 180 | I67: 129 | J67: 0.417 | K67: 248 | L67: 62
A68: Vernon | B68: Vernon | C68: 3 | D68: 227 | E68: 724 | F68: 951 | G68: 0.239 | H68: 554 | I68: 397 | J68: 0.417 | K68: 654 | L68: 63
A69: Vilas | B69: Vilas | C69: 1 | D69: 225 | E69: 154 | F69: 379 | G69: 0.594 | H69: 379 | I69: 0 | J69: 0 | K69: 296 | L69: 64
A70: Walworth | B70: Walworth | C70: 4 | D70: 80 | E70: 883 | F70: 963 | G70: 0.083 | H70: 889 | I70: 74 | J70: 0.077 | K70: 525 | L70: 65
A71: Washburn | B71: Washburn | C71: 1 | D71: 13 | E71: 0 | F71: 13 | G71: 1 | H71: 0 | I71: 13 | J71: 1 | K71: 88 | L71: 66
A72: Washington | B72: Washington | C72: 7 | D72: 810 | E72: 256 | F72: 1066 | G72: 0.76 | H72: 1025 | I72: 41 | J72: 0.038 | K72: 997 | L72: 67
A73: Waukesha | B73: Waukesha | C73: 23 | D73: 552 | E73: 2052 | F73: 2604 | G73: 0.212 | H73: 2591 | I73: 13 | J73: 0.005 | K73: 1966 | L73: 68
A74: Waupaca | B74: Waupaca | C74: 10 | D74: 46 | E74: 305 | F74: 351 | G74: 0.131 | H74: 276 | I74: 75 | J74: 0.214 | K74: 290 | L74: 69
A75: Waushara | B75: Waushara | C75: 7 | D75: 241 | E75: 189 | F75: 430 | G75: 0.56 | H75: 314 | I75: 116 | J75: 0.27 | K75: 349 | L75: 70
A76: Winnebago | B76: Winnebago | C76: 16 | D76: 1287 | E76: 1271 | F76: 2558 | G76: 0.503 | H76: 2397 | I76: 161 | J76: 0.063 | K76: 1601 | L76: 71
A77: Wood | B77: Wood | C77: 4 | D77: 108 | E77: 311 | F77: 419 | G77: 0.258 | H77: 293 | I77: 126 | J77: 0.301 | K77: 328 | L77: 72
B79: Totals: | C79: =SUM(C6:C78) -> 293 | D79: =SUM(D6:D78) -> 12002 | E79: =SUM(E6:E78) -> 25595 | F79: =SUM(F6:F78) -> 37597 | G79: =D79/F79 -> 0.3192275979 | H79: =SUM(H6:H78) -> 32676 | I79: =SUM(I6:I78) -> 4921 | J79: =I79/F79 -> 0.1308881028 | K79: =SUM(K6:K78) -> 30033

Sheet 2022
B1: 2022
R2: Enter the county name in column "S" to populate QSOs & Rank
N3: Enter County | P3: Rank
B4: County | C4: Stations | D4: CW Qs | E4: Phone Qs | F4: Total Qs | G4: % CW | H4: Fixed Qs | I4: Mobile Qs | J4: % Mobile Qs | K4: Rcvd Qs | L4: Rank | P4: =IFERROR(IF(N4="","",INDEX($L$6:$L$77,MATCH(N4,$B$6:$B$77,0))),"") ->  | R4: Sequence | S4: County | T4: CW Qs | U4: PH Qs | V4: Total Qs | W4: Rcvd Qs | X4: Rank
A6: Adams | B6: Adams | C6: 1 | D6: 60 | E6: 0 | F6: 60 | G6: 1 | H6: 0 | I6: 60 | J6: 1 | K6: 54 | L6: 1 | R6: 1 | T6: =IF(S6="","",VLOOKUP($S6,$B$6:$L$77,3,FALSE)) ->  | U6: =IF(S6="","",VLOOKUP($S6,$B$6:$L$77,4,FALSE)) ->  | V6: =IF(S6="","",VLOOKUP($S6,$B$6:$L$77,5,FALSE)) ->  | W6: =IF(S6="","",VLOOKUP($S6,$B$6:$L$77,10,FALSE)) ->  | X6: =IF(S6="","",INDEX($L$6:$L$77,MATCH(S6,$B$6:$B$77,0))) -> 
A7: Ashland | B7: Ashland | C7: 2 | D7: 90 | E7: 80 | F7: 170 | G7: 0.529 | H7: 80 | I7: 90 | J7: 0.529 | K7: 160 | L7: 2 | R7: 2 | T7: =IF(S7="","",VLOOKUP($S7,$B$6:$L$77,3,FALSE)) ->  | X7: =IF(S7="","",INDEX($L$6:$L$77,MATCH(S7,$B$6:$B$77,0))) -> 
A8: Barron | B8: Barron | C8: 0 | D8: 0 | E8: 0 | F8: 0 | G8: 0 | H8: 0 | I8: 0 | J8: 0 | K8: 2 | L8: 3 | R8: 3
A9: Bayfield | B9: Bayfield | C9: 1 | D9: 31 | E9: 0 | F9: 31 | G9: 1 | H9: 0 | I9: 31 | J9: 1 | K9: 25 | L9: 4 | R9: 4
A10: Brown | B10: Brown | C10: 5 | D10: 291 | E10: 232 | F10: 523 | G10: 0.556 | H10: 472 | I10: 51 | J10: 0.098 | K10: 651 | L10: 5 | R10: 5
A11: Buffalo | B11: Buffalo | C11: 3 | D11: 23 | E11: 245 | F11: 268 | G11: 0.086 | H11: 245 | I11: 23 | J11: 0.086 | K11: 199 | L11: 6 | R11: 6
A12: Burnett | B12: Burnett | C12: 0 | D12: 0 | E12: 0 | F12: 0 | G12: 0 | H12: 0 | I12: 0 | J12: 0 | K12: 288 | L12: 7 | R12: 7
A13: Calumet | B13: Calumet | C13: 4 | D13: 43 | E13: 239 | F13: 282 | G13: 0.152 | H13: 238 | I13: 44 | J13: 0.156 | K13: 212 | L13: 8 | R13: 8
A14: Chippewa | B14: Chippewa | C14: 1 | D14: 1 | E14: 35 | F14: 36 | G14: 0.028 | H14: 36 | I14: 0 | J14: 0 | K14: 45 | L14: 9 | R14: 9
A15: Clark | B15: Clark | C15: 1 | D15: 54 | E15: 0 | F15: 54 | G15: 1 | H15: 0 | I15: 54 | J15: 1 | K15: 46 | L15: 10 | R15: 10
A16: Columbia | B16: Columbia | C16: 2 | D16: 83 | E16: 0 | F16: 83 | G16: 1 | H16: 0 | I16: 83 | J16: 1 | K16: 98 | L16: 11 | R16: 11
A17: Crawford | B17: Crawford | C17: 1 | D17: 0 | E17: 50 | F17: 50 | G17: 0 | H17: 50 | I17: 0 | J17: 0 | K17: 52 | L17: 12 | R17: 12
A18: Dane | B18: Dane | C18: 10 | D18: 91 | E18: 1595 | F18: 1686 | G18: 0.054 | H18: 1655 | I18: 31 | J18: 0.018 | K18: 1158 | L18: 13 | R18: 13
A19: Dodge | B19: Dodge | C19: 4 | D19: 272 | E19: 366 | F19: 638 | G19: 0.426 | H19: 572 | I19: 66 | J19: 0.103 | K19: 534 | L19: 14 | R19: 14
A20: Door | B20: Door | C20: 1 | D20: 61 | E20: 1 | F20: 62 | G20: 0.984 | H20: 0 | I20: 62 | J20: 1 | K20: 142 | L20: 15 | R20: 15
A21: Douglas | B21: Douglas | C21: 1 | D21: 207 | E21: 171 | F21: 378 | G21: 0.548 | H21: 378 | I21: 0 | J21: 0 | K21: 268 | L21: 16 | R21: 16
A22: Dunn | B22: Dunn | C22: 2 | D22: 353 | E22: 142 | F22: 495 | G22: 0.713 | H22: 474 | I22: 21 | J22: 0.042 | K22: 454 | L22: 17 | R22: 17
A23: Eau Claire | B23: Eau Claire | C23: 4 | D23: 475 | E23: 699 | F23: 1174 | G23: 0.405 | H23: 1124 | I23: 50 | J23: 0.043 | K23: 955 | L23: 18 | R23: 18
A24: Florence | B24: Florence | C24: 1 | D24: 26 | E24: 32 | F24: 58 | G24: 0.448 | H24: 0 | I24: 58 | J24: 1 | K24: 39 | L24: 19 | R24: 19
A25: Fond du Lac | B25: Fond du Lac | C25: 3 | D25: 0 | E25: 749 | F25: 749 | G25: 0 | H25: 749 | I25: 0 | J25: 0 | K25: 572 | L25: 20 | R25: 20
A26: Forest | B26: Forest | C26: 1 | D26: 46 | E26: 52 | F26: 98 | G26: 0.469 | H26: 0 | I26: 98 | J26: 1 | K26: 73 | L26: 21 | R26: 21
A27: Grant | B27: Grant | C27: 7 | D27: 504 | E27: 624 | F27: 1128 | G27: 0.447 | H27: 1029 | I27: 99 | J27: 0.088 | K27: 838 | L27: 22 | R27: 22
A28: Green | B28: Green | C28: 0 | D28: 0 | E28: 0 | F28: 0 | G28: 0 | H28: 0 | I28: 0 | J28: 0 | K28: 41 | L28: 23 | R28: 23
A29: Green Lake | B29: Green Lake | C29: 3 | D29: 23 | E29: 441 | F29: 464 | G29: 0.05 | H29: 441 | I29: 23 | J29: 0.05 | K29: 301 | L29: 24 | R29: 24
A30: Iowa | B30: Iowa | C30: 2 | D30: 13 | E30: 22 | F30: 35 | G30: 0.371 | H30: 22 | I30: 13 | J30: 0.371 | K30: 12 | L30: 25 | R30: 25
A31: Iron | B31: Iron | C31: 0 | D31: 0 | E31: 0 | F31: 0 | G31: 0 | H31: 0 | I31: 0 | J31: 0 | K31: 1 | L31: 26 | R31: 26
A32: Jackson | B32: Jackson | C32: 1 | D32: 46 | E32: 0 | F32: 46 | G32: 1 | H32: 0 | I32: 46 | J32: 1 | K32: 44 | L32: 27 | R32: 27
A33: Jefferson | B33: Jefferson | C33: 2 | D33: 112 | E33: 148 | F33: 260 | G33: 0.431 | H33: 260 | I33: 0 | J33: 0 | K33: 163 | L33: 28 | R33: 28
A34: Juneau | B34: Juneau | C34: 2 | D34: 73 | E34: 0 | F34: 73 | G34: 1 | H34: 0 | I34: 73 | J34: 1 | K34: 51 | L34: 29 | R34: 29
A35: Kenosha | B35: Kenosha | C35: 4 | D35: 611 | E35: 583 | F35: 1194 | G35: 0.512 | H35: 1194 | I35: 0 | J35: 0 | K35: 824 | L35: 30 | R35: 30
A36: Kewaunee | B36: Kewaunee | C36: 1 | D36: 59 | E36: 0 | F36: 59 | G36: 1 | H36: 0 | I36: 59 | J36: 1 | K36: 56 | L36: 31
A37: La Crosse | B37: La Crosse | C37: 3 | D37: 162 | E37: 619 | F37: 781 | G37: 0.207 | H37: 781 | I37: 0 | J37: 0 | K37: 538 | L37: 32 | R37: Average need out of 72. A lower number is more needed overall: | X37: =(IFERROR(SUM(X6:X36)/COUNTIF(X6:X35,">0"),"")) -> 
A38: Lafayette | B38: Lafayette | C38: 2 | D38: 0 | E38: 104 | F38: 104 | G38: 0 | H38: 104 | I38: 0 | J38: 0 | K38: 76 | L38: 33
A39: Langlade | B39: Langlade | C39: 1 | D39: 63 | E39: 0 | F39: 63 | G39: 1 | H39: 0 | I39: 63 | J39: 1 | K39: 57 | L39: 34
A40: Lincoln | B40: Lincoln | C40: 1 | D40: 84 | E40: 0 | F40: 84 | G40: 1 | H40: 0 | I40: 84 | J40: 1 | K40: 59 | L40: 35
A41: Manitowoc | B41: Manitowoc | C41: 3 | D41: 91 | E41: 9 | F41: 100 | G41: 0.91 | H41: 26 | I41: 74 | J41: 0.74 | K41: 97 | L41: 36
A42: Marathon | B42: Marathon | C42: 3 | D42: 41 | E42: 327 | F42: 368 | G42: 0.111 | H42: 327 | I42: 41 | J42: 0.111 | K42: 372 | L42: 37
A43: Marinette | B43: Marinette | C43: 0 | D43: 0 | E43: 0 | F43: 0 | G43: 0 | H43: 0 | I43: 0 | J43: 0 | K43: 33 | L43: 38
A44: Marquette | B44: Marquette | C44: 3 | D44: 152 | E44: 248 | F44: 400 | G44: 0.38 | H44: 284 | I44: 116 | J44: 0.29 | K44: 328 | L44: 39
A45: Menominee | B45: Menominee | C45: 1 | D45: 27 | E45: 10 | F45: 37 | G45: 0.73 | H45: 0 | I45: 37 | J45: 1 | K45: 29 | L45: 40
A46: Milwaukee | B46: Milwaukee | C46: 12 | D46: 234 | E46: 1189 | F46: 1423 | G46: 0.164 | H46: 1388 | I46: 35 | J46: 0.025 | K46: 1090 | L46: 41
A47: Monroe | B47: Monroe | C47: 1 | D47: 34 | E47: 0 | F47: 34 | G47: 1 | H47: 0 | I47: 34 | J47: 1 | K47: 29 | L47: 42
A48: Oconto | B48: Oconto | C48: 0 | D48: 0 | E48: 0 | F48: 0 | G48: 0 | H48: 0 | I48: 0 | J48: 0 | K48: 2 | L48: 43
A49: Oneida | B49: Oneida | C49: 0 | D49: 0 | E49: 0 | F49: 0 | G49: 0 | H49: 0 | I49: 0 | J49: 0 | K49: 13 | L49: 44
A50: Outagamie | B50: Outagamie | C50: 4 | D50: 108 | E50: 299 | F50: 407 | G50: 0.265 | H50: 336 | I50: 71 | J50: 0.174 | K50: 386 | L50: 45
A51: Ozaukee | B51: Ozaukee | C51: 6 | D51: 130 | E51: 709 | F51: 839 | G51: 0.155 | H51: 805 | I51: 34 | J51: 0.041 | K51: 544 | L51: 46
A52: Pepin | B52: Pepin | C52: 1 | D52: 16 | E52: 0 | F52: 16 | G52: 1 | H52: 0 | I52: 16 | J52: 1 | K52: 14 | L52: 47
A53: Pierce | B53: Pierce | C53: 1 | D53: 29 | E53: 1 | F53: 30 | G53: 0.967 | H53: 30 | I53: 0 | J53: 0 | K53: 43 | L53: 48
A54: Polk | B54: Polk | C54: 0 | D54: 0 | E54: 0 | F54: 0 | G54: 0 | H54: 0 | I54: 0 | J54: 0 | K54: 5 | L54: 49
A55: Portage | B55: Portage | C55: 5 | D55: 594 | E55: 48 | F55: 642 | G55: 0.925 | H55: 455 | I55: 187 | J55: 0.291 | K55: 500 | L55: 50
A56: Price | B56: Price | C56: 4 | D56: 319 | E56: 362 | F56: 681 | G56: 0.468 | H56: 595 | I56: 86 | J56: 0.126 | K56: 521 | L56: 51
A57: Racine | B57: Racine | C57: 3 | D57: 102 | E57: 732 | F57: 834 | G57: 0.122 | H57: 834 | I57: 0 | J57: 0 | K57: 469 | L57: 52
A58: Richland | B58: Richland | C58: 0 | D58: 0 | E58: 0 | F58: 0 | G58: 0 | H58: 0 | I58: 0 | J58: 0 | K58: 3 | L58: 53
A59: Rock | B59: Rock | C59: 5 | D59: 441 | E59: 558 | F59: 999 | G59: 0.441 | H59: 973 | I59: 26 | J59: 0.026 | K59: 713 | L59: 54
A60: Rusk | B60: Rusk | C60: 1 | D60: 75 | E60: 0 | F60: 75 | G60: 1 | H60: 0 | I60: 75 | J60: 1 | K60: 59 | L60: 55
A61: Sauk | B61: Sauk | C61: 6 | D61: 552 | E61: 259 | F61: 811 | G61: 0.681 | H61: 811 | I61: 0 | J61: 0 | K61: 649 | L61: 56
A62: Sawyer | B62: Sawyer | C62: 2 | D62: 97 | E62: 140 | F62: 237 | G62: 0.409 | H62: 140 | I62: 97 | J62: 0.409 | K62: 177 | L62: 57
A63: Shawano | B63: Shawano | C63: 1 | D63: 83 | E63: 0 | F63: 83 | G63: 1 | H63: 0 | I63: 83 | J63: 1 | K63: 86 | L63: 58
A64: Sheboygan | B64: Sheboygan | C64: 3 | D64: 28 | E64: 147 | F64: 175 | G64: 0.16 | H64: 147 | I64: 28 | J64: 0.16 | K64: 285 | L64: 59
A65: St Croix | B65: St Croix | C65: 2 | D65: 95 | E65: 28 | F65: 123 | G65: 0.772 | H65: 123 | I65: 0 | J65: 0 | K65: 126 | L65: 60
A66: Taylor | B66: Taylor | C66: 1 | D66: 58 | E66: 0 | F66: 58 | G66: 1 | H66: 0 | I66: 58 | J66: 1 | K66: 45 | L66: 61
A67: Trempealeau | B67: Trempealeau | C67: 3 | D67: 37 | E67: 149 | F67: 186 | G67: 0.199 | H67: 149 | I67: 37 | J67: 0.199 | K67: 151 | L67: 62
A68: Vernon | B68: Vernon | C68: 3 | D68: 137 | E68: 467 | F68: 604 | G68: 0.227 | H68: 604 | I68: 0 | J68: 0 | K68: 414 | L68: 63
A69: Vilas | B69: Vilas | C69: 0 | D69: 0 | E69: 0 | F69: 0 | G69: 0 | H69: 0 | I69: 0 | J69: 0 | K69: 0 | L69: 64
A70: Walworth | B70: Walworth | C70: 2 | D70: 39 | E70: 50 | F70: 89 | G70: 0.438 | H70: 50 | I70: 39 | J70: 0.438 | K70: 100 | L70: 65
A71: Washburn | B71: Washburn | C71: 0 | D71: 0 | E71: 0 | F71: 0 | G71: 0 | H71: 0 | I71: 0 | J71: 0 | K71: 46 | L71: 66
A72: Washington | B72: Washington | C72: 4 | D72: 685 | E72: 277 | F72: 962 | G72: 0.712 | H72: 962 | I72: 0 | J72: 0 | K72: 698 | L72: 67
A73: Waukesha | B73: Waukesha | C73: 16 | D73: 95 | E73: 848 | F73: 943 | G73: 0.101 | H73: 928 | I73: 15 | J73: 0.016 | K73: 798 | L73: 68
A74: Waupaca | B74: Waupaca | C74: 6 | D74: 341 | E74: 326 | F74: 667 | G74: 0.511 | H74: 622 | I74: 45 | J74: 0.067 | K74: 476 | L74: 69
A75: Waushara | B75: Waushara | C75: 3 | D75: 171 | E75: 130 | F75: 301 | G75: 0.568 | H75: 208 | I75: 93 | J75: 0.309 | K75: 317 | L75: 70
A76: Winnebago | B76: Winnebago | C76: 5 | D76: 536 | E76: 26 | F76: 562 | G76: 0.954 | H76: 487 | I76: 75 | J76: 0.133 | K76: 566 | L76: 71
A77: Wood | B77: Wood | C77: 3 | D77: 137 | E77: 12 | F77: 149 | G77: 0.919 | H77: 13 | I77: 136 | J77: 0.913 | K77: 192 | L77: 72
B79: Totals: | C79: =SUM(C6:C78) -> 190 | D79: =SUM(D6:D78) -> 9441 | E79: =SUM(E6:E78) -> 14580 | F79: =SUM(F6:F78) -> 24021 | G79: =D79/F79 -> 0.3930310978 | H79: =SUM(H6:H78) -> 21201 | I79: =SUM(I6:I78) -> 2820 | J79: =I79/F79 -> 0.1173972774 | K79: =SUM(K6:K78) -> 19464

Sheet 2021
B1: 2021
R2: Enter the county name in column "S" to populate QSOs & Rank
N3: Enter County | P3: Rank
B4: County | C4: Stations | D4: CW Qs | E4: Phone Qs | F4: Total Qs | G4: % CW | H4: Fixed Qs | I4: Mobile Qs | J4: % Mobile Qs | K4: Rcvd Qs | L4: Rank | P4: =IFERROR(IF(N4="","",INDEX($L$6:$L$77,MATCH(N4,$B$6:$B$77,0))),"") ->  | R4: Sequence | S4: County | T4: CW Qs | U4: PH Qs | V4: Total Qs | W4: Rcvd Qs | X4: Rank
A6: Adams | B6: Adams | C6: 3 | D6: 76 | E6: 234 | F6: 310 | G6: 0.245 | H6: 234 | I6: 76 | J6: 0.245 | K6: 211 | L6: 1 | R6: 1 | T6: =IF(S6="","",VLOOKUP($S6,$B$6:$L$77,3,FALSE)) ->  | U6: =IF(S6="","",VLOOKUP($S6,$B$6:$L$77,4,FALSE)) ->  | V6: =IF(S6="","",VLOOKUP($S6,$B$6:$L$77,5,FALSE)) ->  | W6: =IF(S6="","",VLOOKUP($S6,$B$6:$L$77,10,FALSE)) ->  | X6: =IF(S6="","",INDEX($L$6:$L$77,MATCH(S6,$B$6:$B$77,0))) -> 
A7: Ashland | B7: Ashland | C7: 3 | D7: 96 | E7: 115 | F7: 211 | G7: 0.455 | H7: 41 | I7: 170 | J7: 0.806 | K7: 144 | L7: 2 | R7: 2 | T7: =IF(S7="","",VLOOKUP($S7,$B$6:$L$77,3,FALSE)) ->  | X7: =IF(S7="","",INDEX($L$6:$L$77,MATCH(S7,$B$6:$B$77,0))) -> 
A8: Barron | B8: Barron | C8: 2 | D8: 170 | E8: 0 | F8: 170 | G8: 1 | H8: 0 | I8: 170 | J8: 1 | K8: 149 | L8: 3 | R8: 3
A9: Bayfield | B9: Bayfield | C9: 4 | D9: 168 | E9: 243 | F9: 411 | G9: 0.409 | H9: 243 | I9: 168 | J9: 0.409 | K9: 286 | L9: 4 | R9: 4
A10: Brown | B10: Brown | C10: 7 | D10: 401 | E10: 655 | F10: 1056 | G10: 0.38 | H10: 965 | I10: 91 | J10: 0.086 | K10: 816 | L10: 5 | R10: 5
A11: Buffalo | B11: Buffalo | C11: 4 | D11: 75 | E11: 139 | F11: 214 | G11: 0.35 | H11: 139 | I11: 75 | J11: 0.35 | K11: 182 | L11: 6 | R11: 6
A12: Burnett | B12: Burnett | C12: 2 | D12: 69 | E12: 41 | F12: 110 | G12: 0.627 | H12: 41 | I12: 69 | J12: 0.627 | K12: 92 | L12: 7 | R12: 7
A13: Calumet | B13: Calumet | C13: 4 | D13: 23 | E13: 355 | F13: 378 | G13: 0.061 | H13: 332 | I13: 46 | J13: 0.122 | K13: 306 | L13: 8 | R13: 8
A14: Chippewa | B14: Chippewa | C14: 1 | D14: 45 | E14: 0 | F14: 45 | G14: 1 | H14: 0 | I14: 45 | J14: 1 | K14: 64 | L14: 9 | R14: 9
A15: Clark | B15: Clark | C15: 2 | D15: 112 | E15: 0 | F15: 112 | G15: 1 | H15: 0 | I15: 112 | J15: 1 | K15: 92 | L15: 10 | R15: 10
A16: Columbia | B16: Columbia | C16: 3 | D16: 421 | E16: 106 | F16: 527 | G16: 0.799 | H16: 506 | I16: 21 | J16: 0.04 | K16: 437 | L16: 11 | R16: 11
A17: Crawford | B17: Crawford | C17: 2 | D17: 52 | E17: 67 | F17: 119 | G17: 0.437 | H17: 67 | I17: 52 | J17: 0.437 | K17: 111 | L17: 12 | R17: 12
A18: Dane | B18: Dane | C18: 15 | D18: 704 | E18: 1197 | F18: 1901 | G18: 0.37 | H18: 1901 | I18: 0 | J18: 0 | K18: 1474 | L18: 13 | R18: 13
A19: Dodge | B19: Dodge | C19: 5 | D19: 125 | E19: 105 | F19: 230 | G19: 0.543 | H19: 91 | I19: 139 | J19: 0.604 | K19: 213 | L19: 14 | R19: 14
A20: Door | B20: Door | C20: 1 | D20: 52 | E20: 1 | F20: 53 | G20: 0.981 | H20: 0 | I20: 53 | J20: 1 | K20: 166 | L20: 15 | R20: 15
A21: Douglas | B21: Douglas | C21: 2 | D21: 63 | E21: 59 | F21: 122 | G21: 0.516 | H21: 59 | I21: 63 | J21: 0.516 | K21: 107 | L21: 16 | R21: 16
A22: Dunn | B22: Dunn | C22: 3 | D22: 111 | E22: 1 | F22: 112 | G22: 0.991 | H22: 0 | I22: 112 | J22: 1 | K22: 236 | L22: 17 | R22: 17
A23: Eau Claire | B23: Eau Claire | C23: 4 | D23: 208 | E23: 430 | F23: 638 | G23: 0.326 | H23: 478 | I23: 160 | J23: 0.251 | K23: 708 | L23: 18 | R23: 18
A24: Florence | B24: Florence | C24: 0 | D24: 0 | E24: 0 | F24: 0 | G24: 0 | H24: 0 | I24: 0 | J24: 0 | K24: 1 | L24: 19 | R24: 19
A25: Fond du Lac | B25: Fond du Lac | C25: 11 | D25: 122 | E25: 960 | F25: 1082 | G25: 0.113 | H25: 940 | I25: 142 | J25: 0.131 | K25: 875 | L25: 20 | R25: 20
A26: Forest | B26: Forest | C26: 0 | D26: 0 | E26: 0 | F26: 0 | G26: 0 | H26: 0 | I26: 0 | J26: 0 | K26: 21 | L26: 21 | R26: 21
A27: Grant | B27: Grant | C27: 10 | D27: 554 | E27: 774 | F27: 1328 | G27: 0.417 | H27: 1325 | I27: 3 | J27: 0.002 | K27: 947 | L27: 22 | R27: 22
A28: Green | B28: Green | C28: 3 | D28: 220 | E28: 102 | F28: 322 | G28: 0.683 | H28: 255 | I28: 67 | J28: 0.208 | K28: 295 | L28: 23 | R28: 23
A29: Green Lake | B29: Green Lake | C29: 5 | D29: 82 | E29: 440 | F29: 522 | G29: 0.157 | H29: 440 | I29: 82 | J29: 0.157 | K29: 354 | L29: 24 | R29: 24
A30: Iowa | B30: Iowa | C30: 1 | D30: 111 | E30: 0 | F30: 111 | G30: 1 | H30: 0 | I30: 111 | J30: 1 | K30: 121 | L30: 25 | R30: 25
A31: Iron | B31: Iron | C31: 1 | D31: 0 | E31: 37 | F31: 37 | G31: 0 | H31: 0 | I31: 37 | J31: 1 | K31: 37 | L31: 26 | R31: 26
A32: Jackson | B32: Jackson | C32: 1 | D32: 80 | E32: 0 | F32: 80 | G32: 1 | H32: 0 | I32: 80 | J32: 1 | K32: 74 | L32: 27 | R32: 27
A33: Jefferson | B33: Jefferson | C33: 3 | D33: 380 | E33: 30 | F33: 410 | G33: 0.927 | H33: 320 | I33: 90 | J33: 0.22 | K33: 388 | L33: 28 | R33: 28
A34: Juneau | B34: Juneau | C34: 2 | D34: 124 | E34: 0 | F34: 124 | G34: 1 | H34: 0 | I34: 124 | J34: 1 | K34: 99 | L34: 29 | R34: 29
A35: Kenosha | B35: Kenosha | C35: 3 | D35: 476 | E35: 654 | F35: 1130 | G35: 0.421 | H35: 1130 | I35: 0 | J35: 0 | K35: 776 | L35: 30 | R35: 30
A36: Kewaunee | B36: Kewaunee | C36: 1 | D36: 70 | E36: 1 | F36: 71 | G36: 0.986 | H36: 0 | I36: 71 | J36: 1 | K36: 79 | L36: 31
A37: La Crosse | B37: La Crosse | C37: 6 | D37: 343 | E37: 1105 | F37: 1448 | G37: 0.237 | H37: 1448 | I37: 0 | J37: 0 | K37: 981 | L37: 32 | R37: Average need out of 72. A lower number is more needed overall: | X37: =(IFERROR(SUM(X6:X36)/COUNTIF(X6:X35,">0"),"")) -> 
A38: Lafayette | B38: Lafayette | C38: 2 | D38: 288 | E38: 129 | F38: 417 | G38: 0.691 | H38: 417 | I38: 0 | J38: 0 | K38: 328 | L38: 33
A39: Langlade | B39: Langlade | C39: 1 | D39: 0 | E39: 57 | F39: 57 | G39: 0 | H39: 57 | I39: 0 | J39: 0 | K39: 39 | L39: 34
A40: Lincoln | B40: Lincoln | C40: 1 | D40: 0 | E40: 269 | F40: 269 | G40: 0 | H40: 269 | I40: 0 | J40: 0 | K40: 180 | L40: 35
A41: Manitowoc | B41: Manitowoc | C41: 3 | D41: 136 | E41: 14 | F41: 150 | G41: 0.907 | H41: 38 | I41: 112 | J41: 0.747 | K41: 254 | L41: 36
A42: Marathon | B42: Marathon | C42: 1 | D42: 28 | E42: 0 | F42: 28 | G42: 1 | H42: 0 | I42: 28 | J42: 1 | K42: 109 | L42: 37
A43: Marinette | B43: Marinette | C43: 1 | D43: 37 | E43: 0 | F43: 37 | G43: 1 | H43: 0 | I43: 37 | J43: 1 | K43: 41 | L43: 38
A44: Marquette | B44: Marquette | C44: 3 | D44: 120 | E44: 98 | F44: 218 | G44: 0.55 | H44: 110 | I44: 108 | J44: 0.495 | K44: 147 | L44: 39
A45: Menominee | B45: Menominee | C45: 0 | D45: 0 | E45: 0 | F45: 0 | G45: 0 | H45: 0 | I45: 0 | J45: 0 | K45: 0 | L45: 40
A46: Milwaukee | B46: Milwaukee | C46: 18 | D46: 1152 | E46: 1752 | F46: 2904 | G46: 0.397 | H46: 2899 | I46: 5 | J46: 0.002 | K46: 2461 | L46: 41
A47: Monroe | B47: Monroe | C47: 2 | D47: 136 | E47: 0 | F47: 136 | G47: 1 | H47: 0 | I47: 136 | J47: 1 | K47: 114 | L47: 42
A48: Oconto | B48: Oconto | C48: 1 | D48: 65 | E48: 2 | F48: 67 | G48: 0.97 | H48: 0 | I48: 67 | J48: 1 | K48: 54 | L48: 43
A49: Oneida | B49: Oneida | C49: 1 | D49: 94 | E49: 150 | F49: 244 | G49: 0.385 | H49: 244 | I49: 0 | J49: 0 | K49: 211 | L49: 44
A50: Outagamie | B50: Outagamie | C50: 10 | D50: 205 | E50: 1042 | F50: 1247 | G50: 0.164 | H50: 1167 | I50: 80 | J50: 0.064 | K50: 879 | L50: 45
A51: Ozaukee | B51: Ozaukee | C51: 6 | D51: 111 | E51: 667 | F51: 778 | G51: 0.143 | H51: 726 | I51: 52 | J51: 0.067 | K51: 449 | L51: 46
A52: Pepin | B52: Pepin | C52: 2 | D52: 114 | E52: 0 | F52: 114 | G52: 1 | H52: 0 | I52: 114 | J52: 1 | K52: 100 | L52: 47
A53: Pierce | B53: Pierce | C53: 3 | D53: 132 | E53: 0 | F53: 132 | G53: 1 | H53: 0 | I53: 132 | J53: 1 | K53: 139 | L53: 48
A54: Polk | B54: Polk | C54: 3 | D54: 109 | E54: 48 | F54: 157 | G54: 0.694 | H54: 48 | I54: 109 | J54: 0.694 | K54: 239 | L54: 49
A55: Portage | B55: Portage | C55: 6 | D55: 613 | E55: 193 | F55: 806 | G55: 0.761 | H55: 683 | I55: 123 | J55: 0.153 | K55: 667 | L55: 50
A56: Price | B56: Price | C56: 4 | D56: 388 | E56: 273 | F56: 661 | G56: 0.587 | H56: 529 | I56: 132 | J56: 0.2 | K56: 502 | L56: 51
A57: Racine | B57: Racine | C57: 5 | D57: 0 | E57: 322 | F57: 322 | G57: 0 | H57: 322 | I57: 0 | J57: 0 | K57: 340 | L57: 52
A58: Richland | B58: Richland | C58: 2 | D58: 330 | E58: 332 | F58: 662 | G58: 0.498 | H58: 631 | I58: 31 | J58: 0.047 | K58: 454 | L58: 53
A59: Rock | B59: Rock | C59: 3 | D59: 219 | E59: 429 | F59: 648 | G59: 0.338 | H59: 646 | I59: 2 | J59: 0.003 | K59: 462 | L59: 54
A60: Rusk | B60: Rusk | C60: 2 | D60: 167 | E60: 0 | F60: 167 | G60: 1 | H60: 0 | I60: 167 | J60: 1 | K60: 142 | L60: 55
A61: Sauk | B61: Sauk | C61: 5 | D61: 529 | E61: 413 | F61: 942 | G61: 0.562 | H61: 942 | I61: 0 | J61: 0 | K61: 720 | L61: 56
A62: Sawyer | B62: Sawyer | C62: 3 | D62: 224 | E62: 0 | F62: 224 | G62: 1 | H62: 0 | I62: 224 | J62: 1 | K62: 180 | L62: 57
A63: Shawano | B63: Shawano | C63: 0 | D63: 0 | E63: 0 | F63: 0 | G63: 0 | H63: 0 | I63: 0 | J63: 0 | K63: 10 | L63: 58
A64: Sheboygan | B64: Sheboygan | C64: 4 | D64: 55 | E64: 208 | F64: 263 | G64: 0.209 | H64: 194 | I64: 69 | J64: 0.262 | K64: 336 | L64: 59
A65: St Croix | B65: St Croix | C65: 5 | D65: 301 | E65: 140 | F65: 441 | G65: 0.683 | H65: 262 | I65: 179 | J65: 0.406 | K65: 345 | L65: 60
A66: Taylor | B66: Taylor | C66: 1 | D66: 52 | E66: 0 | F66: 52 | G66: 1 | H66: 0 | I66: 52 | J66: 1 | K66: 103 | L66: 61
A67: Trempealeau | B67: Trempealeau | C67: 3 | D67: 66 | E67: 118 | F67: 184 | G67: 0.359 | H67: 118 | I67: 66 | J67: 0.359 | K67: 242 | L67: 62
A68: Vernon | B68: Vernon | C68: 4 | D68: 261 | E68: 447 | F68: 708 | G68: 0.369 | H68: 648 | I68: 60 | J68: 0.085 | K68: 507 | L68: 63
A69: Vilas | B69: Vilas | C69: 1 | D69: 0 | E69: 13 | F69: 13 | G69: 0 | H69: 0 | I69: 13 | J69: 1 | K69: 7 | L69: 64
A70: Walworth | B70: Walworth | C70: 2 | D70: 185 | E70: 3 | F70: 188 | G70: 0.984 | H70: 186 | I70: 2 | J70: 0.011 | K70: 213 | L70: 65
A71: Washburn | B71: Washburn | C71: 2 | D71: 50 | E71: 0 | F71: 50 | G71: 1 | H71: 0 | I71: 50 | J71: 1 | K71: 88 | L71: 66
A72: Washington | B72: Washington | C72: 8 | D72: 784 | E72: 487 | F72: 1271 | G72: 0.617 | H72: 1183 | I72: 88 | J72: 0.069 | K72: 1064 | L72: 67
A73: Waukesha | B73: Waukesha | C73: 17 | D73: 80 | E73: 1407 | F73: 1487 | G73: 0.054 | H73: 1482 | I73: 5 | J73: 0.003 | K73: 1139 | L73: 68
A74: Waupaca | B74: Waupaca | C74: 7 | D74: 527 | E74: 413 | F74: 940 | G74: 0.561 | H74: 787 | I74: 153 | J74: 0.163 | K74: 731 | L74: 69
A75: Waushara | B75: Waushara | C75: 3 | D75: 199 | E75: 104 | F75: 303 | G75: 0.657 | H75: 216 | I75: 87 | J75: 0.287 | K75: 255 | L75: 70
A76: Winnebago | B76: Winnebago | C76: 9 | D76: 690 | E76: 863 | F76: 1553 | G76: 0.444 | H76: 1435 | I76: 118 | J76: 0.076 | K76: 1169 | L76: 71
A77: Wood | B77: Wood | C77: 1 | D77: 65 | E77: 0 | F77: 65 | G77: 1 | H77: 0 | I77: 65 | J77: 1 | K77: 88 | L77: 72
B79: Totals: | C79: =SUM(C6:C78) -> 269 | D79: =SUM(D6:D78) -> 14045 | E79: =SUM(E6:E78) -> 18244 | F79: =SUM(F6:F78) -> 32289 | G79: =D79/F79 -> 0.4349778562 | H79: =SUM(H6:H78) -> 27194 | I79: =SUM(I6:I78) -> 5095 | J79: =I79/F79 -> 0.1577936759 | K79: =SUM(K6:K78) -> 26350

Sheet 2020
B1: 2020
R2: Enter the county name in column "S" to populate QSOs & Rank
N3: Enter County | P3: Rank
B4: County | C4: Stations | D4: CW Qs | E4: Phone Qs | F4: Total Qs | G4: % CW | H4: Fixed Qs | I4: Mobile Qs | J4: % Mobile Qs | K4: Rcvd Qs | L4: Rank | P4: =IFERROR(IF(N4="","",INDEX($L$6:$L$77,MATCH(N4,$B$6:$B$77,0))),"") ->  | R4: Sequence | S4: County | T4: CW Qs | U4: PH Qs | V4: Total Qs | W4: Rcvd Qs | X4: Rank
A6: Adams | B6: Adams | C6: 3 | D6: 36 | E6: 87 | F6: 123 | G6: 0.293 | H6: 87 | I6: 36 | J6: 0.293 | K6: 105 | L6: 1 | R6: 1 | T6: =IF(S6="","",VLOOKUP($S6,$B$6:$L$77,3,FALSE)) ->  | U6: =IF(S6="","",VLOOKUP($S6,$B$6:$L$77,4,FALSE)) ->  | V6: =IF(S6="","",VLOOKUP($S6,$B$6:$L$77,5,FALSE)) ->  | W6: =IF(S6="","",VLOOKUP($S6,$B$6:$L$77,10,FALSE)) ->  | X6: =IF(S6="","",INDEX($L$6:$L$77,MATCH(S6,$B$6:$B$77,0))) -> 
A7: Ashland | B7: Ashland | C7: 0 | D7: 0 | E7: 0 | F7: 0 | G7: 0 | H7: 0 | I7: 0 | J7: 0 | K7: 2 | L7: 2 | R7: 2 | T7: =IF(S7="","",VLOOKUP($S7,$B$6:$L$77,3,FALSE)) ->  | X7: =IF(S7="","",INDEX($L$6:$L$77,MATCH(S7,$B$6:$B$77,0))) -> 
A8: Barron | B8: Barron | C8: 2 | D8: 119 | E8: 1 | F8: 120 | G8: 0.992 | H8: 0 | I8: 120 | J8: 1 | K8: 96 | L8: 3 | R8: 3
A9: Bayfield | B9: Bayfield | C9: 0 | D9: 0 | E9: 0 | F9: 0 | G9: 0 | H9: 0 | I9: 0 | J9: 0 | K9: 18 | L9: 4 | R9: 4
A10: Brown | B10: Brown | C10: 6 | D10: 17 | E10: 185 | F10: 202 | G10: 0.084 | H10: 120 | I10: 82 | J10: 0.406 | K10: 304 | L10: 5 | R10: 5
A11: Buffalo | B11: Buffalo | C11: 4 | D11: 134 | E11: 234 | F11: 368 | G11: 0.364 | H11: 222 | I11: 146 | J11: 0.397 | K11: 283 | L11: 6 | R11: 6
A12: Burnett | B12: Burnett | C12: 2 | D12: 0 | E12: 86 | F12: 86 | G12: 0 | H12: 86 | I12: 0 | J12: 0 | K12: 69 | L12: 7 | R12: 7
A13: Calumet | B13: Calumet | C13: 3 | D13: 0 | E13: 249 | F13: 249 | G13: 0 | H13: 216 | I13: 33 | J13: 0.133 | K13: 213 | L13: 8 | R13: 8
A14: Chippewa | B14: Chippewa | C14: 3 | D14: 82 | E14: 1 | F14: 83 | G14: 0.988 | H14: 0 | I14: 83 | J14: 1 | K14: 148 | L14: 9 | R14: 9
A15: Clark | B15: Clark | C15: 4 | D15: 174 | E15: 38 | F15: 212 | G15: 0.821 | H15: 37 | I15: 175 | J15: 0.825 | K15: 169 | L15: 10 | R15: 10
A16: Columbia | B16: Columbia | C16: 2 | D16: 22 | E16: 87 | F16: 109 | G16: 0.202 | H16: 87 | I16: 22 | J16: 0.202 | K16: 168 | L16: 11 | R16: 11
A17: Crawford | B17: Crawford | C17: 1 | D17: 0 | E17: 62 | F17: 62 | G17: 0 | H17: 62 | I17: 0 | J17: 0 | K17: 99 | L17: 12 | R17: 12
A18: Dane | B18: Dane | C18: 10 | D18: 431 | E18: 487 | F18: 918 | G18: 0.469 | H18: 892 | I18: 26 | J18: 0.028 | K18: 827 | L18: 13 | R18: 13
A19: Dodge | B19: Dodge | C19: 5 | D19: 154 | E19: 298 | F19: 452 | G19: 0.341 | H19: 426 | I19: 26 | J19: 0.058 | K19: 335 | L19: 14 | R19: 14
A20: Door | B20: Door | C20: 1 | D20: 55 | E20: 0 | F20: 55 | G20: 1 | H20: 55 | I20: 0 | J20: 0 | K20: 36 | L20: 15 | R20: 15
A21: Douglas | B21: Douglas | C21: 1 | D21: 0 | E21: 93 | F21: 93 | G21: 0 | H21: 93 | I21: 0 | J21: 0 | K21: 321 | L21: 16 | R21: 16
A22: Dunn | B22: Dunn | C22: 3 | D22: 149 | E22: 0 | F22: 149 | G22: 1 | H22: 0 | I22: 149 | J22: 1 | K22: 218 | L22: 17 | R22: 17
A23: Eau Claire | B23: Eau Claire | C23: 4 | D23: 143 | E23: 171 | F23: 314 | G23: 0.455 | H23: 191 | I23: 123 | J23: 0.392 | K23: 440 | L23: 18 | R23: 18
A24: Florence | B24: Florence | C24: 1 | D24: 32 | E24: 0 | F24: 32 | G24: 1 | H24: 0 | I24: 32 | J24: 1 | K24: 30 | L24: 19 | R24: 19
A25: Fond du Lac | B25: Fond du Lac | C25: 6 | D25: 0 | E25: 649 | F25: 649 | G25: 0 | H25: 636 | I25: 13 | J25: 0.02 | K25: 446 | L25: 20 | R25: 20
A26: Forest | B26: Forest | C26: 2 | D26: 50 | E26: 27 | F26: 77 | G26: 0.649 | H26: 27 | I26: 50 | J26: 0.649 | K26: 65 | L26: 21 | R26: 21
A27: Grant | B27: Grant | C27: 8 | D27: 276 | E27: 490 | F27: 766 | G27: 0.36 | H27: 763 | I27: 3 | J27: 0.004 | K27: 553 | L27: 22 | R27: 22
A28: Green | B28: Green | C28: 3 | D28: 44 | E28: 120 | F28: 164 | G28: 0.268 | H28: 164 | I28: 0 | J28: 0 | K28: 111 | L28: 23 | R28: 23
A29: Green Lake | B29: Green Lake | C29: 2 | D29: 40 | E29: 16 | F29: 56 | G29: 0.714 | H29: 0 | I29: 56 | J29: 1 | K29: 42 | L29: 24 | R29: 24
A30: Iowa | B30: Iowa | C30: 1 | D30: 0 | E30: 185 | F30: 185 | G30: 0 | H30: 185 | I30: 0 | J30: 0 | K30: 119 | L30: 25 | R30: 25
A31: Iron | B31: Iron | C31: 0 | D31: 0 | E31: 0 | F31: 0 | G31: 0 | H31: 0 | I31: 0 | J31: 0 | K31: 0 | L31: 26 | R31: 26
A32: Jackson | B32: Jackson | C32: 2 | D32: 96 | E32: 0 | F32: 96 | G32: 1 | H32: 0 | I32: 96 | J32: 1 | K32: 68 | L32: 27 | R32: 27
A33: Jefferson | B33: Jefferson | C33: 2 | D33: 228 | E33: 47 | F33: 275 | G33: 0.829 | H33: 255 | I33: 20 | J33: 0.073 | K33: 262 | L33: 28 | R33: 28
A34: Juneau | B34: Juneau | C34: 1 | D34: 38 | E34: 0 | F34: 38 | G34: 1 | H34: 0 | I34: 38 | J34: 1 | K34: 27 | L34: 29 | R34: 29
A35: Kenosha | B35: Kenosha | C35: 5 | D35: 792 | E35: 549 | F35: 1341 | G35: 0.591 | H35: 1341 | I35: 0 | J35: 0 | K35: 827 | L35: 30 | R35: 30
A36: Kewaunee | B36: Kewaunee | C36: 2 | D36: 42 | E36: 18 | F36: 60 | G36: 0.7 | H36: 0 | I36: 60 | J36: 1 | K36: 88 | L36: 31
A37: La Crosse | B37: La Crosse | C37: 3 | D37: 13 | E37: 435 | F37: 448 | G37: 0.029 | H37: 448 | I37: 0 | J37: 0 | K37: 305 | L37: 32 | R37: Average need out of 72. A lower number is more needed overall: | X37: =(IFERROR(SUM(X6:X36)/COUNTIF(X6:X35,">0"),"")) -> 
A38: Lafayette | B38: Lafayette | C38: 2 | D38: 278 | E38: 84 | F38: 362 | G38: 0.768 | H38: 362 | I38: 0 | J38: 0 | K38: 256 | L38: 33
A39: Langlade | B39: Langlade | C39: 1 | D39: 47 | E39: 0 | F39: 47 | G39: 1 | H39: 0 | I39: 47 | J39: 1 | K39: 39 | L39: 34
A40: Lincoln | B40: Lincoln | C40: 2 | D40: 45 | E40: 2 | F40: 47 | G40: 0.957 | H40: 2 | I40: 45 | J40: 0.957 | K40: 41 | L40: 35
A41: Manitowoc | B41: Manitowoc | C41: 2 | D41: 1 | E41: 114 | F41: 115 | G41: 0.009 | H41: 100 | I41: 15 | J41: 0.13 | K41: 118 | L41: 36
A42: Marathon | B42: Marathon | C42: 7 | D42: 118 | E42: 187 | F42: 305 | G42: 0.387 | H42: 171 | I42: 134 | J42: 0.439 | K42: 364 | L42: 37
A43: Marinette | B43: Marinette | C43: 3 | D43: 59 | E43: 101 | F43: 160 | G43: 0.369 | H43: 101 | I43: 59 | J43: 0.369 | K43: 120 | L43: 38
A44: Marquette | B44: Marquette | C44: 1 | D44: 33 | E44: 0 | F44: 33 | G44: 1 | H44: 0 | I44: 33 | J44: 1 | K44: 30 | L44: 39
A45: Menominee | B45: Menominee | C45: 3 | D45: 102 | E45: 10 | F45: 112 | G45: 0.911 | H45: 0 | I45: 112 | J45: 1 | K45: 82 | L45: 40
A46: Milwaukee | B46: Milwaukee | C46: 20 | D46: 1823 | E46: 1637 | F46: 3460 | G46: 0.527 | H46: 3423 | I46: 37 | J46: 0.011 | K46: 2642 | L46: 41
A47: Monroe | B47: Monroe | C47: 1 | D47: 29 | E47: 0 | F47: 29 | G47: 1 | H47: 0 | I47: 29 | J47: 1 | K47: 25 | L47: 42
A48: Oconto | B48: Oconto | C48: 4 | D48: 98 | E48: 28 | F48: 126 | G48: 0.778 | H48: 0 | I48: 126 | J48: 1 | K48: 100 | L48: 43
A49: Oneida | B49: Oneida | C49: 0 | D49: 0 | E49: 0 | F49: 0 | G49: 0 | H49: 0 | I49: 0 | J49: 0 | K49: 23 | L49: 44
A50: Outagamie | B50: Outagamie | C50: 14 | D50: 302 | E50: 523 | F50: 825 | G50: 0.366 | H50: 706 | I50: 119 | J50: 0.144 | K50: 809 | L50: 45
A51: Ozaukee | B51: Ozaukee | C51: 7 | D51: 361 | E51: 969 | F51: 1330 | G51: 0.271 | H51: 1293 | I51: 37 | J51: 0.028 | K51: 663 | L51: 46
A52: Pepin | B52: Pepin | C52: 3 | D52: 164 | E52: 3 | F52: 167 | G52: 0.982 | H52: 0 | I52: 167 | J52: 1 | K52: 133 | L52: 47
A53: Pierce | B53: Pierce | C53: 2 | D53: 145 | E53: 0 | F53: 145 | G53: 1 | H53: 0 | I53: 145 | J53: 1 | K53: 124 | L53: 48
A54: Polk | B54: Polk | C54: 0 | D54: 0 | E54: 0 | F54: 0 | G54: 0 | H54: 0 | I54: 0 | J54: 0 | K54: 7 | L54: 49
A55: Portage | B55: Portage | C55: 6 | D55: 466 | E55: 330 | F55: 796 | G55: 0.585 | H55: 700 | I55: 96 | J55: 0.121 | K55: 583 | L55: 50
A56: Price | B56: Price | C56: 2 | D56: 390 | E56: 122 | F56: 512 | G56: 0.762 | H56: 512 | I56: 0 | J56: 0 | K56: 526 | L56: 51
A57: Racine | B57: Racine | C57: 3 | D57: 0 | E57: 351 | F57: 351 | G57: 0 | H57: 351 | I57: 0 | J57: 0 | K57: 284 | L57: 52
A58: Richland | B58: Richland | C58: 1 | D58: 291 | E58: 228 | F58: 519 | G58: 0.561 | H58: 519 | I58: 0 | J58: 0 | K58: 364 | L58: 53
A59: Rock | B59: Rock | C59: 3 | D59: 399 | E59: 7 | F59: 406 | G59: 0.983 | H59: 378 | I59: 28 | J59: 0.069 | K59: 404 | L59: 54
A60: Rusk | B60: Rusk | C60: 2 | D60: 156 | E60: 1 | F60: 157 | G60: 0.994 | H60: 0 | I60: 157 | J60: 1 | K60: 130 | L60: 55
A61: Sauk | B61: Sauk | C61: 3 | D61: 98 | E61: 297 | F61: 395 | G61: 0.248 | H61: 395 | I61: 0 | J61: 0 | K61: 296 | L61: 56
A62: Sawyer | B62: Sawyer | C62: 0 | D62: 0 | E62: 0 | F62: 0 | G62: 0 | H62: 0 | I62: 0 | J62: 0 | K62: 0 | L62: 57
A63: Shawano | B63: Shawano | C63: 2 | D63: 0 | E63: 50 | F63: 50 | G63: 0 | H63: 0 | I63: 50 | J63: 1 | K63: 45 | L63: 58
A64: Sheboygan | B64: Sheboygan | C64: 3 | D64: 0 | E64: 173 | F64: 173 | G64: 0 | H64: 161 | I64: 12 | J64: 0.069 | K64: 217 | L64: 59
A65: St Croix | B65: St Croix | C65: 2 | D65: 88 | E65: 33 | F65: 121 | G65: 0.727 | H65: 33 | I65: 88 | J65: 0.727 | K65: 136 | L65: 60
A66: Taylor | B66: Taylor | C66: 2 | D66: 104 | E66: 1 | F66: 105 | G66: 0.99 | H66: 0 | I66: 105 | J66: 1 | K66: 127 | L66: 61
A67: Trempealeau | B67: Trempealeau | C67: 4 | D67: 156 | E67: 238 | F67: 394 | G67: 0.396 | H67: 234 | I67: 160 | J67: 0.406 | K67: 301 | L67: 62
A68: Vernon | B68: Vernon | C68: 1 | D68: 6 | E68: 205 | F68: 211 | G68: 0.028 | H68: 211 | I68: 0 | J68: 0 | K68: 143 | L68: 63
A69: Vilas | B69: Vilas | C69: 0 | D69: 0 | E69: 0 | F69: 0 | G69: 0 | H69: 0 | I69: 0 | J69: 0 | K69: 2 | L69: 64
A70: Walworth | B70: Walworth | C70: 3 | D70: 215 | E70: 60 | F70: 275 | G70: 0.782 | H70: 244 | I70: 31 | J70: 0.113 | K70: 242 | L70: 65
A71: Washburn | B71: Washburn | C71: 1 | D71: 269 | E71: 244 | F71: 513 | G71: 0.524 | H71: 513 | I71: 0 | J71: 0 | K71: 331 | L71: 66
A72: Washington | B72: Washington | C72: 7 | D72: 745 | E72: 419 | F72: 1164 | G72: 0.64 | H72: 1136 | I72: 28 | J72: 0.024 | K72: 806 | L72: 67
A73: Waukesha | B73: Waukesha | C73: 11 | D73: 136 | E73: 541 | F73: 677 | G73: 0.201 | H73: 629 | I73: 48 | J73: 0.071 | K73: 612 | L73: 68
A74: Waupaca | B74: Waupaca | C74: 7 | D74: 340 | E74: 274 | F74: 614 | G74: 0.554 | H74: 522 | I74: 92 | J74: 0.15 | K74: 462 | L74: 69
A75: Waushara | B75: Waushara | C75: 5 | D75: 76 | E75: 560 | F75: 636 | G75: 0.119 | H75: 566 | I75: 70 | J75: 0.11 | K75: 319 | L75: 70
A76: Winnebago | B76: Winnebago | C76: 7 | D76: 480 | E76: 595 | F76: 1075 | G76: 0.447 | H76: 982 | I76: 93 | J76: 0.087 | K76: 813 | L76: 71
A77: Wood | B77: Wood | C77: 4 | D77: 273 | E77: 173 | F77: 446 | G77: 0.612 | H77: 403 | I77: 43 | J77: 0.096 | K77: 382 | L77: 72
B79: Totals: | C79: =SUM(C6:C78) -> 243 | D79: =SUM(D6:D78) -> 11460 | E79: =SUM(E6:E78) -> 13175 | F79: =SUM(F6:F78) -> 24635 | G79: =D79/F79 -> 0.4651918003 | H79: =SUM(H6:H78) -> 21040 | I79: =SUM(I6:I78) -> 3595 | J79: =I79/F79 -> 0.1459305866 | K79: =SUM(K6:K78) -> 19895

Sheet 2019
B1: 2019
R2: Enter the county name in column "S" to populate QSOs & Rank
N3: Enter County | P3: Rank
B4: County | C4: Stations | D4: CW Qs | E4: Phone Qs | F4: Total Qs | G4: % CW | H4: Fixed Qs | I4: Mobile Qs | J4: % Mobile Qs | K4: Rcvd Qs | L4: Rank | P4: =IFERROR(IF(N4="","",INDEX($L$6:$L$77,MATCH(N4,$B$6:$B$77,0))),"") ->  | R4: Sequence | S4: County | T4: CW Qs | U4: PH Qs | V4: Total Qs | W4: Rcvd Qs | X4: Rank
A6: Adams | B6: Adams | C6: 2 | D6: 0 | E6: 30 | F6: 30 | G6: 0 | H6: 28 | I6: 2 | J6: 0.067 | K6: 33 | L6: 1 | R6: 1 | T6: =IF(S6="","",VLOOKUP($S6,$B$6:$L$77,3,FALSE)) ->  | U6: =IF(S6="","",VLOOKUP($S6,$B$6:$L$77,4,FALSE)) ->  | V6: =IF(S6="","",VLOOKUP($S6,$B$6:$L$77,5,FALSE)) ->  | W6: =IF(S6="","",VLOOKUP($S6,$B$6:$L$77,10,FALSE)) ->  | X6: =IF(S6="","",INDEX($L$6:$L$77,MATCH(S6,$B$6:$B$77,0))) -> 
A7: Ashland | B7: Ashland | C7: 0 | D7: 0 | E7: 0 | F7: 0 | G7: 0 | H7: 0 | I7: 0 | J7: 0 | K7: 1 | L7: 2 | R7: 2 | T7: =IF(S7="","",VLOOKUP($S7,$B$6:$L$77,3,FALSE)) ->  | X7: =IF(S7="","",INDEX($L$6:$L$77,MATCH(S7,$B$6:$B$77,0))) -> 
A8: Barron | B8: Barron | C8: 0 | D8: 0 | E8: 0 | F8: 0 | G8: 0 | H8: 0 | I8: 0 | J8: 0 | K8: 0 | L8: 3 | R8: 3
A9: Bayfield | B9: Bayfield | C9: 2 | D9: 171 | E9: 267 | F9: 438 | G9: 0.39 | H9: 438 | I9: 0 | J9: 0 | K9: 318 | L9: 4 | R9: 4
A10: Brown | B10: Brown | C10: 8 | D10: 322 | E10: 328 | F10: 650 | G10: 0.495 | H10: 523 | I10: 127 | J10: 0.195 | K10: 554 | L10: 5 | R10: 5
A11: Buffalo | B11: Buffalo | C11: 3 | D11: 28 | E11: 163 | F11: 191 | G11: 0.147 | H11: 147 | I11: 44 | J11: 0.23 | K11: 164 | L11: 6 | R11: 6
A12: Burnett | B12: Burnett | C12: 1 | D12: 0 | E12: 148 | F12: 148 | G12: 0 | H12: 148 | I12: 0 | J12: 0 | K12: 67 | L12: 7 | R12: 7
A13: Calumet | B13: Calumet | C13: 3 | D13: 72 | E13: 63 | F13: 135 | G13: 0.533 | H13: 62 | I13: 73 | J13: 0.541 | K13: 112 | L13: 8 | R13: 8
A14: Chippewa | B14: Chippewa | C14: 2 | D14: 43 | E14: 69 | F14: 112 | G14: 0.384 | H14: 66 | I14: 46 | J14: 0.411 | K14: 104 | L14: 9 | R14: 9
A15: Clark | B15: Clark | C15: 1 | D15: 49 | E15: 0 | F15: 49 | G15: 1 | H15: 0 | I15: 49 | J15: 1 | K15: 42 | L15: 10 | R15: 10
A16: Columbia | B16: Columbia | C16: 4 | D16: 20 | E16: 241 | F16: 261 | G16: 0.077 | H16: 227 | I16: 34 | J16: 0.13 | K16: 181 | L16: 11 | R16: 11
A17: Crawford | B17: Crawford | C17: 2 | D17: 51 | E17: 10 | F17: 61 | G17: 0.836 | H17: 10 | I17: 51 | J17: 0.836 | K17: 40 | L17: 12 | R17: 12
A18: Dane | B18: Dane | C18: 7 | D18: 247 | E18: 420 | F18: 667 | G18: 0.37 | H18: 640 | I18: 27 | J18: 0.04 | K18: 551 | L18: 13 | R18: 13
A19: Dodge | B19: Dodge | C19: 3 | D19: 143 | E19: 209 | F19: 352 | G19: 0.406 | H19: 326 | I19: 26 | J19: 0.074 | K19: 287 | L19: 14 | R19: 14
A20: Door | B20: Door | C20: 3 | D20: 97 | E20: 6 | F20: 103 | G20: 0.942 | H20: 44 | I20: 59 | J20: 0.573 | K20: 98 | L20: 15 | R20: 15
A21: Douglas | B21: Douglas | C21: 0 | D21: 0 | E21: 0 | F21: 0 | G21: 0 | H21: 0 | I21: 0 | J21: 0 | K21: 2 | L21: 16 | R21: 16
A22: Dunn | B22: Dunn | C22: 1 | D22: 65 | E22: 17 | F22: 82 | G22: 0.793 | H22: 0 | I22: 82 | J22: 1 | K22: 81 | L22: 17 | R22: 17
A23: Eau Claire | B23: Eau Claire | C23: 3 | D23: 230 | E23: 246 | F23: 476 | G23: 0.483 | H23: 476 | I23: 0 | J23: 0 | K23: 436 | L23: 18 | R23: 18
A24: Florence | B24: Florence | C24: 1 | D24: 80 | E24: 4 | F24: 84 | G24: 0.952 | H24: 0 | I24: 84 | J24: 1 | K24: 66 | L24: 19 | R24: 19
A25: Fond du Lac | B25: Fond du Lac | C25: 5 | D25: 99 | E25: 484 | F25: 583 | G25: 0.17 | H25: 555 | I25: 28 | J25: 0.048 | K25: 445 | L25: 20 | R25: 20
A26: Forest | B26: Forest | C26: 1 | D26: 71 | E26: 0 | F26: 71 | G26: 1 | H26: 0 | I26: 71 | J26: 1 | K26: 77 | L26: 21 | R26: 21
A27: Grant | B27: Grant | C27: 7 | D27: 512 | E27: 202 | F27: 714 | G27: 0.717 | H27: 714 | I27: 0 | J27: 0 | K27: 541 | L27: 22 | R27: 22
A28: Green | B28: Green | C28: 1 | D28: 0 | E28: 158 | F28: 158 | G28: 0 | H28: 158 | I28: 0 | J28: 0 | K28: 118 | L28: 23 | R28: 23
A29: Green Lake | B29: Green Lake | C29: 1 | D29: 0 | E29: 158 | F29: 158 | G29: 0 | H29: 158 | I29: 0 | J29: 0 | K29: 118 | L29: 24 | R29: 24
A30: Iowa | B30: Iowa | C30: 1 | D30: 19 | E30: 130 | F30: 149 | G30: 0.128 | H30: 149 | I30: 0 | J30: 0 | K30: 105 | L30: 25 | R30: 25
A31: Iron | B31: Iron | C31: 1 | D31: 0 | E31: 293 | F31: 293 | G31: 0 | H31: 293 | I31: 0 | J31: 0 | K31: 104 | L31: 26 | R31: 26
A32: Jackson | B32: Jackson | C32: 1 | D32: 46 | E32: 8 | F32: 54 | G32: 0.852 | H32: 0 | I32: 54 | J32: 1 | K32: 40 | L32: 27 | R32: 27
A33: Jefferson | B33: Jefferson | C33: 1 | D33: 161 | E33: 85 | F33: 246 | G33: 0.654 | H33: 246 | I33: 0 | J33: 0 | K33: 263 | L33: 28 | R33: 28
A34: Juneau | B34: Juneau | C34: 2 | D34: 48 | E34: 84 | F34: 132 | G34: 0.364 | H34: 71 | I34: 61 | J34: 0.462 | K34: 110 | L34: 29 | R34: 29
A35: Kenosha | B35: Kenosha | C35: 3 | D35: 367 | E35: 279 | F35: 646 | G35: 0.568 | H35: 614 | I35: 32 | J35: 0.05 | K35: 436 | L35: 30 | R35: 30
A36: Kewaunee | B36: Kewaunee | C36: 3 | D36: 84 | E36: 173 | F36: 257 | G36: 0.327 | H36: 170 | I36: 87 | J36: 0.339 | K36: 168 | L36: 31
A37: La Crosse | B37: La Crosse | C37: 3 | D37: 54 | E37: 299 | F37: 353 | G37: 0.153 | H37: 299 | I37: 54 | J37: 0.153 | K37: 262 | L37: 32 | R37: Average need out of 72. A lower number is more needed overall: | X37: =(IFERROR(SUM(X6:X36)/COUNTIF(X6:X35,">0"),"")) -> 
A38: Lafayette | B38: Lafayette | C38: 2 | D38: 252 | E38: 67 | F38: 319 | G38: 0.79 | H38: 319 | I38: 0 | J38: 0 | K38: 228 | L38: 33
A39: Langlade | B39: Langlade | C39: 1 | D39: 22 | E39: 0 | F39: 22 | G39: 1 | H39: 0 | I39: 22 | J39: 1 | K39: 19 | L39: 34
A40: Lincoln | B40: Lincoln | C40: 1 | D40: 25 | E40: 12 | F40: 37 | G40: 0.676 | H40: 37 | I40: 0 | J40: 0 | K40: 35 | L40: 35
A41: Manitowoc | B41: Manitowoc | C41: 3 | D41: 79 | E41: 48 | F41: 127 | G41: 0.622 | H41: 48 | I41: 79 | J41: 0.622 | K41: 110 | L41: 36
A42: Marathon | B42: Marathon | C42: 5 | D42: 26 | E42: 196 | F42: 222 | G42: 0.117 | H42: 183 | I42: 39 | J42: 0.176 | K42: 284 | L42: 37
A43: Marinette | B43: Marinette | C43: 1 | D43: 60 | E43: 0 | F43: 60 | G43: 1 | H43: 0 | I43: 60 | J43: 1 | K43: 51 | L43: 38
A44: Marquette | B44: Marquette | C44: 2 | D44: 32 | E44: 6 | F44: 38 | G44: 0.842 | H44: 0 | I44: 38 | J44: 1 | K44: 28 | L44: 39
A45: Menominee | B45: Menominee | C45: 1 | D45: 31 | E45: 0 | F45: 31 | G45: 1 | H45: 0 | I45: 31 | J45: 1 | K45: 24 | L45: 40
A46: Milwaukee | B46: Milwaukee | C46: 14 | D46: 434 | E46: 1002 | F46: 1436 | G46: 0.302 | H46: 1410 | I46: 26 | J46: 0.018 | K46: 1053 | L46: 41
A47: Monroe | B47: Monroe | C47: 2 | D47: 79 | E47: 4 | F47: 83 | G47: 0.952 | H47: 0 | I47: 83 | J47: 1 | K47: 57 | L47: 42
A48: Oconto | B48: Oconto | C48: 1 | D48: 52 | E48: 4 | F48: 56 | G48: 0.929 | H48: 0 | I48: 56 | J48: 1 | K48: 70 | L48: 43
A49: Oneida | B49: Oneida | C49: 0 | D49: 0 | E49: 0 | F49: 0 | G49: 0 | H49: 0 | I49: 0 | J49: 0 | K49: 47 | L49: 44
A50: Outagamie | B50: Outagamie | C50: 9 | D50: 149 | E50: 656 | F50: 805 | G50: 0.185 | H50: 753 | I50: 52 | J50: 0.065 | K50: 587 | L50: 45
A51: Ozaukee | B51: Ozaukee | C51: 4 | D51: 51 | E51: 325 | F51: 376 | G51: 0.136 | H51: 354 | I51: 22 | J51: 0.059 | K51: 276 | L51: 46
A52: Pepin | B52: Pepin | C52: 1 | D52: 33 | E52: 9 | F52: 42 | G52: 0.786 | H52: 0 | I52: 42 | J52: 1 | K52: 38 | L52: 47
A53: Pierce | B53: Pierce | C53: 0 | D53: 0 | E53: 0 | F53: 0 | G53: 0 | H53: 0 | I53: 0 | J53: 0 | K53: 12 | L53: 48
A54: Polk | B54: Polk | C54: 2 | D54: 0 | E54: 116 | F54: 116 | G54: 0 | H54: 116 | I54: 0 | J54: 0 | K54: 101 | L54: 49
A55: Portage | B55: Portage | C55: 5 | D55: 186 | E55: 343 | F55: 529 | G55: 0.352 | H55: 473 | I55: 56 | J55: 0.106 | K55: 350 | L55: 50
A56: Price | B56: Price | C56: 2 | D56: 170 | E56: 116 | F56: 286 | G56: 0.594 | H56: 286 | I56: 0 | J56: 0 | K56: 247 | L56: 51
A57: Racine | B57: Racine | C57: 3 | D57: 16 | E57: 161 | F57: 177 | G57: 0.09 | H57: 161 | I57: 16 | J57: 0.09 | K57: 103 | L57: 52
A58: Richland | B58: Richland | C58: 2 | D58: 207 | E58: 284 | F58: 491 | G58: 0.422 | H58: 491 | I58: 0 | J58: 0 | K58: 271 | L58: 53
A59: Rock | B59: Rock | C59: 5 | D59: 439 | E59: 554 | F59: 993 | G59: 0.442 | H59: 966 | I59: 27 | J59: 0.027 | K59: 594 | L59: 54
A60: Rusk | B60: Rusk | C60: 0 | D60: 0 | E60: 0 | F60: 0 | G60: 0 | H60: 0 | I60: 0 | J60: 0 | K60: 1 | L60: 55
A61: Sauk | B61: Sauk | C61: 5 | D61: 96 | E61: 327 | F61: 423 | G61: 0.227 | H61: 373 | I61: 50 | J61: 0.118 | K61: 346 | L61: 56
A62: Sawyer | B62: Sawyer | C62: 0 | D62: 0 | E62: 0 | F62: 0 | G62: 0 | H62: 0 | I62: 0 | J62: 0 | K62: 0 | L62: 57
A63: Shawano | B63: Shawano | C63: 2 | D63: 46 | E63: 12 | F63: 58 | G63: 0.793 | H63: 0 | I63: 58 | J63: 1 | K63: 49 | L63: 58
A64: Sheboygan | B64: Sheboygan | C64: 4 | D64: 19 | E64: 299 | F64: 318 | G64: 0.06 | H64: 299 | I64: 19 | J64: 0.06 | K64: 276 | L64: 59
A65: St Croix | B65: St Croix | C65: 1 | D65: 0 | E65: 23 | F65: 23 | G65: 0 | H65: 23 | I65: 0 | J65: 0 | K65: 32 | L65: 60
A66: Taylor | B66: Taylor | C66: 0 | D66: 0 | E66: 0 | F66: 0 | G66: 0 | H66: 0 | I66: 0 | J66: 0 | K66: 75 | L66: 61
A67: Trempealeau | B67: Trempealeau | C67: 1 | D67: 45 | E67: 13 | F67: 58 | G67: 0.776 | H67: 0 | I67: 58 | J67: 1 | K67: 143 | L67: 62
A68: Vernon | B68: Vernon | C68: 2 | D68: 60 | E68: 146 | F68: 206 | G68: 0.291 | H68: 146 | I68: 60 | J68: 0.291 | K68: 156 | L68: 63
A69: Vilas | B69: Vilas | C69: 0 | D69: 0 | E69: 0 | F69: 0 | G69: 0 | H69: 0 | I69: 0 | J69: 0 | K69: 2 | L69: 64
A70: Walworth | B70: Walworth | C70: 2 | D70: 211 | E70: 15 | F70: 226 | G70: 0.934 | H70: 193 | I70: 33 | J70: 0.146 | K70: 245 | L70: 65
A71: Washburn | B71: Washburn | C71: 1 | D71: 230 | E71: 122 | F71: 352 | G71: 0.653 | H71: 352 | I71: 0 | J71: 0 | K71: 251 | L71: 66
A72: Washington | B72: Washington | C72: 7 | D72: 481 | E72: 682 | F72: 1163 | G72: 0.414 | H72: 1163 | I72: 0 | J72: 0 | K72: 787 | L72: 67
A73: Waukesha | B73: Waukesha | C73: 13 | D73: 545 | E73: 947 | F73: 1492 | G73: 0.365 | H73: 1492 | I73: 0 | J73: 0 | K73: 1190 | L73: 68
A74: Waupaca | B74: Waupaca | C74: 4 | D74: 239 | E74: 384 | F74: 623 | G74: 0.384 | H74: 619 | I74: 4 | J74: 0.006 | K74: 439 | L74: 69
A75: Waushara | B75: Waushara | C75: 3 | D75: 71 | E75: 422 | F75: 493 | G75: 0.144 | H75: 462 | I75: 31 | J75: 0.063 | K75: 254 | L75: 70
A76: Winnebago | B76: Winnebago | C76: 6 | D76: 138 | E76: 862 | F76: 1000 | G76: 0.138 | H76: 956 | I76: 44 | J76: 0.044 | K76: 620 | L76: 71
A77: Wood | B77: Wood | C77: 5 | D77: 50 | E77: 224 | F77: 274 | G77: 0.182 | H77: 233 | I77: 41 | J77: 0.15 | K77: 307 | L77: 72
B79: Totals: | C79: =SUM(C6:C78) -> 198 | D79: =SUM(D6:D78) -> 7653 | E79: =SUM(E6:E78) -> 12955 | F79: =SUM(F6:F78) -> 20608 | G79: =D79/F79 -> 0.3713606366 | H79: =SUM(H6:H78) -> 18470 | I79: =SUM(I6:I78) -> 2138 | J79: =I79/F79 -> 0.103746118 | K79: =SUM(K6:K78) -> 15682

Sheet 2018
B1: 2018
R2: Enter the county name in column "S" to populate QSOs & Rank
N3: Enter County | P3: Rank
B4: County | C4: Stations | D4: CW Qs | E4: Phone Qs | F4: Total Qs | G4: % CW | H4: Fixed Qs | I4: Mobile Qs | J4: % Mobile Qs | K4: Rcvd Qs | L4: Rank | P4: =IFERROR(IF(N4="","",INDEX($L$6:$L$77,MATCH(N4,$B$6:$B$77,0))),"") ->  | R4: Sequence | S4: County | T4: CW Qs | U4: PH Qs | V4: Total Qs | W4: Rcvd Qs | X4: Rank
A6: Adams | B6: Adams | C6: 1 | D6: 30 | E6: 0 | F6: 30 | G6: 1 | H6: 0 | I6: 30 | J6: 1 | K6: 30 | L6: 1 | R6: 1 | T6: =IF(S6="","",VLOOKUP($S6,$B$6:$L$77,3,FALSE)) ->  | U6: =IF(S6="","",VLOOKUP($S6,$B$6:$L$77,4,FALSE)) ->  | V6: =IF(S6="","",VLOOKUP($S6,$B$6:$L$77,5,FALSE)) ->  | W6: =IF(S6="","",VLOOKUP($S6,$B$6:$L$77,10,FALSE)) ->  | X6: =IF(S6="","",INDEX($L$6:$L$77,MATCH(S6,$B$6:$B$77,0))) -> 
A7: Ashland | B7: Ashland | C7: 0 | D7: 0 | E7: 0 | F7: 0 | G7: 0 | H7: 0 | I7: 0 | J7: 0 | K7: 3 | L7: 2 | R7: 2 | T7: =IF(S7="","",VLOOKUP($S7,$B$6:$L$77,3,FALSE)) ->  | X7: =IF(S7="","",INDEX($L$6:$L$77,MATCH(S7,$B$6:$B$77,0))) -> 
A8: Barron | B8: Barron | C8: 1 | D8: 6 | E8: 12 | F8: 18 | G8: 0.333 | H8: 0 | I8: 18 | J8: 1 | K8: 50 | L8: 3 | R8: 3
A9: Bayfield | B9: Bayfield | C9: 1 | D9: 17 | E9: 0 | F9: 17 | G9: 1 | H9: 0 | I9: 17 | J9: 1 | K9: 30 | L9: 4 | R9: 4
A10: Brown | B10: Brown | C10: 11 | D10: 40 | E10: 585 | F10: 625 | G10: 0.064 | H10: 519 | I10: 106 | J10: 0.17 | K10: 386 | L10: 5 | R10: 5
A11: Buffalo | B11: Buffalo | C11: 5 | D11: 108 | E11: 91 | F11: 199 | G11: 0.543 | H11: 91 | I11: 108 | J11: 0.543 | K11: 167 | L11: 6 | R11: 6
A12: Burnett | B12: Burnett | C12: 4 | D12: 65 | E12: 126 | F12: 191 | G12: 0.34 | H12: 126 | I12: 65 | J12: 0.34 | K12: 164 | L12: 7 | R12: 7
A13: Calumet | B13: Calumet | C13: 3 | D13: 0 | E13: 108 | F13: 108 | G13: 0 | H13: 91 | I13: 17 | J13: 0.157 | K13: 93 | L13: 8 | R13: 8
A14: Chippewa | B14: Chippewa | C14: 1 | D14: 51 | E14: 0 | F14: 51 | G14: 1 | H14: 0 | I14: 51 | J14: 1 | K14: 110 | L14: 9 | R14: 9
A15: Clark | B15: Clark | C15: 2 | D15: 103 | E15: 0 | F15: 103 | G15: 1 | H15: 0 | I15: 103 | J15: 1 | K15: 74 | L15: 10 | R15: 10
A16: Columbia | B16: Columbia | C16: 4 | D16: 0 | E16: 190 | F16: 190 | G16: 0 | H16: 147 | I16: 43 | J16: 0.226 | K16: 176 | L16: 11 | R16: 11
A17: Crawford | B17: Crawford | C17: 1 | D17: 29 | E17: 1 | F17: 30 | G17: 0.967 | H17: 0 | I17: 30 | J17: 1 | K17: 28 | L17: 12 | R17: 12
A18: Dane | B18: Dane | C18: 10 | D18: 741 | E18: 775 | F18: 1516 | G18: 0.489 | H18: 1457 | I18: 59 | J18: 0.039 | K18: 1050 | L18: 13 | R18: 13
A19: Dodge | B19: Dodge | C19: 8 | D19: 323 | E19: 387 | F19: 710 | G19: 0.455 | H19: 668 | I19: 42 | J19: 0.059 | K19: 516 | L19: 14 | R19: 14
A20: Door | B20: Door | C20: 1 | D20: 0 | E20: 12 | F20: 12 | G20: 0 | H20: 0 | I20: 12 | J20: 1 | K20: 36 | L20: 15 | R20: 15
A21: Douglas | B21: Douglas | C21: 3 | D21: 264 | E21: 221 | F21: 485 | G21: 0.544 | H21: 471 | I21: 14 | J21: 0.029 | K21: 296 | L21: 16 | R21: 16
A22: Dunn | B22: Dunn | C22: 2 | D22: 54 | E22: 12 | F22: 66 | G22: 0.818 | H22: 0 | I22: 66 | J22: 1 | K22: 58 | L22: 17 | R22: 17
A23: Eau Claire | B23: Eau Claire | C23: 5 | D23: 696 | E23: 1431 | F23: 2127 | G23: 0.327 | H23: 2083 | I23: 44 | J23: 0.021 | K23: 1009 | L23: 18 | R23: 18
A24: Florence | B24: Florence | C24: 2 | D24: 97 | E24: 4 | F24: 101 | G24: 0.96 | H24: 0 | I24: 101 | J24: 1 | K24: 149 | L24: 19 | R24: 19
A25: Fond du Lac | B25: Fond du Lac | C25: 10 | D25: 26 | E25: 780 | F25: 806 | G25: 0.032 | H25: 773 | I25: 33 | J25: 0.041 | K25: 587 | L25: 20 | R25: 20
A26: Forest | B26: Forest | C26: 2 | D26: 130 | E26: 17 | F26: 147 | G26: 0.884 | H26: 0 | I26: 147 | J26: 1 | K26: 78 | L26: 21 | R26: 21
A27: Grant | B27: Grant | C27: 6 | D27: 385 | E27: 272 | F27: 657 | G27: 0.586 | H27: 657 | I27: 0 | J27: 0 | K27: 511 | L27: 22 | R27: 22
A28: Green | B28: Green | C28: 1 | D28: 20 | E28: 0 | F28: 20 | G28: 1 | H28: 0 | I28: 20 | J28: 1 | K28: 23 | L28: 23 | R28: 23
A29: Green Lake | B29: Green Lake | C29: 1 | D29: 25 | E29: 0 | F29: 25 | G29: 1 | H29: 0 | I29: 25 | J29: 1 | K29: 23 | L29: 24 | R29: 24
A30: Iowa | B30: Iowa | C30: 1 | D30: 0 | E30: 2 | F30: 2 | G30: 0 | H30: 0 | I30: 2 | J30: 1 | K30: 2 | L30: 25 | R30: 25
A31: Iron | B31: Iron | C31: 1 | D31: 26 | E31: 0 | F31: 26 | G31: 1 | H31: 0 | I31: 26 | J31: 1 | K31: 22 | L31: 26 | R31: 26
A32: Jackson | B32: Jackson | C32: 2 | D32: 87 | E32: 0 | F32: 87 | G32: 1 | H32: 0 | I32: 87 | J32: 1 | K32: 61 | L32: 27 | R32: 27
A33: Jefferson | B33: Jefferson | C33: 4 | D33: 240 | E33: 163 | F33: 403 | G33: 0.596 | H33: 372 | I33: 31 | J33: 0.077 | K33: 397 | L33: 28 | R33: 28
A34: Juneau | B34: Juneau | C34: 1 | D34: 41 | E34: 0 | F34: 41 | G34: 1 | H34: 0 | I34: 41 | J34: 1 | K34: 30 | L34: 29 | R34: 29
A35: Kenosha | B35: Kenosha | C35: 2 | D35: 366 | E35: 303 | F35: 669 | G35: 0.547 | H35: 669 | I35: 0 | J35: 0 | K35: 447 | L35: 30 | R35: 30
A36: Kewaunee | B36: Kewaunee | C36: 3 | D36: 0 | E36: 168 | F36: 168 | G36: 0 | H36: 144 | I36: 24 | J36: 0.143 | K36: 154 | L36: 31
A37: La Crosse | B37: La Crosse | C37: 5 | D37: 108 | E37: 762 | F37: 870 | G37: 0.124 | H37: 845 | I37: 25 | J37: 0.029 | K37: 504 | L37: 32 | R37: Average need out of 72. A lower number is more needed overall: | X37: =(IFERROR(SUM(X6:X36)/COUNTIF(X6:X35,">0"),"")) -> 
A38: Lafayette | B38: Lafayette | C38: 3 | D38: 216 | E38: 47 | F38: 263 | G38: 0.821 | H38: 251 | I38: 12 | J38: 0.046 | K38: 195 | L38: 33
A39: Langlade | B39: Langlade | C39: 3 | D39: 94 | E39: 1 | F39: 95 | G39: 0.989 | H39: 4 | I39: 91 | J39: 0.958 | K39: 108 | L39: 34
A40: Lincoln | B40: Lincoln | C40: 3 | D40: 75 | E40: 20 | F40: 95 | G40: 0.789 | H40: 49 | I40: 46 | J40: 0.484 | K40: 88 | L40: 35
A41: Manitowoc | B41: Manitowoc | C41: 2 | D41: 0 | E41: 30 | F41: 30 | G41: 0 | H41: 0 | I41: 30 | J41: 1 | K41: 21 | L41: 36
A42: Marathon | B42: Marathon | C42: 3 | D42: 86 | E42: 80 | F42: 166 | G42: 0.518 | H42: 80 | I42: 86 | J42: 0.518 | K42: 241 | L42: 37
A43: Marinette | B43: Marinette | C43: 2 | D43: 71 | E43: 50 | F43: 121 | G43: 0.587 | H43: 50 | I43: 71 | J43: 0.587 | K43: 112 | L43: 38
A44: Marquette | B44: Marquette | C44: 1 | D44: 33 | E44: 0 | F44: 33 | G44: 1 | H44: 0 | I44: 33 | J44: 1 | K44: 72 | L44: 39
A45: Menominee | B45: Menominee | C45: 1 | D45: 36 | E45: 0 | F45: 36 | G45: 1 | H45: 0 | I45: 36 | J45: 1 | K45: 26 | L45: 40
A46: Milwaukee | B46: Milwaukee | C46: 16 | D46: 373 | E46: 1203 | F46: 1576 | G46: 0.237 | H46: 1534 | I46: 42 | J46: 0.027 | K46: 1125 | L46: 41
A47: Monroe | B47: Monroe | C47: 1 | D47: 35 | E47: 0 | F47: 35 | G47: 1 | H47: 0 | I47: 35 | J47: 1 | K47: 25 | L47: 42
A48: Oconto | B48: Oconto | C48: 3 | D48: 78 | E48: 98 | F48: 176 | G48: 0.443 | H48: 84 | I48: 92 | J48: 0.523 | K48: 151 | L48: 43
A49: Oneida | B49: Oneida | C49: 3 | D49: 53 | E49: 121 | F49: 174 | G49: 0.305 | H49: 121 | I49: 53 | J49: 0.305 | K49: 150 | L49: 44
A50: Outagamie | B50: Outagamie | C50: 9 | D50: 149 | E50: 204 | F50: 353 | G50: 0.422 | H50: 299 | I50: 54 | J50: 0.153 | K50: 340 | L50: 45
A51: Ozaukee | B51: Ozaukee | C51: 8 | D51: 126 | E51: 406 | F51: 532 | G51: 0.237 | H51: 478 | I51: 54 | J51: 0.102 | K51: 393 | L51: 46
A52: Pepin | B52: Pepin | C52: 2 | D52: 79 | E52: 0 | F52: 79 | G52: 1 | H52: 0 | I52: 79 | J52: 1 | K52: 71 | L52: 47
A53: Pierce | B53: Pierce | C53: 2 | D53: 108 | E53: 0 | F53: 108 | G53: 1 | H53: 0 | I53: 108 | J53: 1 | K53: 84 | L53: 48
A54: Polk | B54: Polk | C54: 3 | D54: 38 | E54: 80 | F54: 118 | G54: 0.322 | H54: 80 | I54: 38 | J54: 0.322 | K54: 129 | L54: 49
A55: Portage | B55: Portage | C55: 5 | D55: 443 | E55: 554 | F55: 997 | G55: 0.444 | H55: 946 | I55: 51 | J55: 0.051 | K55: 587 | L55: 50
A56: Price | B56: Price | C56: 4 | D56: 174 | E56: 183 | F56: 357 | G56: 0.487 | H56: 329 | I56: 28 | J56: 0.078 | K56: 306 | L56: 51
A57: Racine | B57: Racine | C57: 5 | D57: 34 | E57: 348 | F57: 382 | G57: 0.089 | H57: 370 | I57: 12 | J57: 0.031 | K57: 296 | L57: 52
A58: Richland | B58: Richland | C58: 1 | D58: 269 | E58: 192 | F58: 461 | G58: 0.584 | H58: 461 | I58: 0 | J58: 0 | K58: 284 | L58: 53
A59: Rock | B59: Rock | C59: 3 | D59: 267 | E59: 90 | F59: 357 | G59: 0.748 | H59: 324 | I59: 33 | J59: 0.092 | K59: 316 | L59: 54
A60: Rusk | B60: Rusk | C60: 1 | D60: 0 | E60: 141 | F60: 141 | G60: 0 | H60: 141 | I60: 0 | J60: 0 | K60: 99 | L60: 55
A61: Sauk | B61: Sauk | C61: 7 | D61: 61 | E61: 714 | F61: 775 | G61: 0.079 | H61: 730 | I61: 45 | J61: 0.058 | K61: 288 | L61: 56
A62: Sawyer | B62: Sawyer | C62: 1 | D62: 42 | E62: 0 | F62: 42 | G62: 1 | H62: 0 | I62: 42 | J62: 1 | K62: 30 | L62: 57
A63: Shawano | B63: Shawano | C63: 1 | D63: 31 | E63: 0 | F63: 31 | G63: 1 | H63: 0 | I63: 31 | J63: 1 | K63: 61 | L63: 58
A64: Sheboygan | B64: Sheboygan | C64: 8 | D64: 304 | E64: 736 | F64: 1040 | G64: 0.292 | H64: 974 | I64: 66 | J64: 0.063 | K64: 803 | L64: 59
A65: St Croix | B65: St Croix | C65: 2 | D65: 68 | E65: 15 | F65: 83 | G65: 0.819 | H65: 0 | I65: 83 | J65: 1 | K65: 68 | L65: 60
A66: Taylor | B66: Taylor | C66: 0 | D66: 0 | E66: 0 | F66: 0 | G66: 0 | H66: 0 | I66: 0 | J66: 0 | K66: 34 | L66: 61
A67: Trempealeau | B67: Trempealeau | C67: 2 | D67: 65 | E67: 0 | F67: 65 | G67: 1 | H67: 0 | I67: 65 | J67: 1 | K67: 50 | L67: 62
A68: Vernon | B68: Vernon | C68: 3 | D68: 102 | E68: 309 | F68: 411 | G68: 0.248 | H68: 382 | I68: 29 | J68: 0.071 | K68: 279 | L68: 63
A69: Vilas | B69: Vilas | C69: 3 | D69: 24 | E69: 120 | F69: 144 | G69: 0.167 | H69: 117 | I69: 27 | J69: 0.188 | K69: 114 | L69: 64
A70: Walworth | B70: Walworth | C70: 3 | D70: 153 | E70: 44 | F70: 197 | G70: 0.777 | H70: 182 | I70: 15 | J70: 0.076 | K70: 181 | L70: 65
A71: Washburn | B71: Washburn | C71: 2 | D71: 84 | E71: 0 | F71: 84 | G71: 1 | H71: 0 | I71: 84 | J71: 1 | K71: 84 | L71: 66
A72: Washington | B72: Washington | C72: 9 | D72: 188 | E72: 460 | F72: 648 | G72: 0.29 | H72: 607 | I72: 41 | J72: 0.063 | K72: 400 | L72: 67
A73: Waukesha | B73: Waukesha | C73: 13 | D73: 466 | E73: 949 | F73: 1415 | G73: 0.329 | H73: 1400 | I73: 15 | J73: 0.011 | K73: 1088 | L73: 68
A74: Waupaca | B74: Waupaca | C74: 4 | D74: 268 | E74: 146 | F74: 414 | G74: 0.647 | H74: 343 | I74: 71 | J74: 0.171 | K74: 314 | L74: 69
A75: Waushara | B75: Waushara | C75: 2 | D75: 50 | E75: 51 | F75: 101 | G75: 0.495 | H75: 51 | I75: 50 | J75: 0.495 | K75: 118 | L75: 70
A76: Winnebago | B76: Winnebago | C76: 5 | D76: 250 | E76: 445 | F76: 695 | G76: 0.36 | H76: 686 | I76: 9 | J76: 0.013 | K76: 547 | L76: 71
A77: Wood | B77: Wood | C77: 3 | D77: 111 | E77: 102 | F77: 213 | G77: 0.521 | H77: 163 | I77: 50 | J77: 0.235 | K77: 203 | L77: 72
B79: Totals: | C79: =SUM(C6:C78) -> 256 | D79: =SUM(D6:D78) -> 9182 | E79: =SUM(E6:E78) -> 14361 | F79: =SUM(F6:F78) -> 23543 | G79: =D79/F79 -> 0.3900097694 | H79: =SUM(H6:H78) -> 20349 | I79: =SUM(I6:I78) -> 3194 | J79: =I79/F79 -> 0.1356666525 | K79: =SUM(K6:K78) -> 17145

Sheet 2017
B1: 2017
R2: Enter the county name in column "S" to populate QSOs & Rank
N3: Enter County | P3: Rank
B4: County | C4: Stations | D4: CW Qs | E4: Phone Qs | F4: Total Qs | G4: % CW | H4: Fixed Qs | I4: Mobile Qs | J4: % Mobile Qs | K4: Rcvd Qs | L4: Rank | P4: =IFERROR(IF(N4="","",INDEX($L$6:$L$77,MATCH(N4,$B$6:$B$77,0))),"") ->  | R4: Sequence | S4: County | T4: CW Qs | U4: PH Qs | V4: Total Qs | W4: Rcvd Qs | X4: Rank
A6: Adams | B6: Adams | C6: 2 | D6: 80 | E6: 1 | F6: 81 | G6: 0.988 | H6: 0 | I6: 81 | J6: 1 | K6: 61 | L6: 1 | R6: 1 | T6: =IF(S6="","",VLOOKUP($S6,$B$6:$L$77,3,FALSE)) ->  | U6: =IF(S6="","",VLOOKUP($S6,$B$6:$L$77,4,FALSE)) ->  | V6: =IF(S6="","",VLOOKUP($S6,$B$6:$L$77,5,FALSE)) ->  | W6: =IF(S6="","",VLOOKUP($S6,$B$6:$L$77,10,FALSE)) ->  | X6: =IF(S6="","",INDEX($L$6:$L$77,MATCH(S6,$B$6:$B$77,0))) -> 
A7: Ashland | B7: Ashland | C7: 2 | D7: 103 | E7: 0 | F7: 103 | G7: 1 | H7: 0 | I7: 103 | J7: 1 | K7: 80 | L7: 2 | R7: 2 | T7: =IF(S7="","",VLOOKUP($S7,$B$6:$L$77,3,FALSE)) ->  | X7: =IF(S7="","",INDEX($L$6:$L$77,MATCH(S7,$B$6:$B$77,0))) -> 
A8: Barron | B8: Barron | C8: 3 | D8: 118 | E8: 0 | F8: 118 | G8: 1 | H8: 0 | I8: 118 | J8: 1 | K8: 88 | L8: 3 | R8: 3
A9: Bayfield | B9: Bayfield | C9: 3 | D9: 133 | E9: 0 | F9: 133 | G9: 1 | H9: 0 | I9: 133 | J9: 1 | K9: 93 | L9: 4 | R9: 4
A10: Brown | B10: Brown | C10: 11 | D10: 96 | E10: 872 | F10: 968 | G10: 0.099 | H10: 862 | I10: 106 | J10: 0.11 | K10: 713 | L10: 5 | R10: 5
A11: Buffalo | B11: Buffalo | C11: 5 | D11: 52 | E11: 59 | F11: 111 | G11: 0.468 | H11: 59 | I11: 52 | J11: 0.468 | K11: 97 | L11: 6 | R11: 6
A12: Burnett | B12: Burnett | C12: 3 | D12: 62 | E12: 0 | F12: 62 | G12: 1 | H12: 0 | I12: 62 | J12: 1 | K12: 144 | L12: 7 | R12: 7
A13: Calumet | B13: Calumet | C13: 5 | D13: 0 | E13: 162 | F13: 162 | G13: 0 | H13: 120 | I13: 42 | J13: 0.259 | K13: 149 | L13: 8 | R13: 8
A14: Chippewa | B14: Chippewa | C14: 3 | D14: 134 | E14: 0 | F14: 134 | G14: 1 | H14: 0 | I14: 134 | J14: 1 | K14: 139 | L14: 9 | R14: 9
A15: Clark | B15: Clark | C15: 2 | D15: 98 | E15: 0 | F15: 98 | G15: 1 | H15: 0 | I15: 98 | J15: 1 | K15: 79 | L15: 10 | R15: 10
A16: Columbia | B16: Columbia | C16: 3 | D16: 40 | E16: 53 | F16: 93 | G16: 0.43 | H16: 50 | I16: 43 | J16: 0.462 | K16: 65 | L16: 11 | R16: 11
A17: Crawford | B17: Crawford | C17: 1 | D17: 16 | E17: 0 | F17: 16 | G17: 1 | H17: 0 | I17: 16 | J17: 1 | K17: 44 | L17: 12 | R17: 12
A18: Dane | B18: Dane | C18: 13 | D18: 314 | E18: 1091 | F18: 1405 | G18: 0.223 | H18: 1393 | I18: 12 | J18: 0.009 | K18: 929 | L18: 13 | R18: 13
A19: Dodge | B19: Dodge | C19: 5 | D19: 17 | E19: 99 | F19: 116 | G19: 0.147 | H19: 76 | I19: 40 | J19: 0.345 | K19: 156 | L19: 14 | R19: 14
A20: Door | B20: Door | C20: 2 | D20: 12 | E20: 14 | F20: 26 | G20: 0.462 | H20: 0 | I20: 26 | J20: 1 | K20: 50 | L20: 15 | R20: 15
A21: Douglas | B21: Douglas | C21: 2 | D21: 82 | E21: 0 | F21: 82 | G21: 1 | H21: 0 | I21: 82 | J21: 1 | K21: 75 | L21: 16 | R21: 16
A22: Dunn | B22: Dunn | C22: 2 | D22: 60 | E22: 4 | F22: 64 | G22: 0.938 | H22: 0 | I22: 64 | J22: 1 | K22: 46 | L22: 17 | R22: 17
A23: Eau Claire | B23: Eau Claire | C23: 2 | D23: 432 | E23: 649 | F23: 1081 | G23: 0.4 | H23: 1025 | I23: 56 | J23: 0.052 | K23: 577 | L23: 18 | R23: 18
A24: Florence | B24: Florence | C24: 3 | D24: 67 | E24: 125 | F24: 192 | G24: 0.349 | H24: 137 | I24: 55 | J24: 0.286 | K24: 131 | L24: 19 | R24: 19
A25: Fond du Lac | B25: Fond du Lac | C25: 16 | D25: 193 | E25: 1479 | F25: 1672 | G25: 0.115 | H25: 1642 | I25: 30 | J25: 0.018 | K25: 914 | L25: 20 | R25: 20
A26: Forest | B26: Forest | C26: 2 | D26: 99 | E26: 0 | F26: 99 | G26: 1 | H26: 0 | I26: 99 | J26: 1 | K26: 80 | L26: 21 | R26: 21
A27: Grant | B27: Grant | C27: 5 | D27: 412 | E27: 334 | F27: 746 | G27: 0.552 | H27: 710 | I27: 36 | J27: 0.048 | K27: 505 | L27: 22 | R27: 22
A28: Green | B28: Green | C28: 1 | D28: 14 | E28: 0 | F28: 14 | G28: 1 | H28: 0 | I28: 14 | J28: 1 | K28: 58 | L28: 23 | R28: 23
A29: Green Lake | B29: Green Lake | C29: 3 | D29: 46 | E29: 232 | F29: 278 | G29: 0.165 | H29: 220 | I29: 58 | J29: 0.209 | K29: 156 | L29: 24 | R29: 24
A30: Iowa | B30: Iowa | C30: 1 | D30: 18 | E30: 1 | F30: 19 | G30: 0.947 | H30: 0 | I30: 19 | J30: 1 | K30: 46 | L30: 25 | R30: 25
A31: Iron | B31: Iron | C31: 2 | D31: 72 | E31: 0 | F31: 72 | G31: 1 | H31: 0 | I31: 72 | J31: 1 | K31: 53 | L31: 26 | R31: 26
A32: Jackson | B32: Jackson | C32: 2 | D32: 54 | E32: 0 | F32: 54 | G32: 1 | H32: 0 | I32: 54 | J32: 1 | K32: 38 | L32: 27 | R32: 27
A33: Jefferson | B33: Jefferson | C33: 5 | D33: 278 | E33: 89 | F33: 367 | G33: 0.757 | H33: 264 | I33: 103 | J33: 0.281 | K33: 359 | L33: 28 | R33: 28
A34: Juneau | B34: Juneau | C34: 2 | D34: 85 | E34: 0 | F34: 85 | G34: 1 | H34: 0 | I34: 85 | J34: 1 | K34: 64 | L34: 29 | R34: 29
A35: Kenosha | B35: Kenosha | C35: 2 | D35: 331 | E35: 268 | F35: 599 | G35: 0.553 | H35: 571 | I35: 28 | J35: 0.047 | K35: 382 | L35: 30 | R35: 30
A36: Kewaunee | B36: Kewaunee | C36: 3 | D36: 26 | E36: 197 | F36: 223 | G36: 0.117 | H36: 175 | I36: 48 | J36: 0.215 | K36: 140 | L36: 31
A37: La Crosse | B37: La Crosse | C37: 2 | D37: 0 | E37: 384 | F37: 384 | G37: 0 | H37: 384 | I37: 0 | J37: 0 | K37: 214 | L37: 32 | R37: Average need out of 72. A lower number is more needed overall: | X37: =(IFERROR(SUM(X6:X36)/COUNTIF(X6:X35,">0"),"")) -> 
A38: Lafayette | B38: Lafayette | C38: 3 | D38: 17 | E38: 10 | F38: 27 | G38: 0.63 | H38: 9 | I38: 18 | J38: 0.667 | K38: 21 | L38: 33
A39: Langlade | B39: Langlade | C39: 2 | D39: 73 | E39: 4 | F39: 77 | G39: 0.948 | H39: 0 | I39: 77 | J39: 1 | K39: 66 | L39: 34
A40: Lincoln | B40: Lincoln | C40: 4 | D40: 140 | E40: 6 | F40: 146 | G40: 0.959 | H40: 0 | I40: 146 | J40: 1 | K40: 129 | L40: 35
A41: Manitowoc | B41: Manitowoc | C41: 5 | D41: 11 | E41: 76 | F41: 87 | G41: 0.126 | H41: 24 | I41: 63 | J41: 0.724 | K41: 158 | L41: 36
A42: Marathon | B42: Marathon | C42: 6 | D42: 156 | E42: 102 | F42: 258 | G42: 0.605 | H42: 100 | I42: 158 | J42: 0.612 | K42: 304 | L42: 37
A43: Marinette | B43: Marinette | C43: 2 | D43: 49 | E43: 2 | F43: 51 | G43: 0.961 | H43: 0 | I43: 51 | J43: 1 | K43: 52 | L43: 38
A44: Marquette | B44: Marquette | C44: 2 | D44: 63 | E44: 4 | F44: 67 | G44: 0.94 | H44: 0 | I44: 67 | J44: 1 | K44: 228 | L44: 39
A45: Menominee | B45: Menominee | C45: 2 | D45: 35 | E45: 6 | F45: 41 | G45: 0.854 | H45: 0 | I45: 41 | J45: 1 | K45: 35 | L45: 40
A46: Milwaukee | B46: Milwaukee | C46: 15 | D46: 541 | E46: 820 | F46: 1361 | G46: 0.398 | H46: 1336 | I46: 25 | J46: 0.018 | K46: 1077 | L46: 41
A47: Monroe | B47: Monroe | C47: 2 | D47: 18 | E47: 145 | F47: 163 | G47: 0.11 | H47: 145 | I47: 18 | J47: 0.11 | K47: 53 | L47: 42
A48: Oconto | B48: Oconto | C48: 3 | D48: 350 | E48: 191 | F48: 541 | G48: 0.647 | H48: 516 | I48: 25 | J48: 0.046 | K48: 282 | L48: 43
A49: Oneida | B49: Oneida | C49: 6 | D49: 103 | E49: 148 | F49: 251 | G49: 0.41 | H49: 148 | I49: 103 | J49: 0.41 | K49: 229 | L49: 44
A50: Outagamie | B50: Outagamie | C50: 12 | D50: 134 | E50: 825 | F50: 959 | G50: 0.14 | H50: 856 | I50: 103 | J50: 0.107 | K50: 612 | L50: 45
A51: Ozaukee | B51: Ozaukee | C51: 6 | D51: 23 | E51: 205 | F51: 228 | G51: 0.101 | H51: 80 | I51: 148 | J51: 0.649 | K51: 172 | L51: 46
A52: Pepin | B52: Pepin | C52: 3 | D52: 58 | E52: 0 | F52: 58 | G52: 1 | H52: 0 | I52: 58 | J52: 1 | K52: 42 | L52: 47
A53: Pierce | B53: Pierce | C53: 2 | D53: 37 | E53: 0 | F53: 37 | G53: 1 | H53: 0 | I53: 37 | J53: 1 | K53: 35 | L53: 48
A54: Polk | B54: Polk | C54: 4 | D54: 125 | E54: 74 | F54: 199 | G54: 0.628 | H54: 74 | I54: 125 | J54: 0.628 | K54: 157 | L54: 49
A55: Portage | B55: Portage | C55: 4 | D55: 392 | E55: 279 | F55: 671 | G55: 0.584 | H55: 574 | I55: 97 | J55: 0.145 | K55: 456 | L55: 50
A56: Price | B56: Price | C56: 5 | D56: 510 | E56: 165 | F56: 675 | G56: 0.756 | H56: 545 | I56: 130 | J56: 0.193 | K56: 488 | L56: 51
A57: Racine | B57: Racine | C57: 7 | D57: 214 | E57: 198 | F57: 412 | G57: 0.519 | H57: 340 | I57: 72 | J57: 0.175 | K57: 368 | L57: 52
A58: Richland | B58: Richland | C58: 2 | D58: 261 | E58: 280 | F58: 541 | G58: 0.482 | H58: 507 | I58: 34 | J58: 0.063 | K58: 294 | L58: 53
A59: Rock | B59: Rock | C59: 6 | D59: 206 | E59: 658 | F59: 864 | G59: 0.238 | H59: 786 | I59: 78 | J59: 0.09 | K59: 462 | L59: 54
A60: Rusk | B60: Rusk | C60: 3 | D60: 87 | E60: 92 | F60: 179 | G60: 0.486 | H60: 92 | I60: 87 | J60: 0.486 | K60: 101 | L60: 55
A61: Sauk | B61: Sauk | C61: 5 | D61: 55 | E61: 112 | F61: 167 | G61: 0.329 | H61: 134 | I61: 33 | J61: 0.198 | K61: 187 | L61: 56
A62: Sawyer | B62: Sawyer | C62: 4 | D62: 118 | E62: 1 | F62: 119 | G62: 0.992 | H62: 43 | I62: 76 | J62: 0.639 | K62: 107 | L62: 57
A63: Shawano | B63: Shawano | C63: 1 | D63: 26 | E63: 0 | F63: 26 | G63: 1 | H63: 0 | I63: 26 | J63: 1 | K63: 39 | L63: 58
A64: Sheboygan | B64: Sheboygan | C64: 7 | D64: 36 | E64: 553 | F64: 589 | G64: 0.061 | H64: 547 | I64: 42 | J64: 0.071 | K64: 366 | L64: 59
A65: St Croix | B65: St Croix | C65: 2 | D65: 18 | E65: 3 | F65: 21 | G65: 0.857 | H65: 0 | I65: 21 | J65: 1 | K65: 56 | L65: 60
A66: Taylor | B66: Taylor | C66: 2 | D66: 59 | E66: 1 | F66: 60 | G66: 0.983 | H66: 0 | I66: 60 | J66: 1 | K66: 42 | L66: 61
A67: Trempealeau | B67: Trempealeau | C67: 2 | D67: 51 | E67: 0 | F67: 51 | G67: 1 | H67: 0 | I67: 51 | J67: 1 | K67: 56 | L67: 62
A68: Vernon | B68: Vernon | C68: 2 | D68: 109 | E68: 289 | F68: 398 | G68: 0.274 | H68: 398 | I68: 0 | J68: 0 | K68: 226 | L68: 63
A69: Vilas | B69: Vilas | C69: 4 | D69: 99 | E69: 34 | F69: 133 | G69: 0.744 | H69: 34 | I69: 99 | J69: 0.744 | K69: 108 | L69: 64
A70: Walworth | B70: Walworth | C70: 3 | D70: 162 | E70: 2 | F70: 164 | G70: 0.988 | H70: 56 | I70: 108 | J70: 0.659 | K70: 161 | L70: 65
A71: Washburn | B71: Washburn | C71: 4 | D71: 70 | E71: 73 | F71: 143 | G71: 0.49 | H71: 78 | I71: 65 | J71: 0.455 | K71: 73 | L71: 66
A72: Washington | B72: Washington | C72: 6 | D72: 15 | E72: 305 | F72: 320 | G72: 0.047 | H72: 250 | I72: 70 | J72: 0.219 | K72: 240 | L72: 67
A73: Waukesha | B73: Waukesha | C73: 16 | D73: 485 | E73: 1189 | F73: 1674 | G73: 0.29 | H73: 1592 | I73: 82 | J73: 0.049 | K73: 1308 | L73: 68
A74: Waupaca | B74: Waupaca | C74: 5 | D74: 172 | E74: 74 | F74: 246 | G74: 0.699 | H74: 178 | I74: 68 | J74: 0.276 | K74: 169 | L74: 69
A75: Waushara | B75: Waushara | C75: 3 | D75: 80 | E75: 23 | F75: 103 | G75: 0.777 | H75: 0 | I75: 103 | J75: 1 | K75: 84 | L75: 70
A76: Winnebago | B76: Winnebago | C76: 7 | D76: 244 | E76: 724 | F76: 968 | G76: 0.252 | H76: 937 | I76: 31 | J76: 0.032 | K76: 645 | L76: 71
A77: Wood | B77: Wood | C77: 4 | D77: 108 | E77: 3 | F77: 111 | G77: 0.973 | H77: 3 | I77: 108 | J77: 0.973 | K77: 86 | L77: 72
B79: Totals: | C79: =SUM(C6:C78) -> 301 | D79: =SUM(D6:D78) -> 9054 | E79: =SUM(E6:E78) -> 13789 | F79: =SUM(F6:F78) -> 22843 | G79: =D79/F79 -> 0.3963577464 | H79: =SUM(H6:H78) -> 18070 | I79: =SUM(I6:I78) -> 4773 | J79: =I79/F79 -> 0.2089480366 | K79: =SUM(K6:K78) -> 16499

Sheet 2016
B1: 2016
R2: Enter the county name in column "S" to populate QSOs & Rank
N3: Enter County | P3: Rank
B4: County | C4: Stations | D4: CW Qs | E4: Phone Qs | F4: Total Qs | G4: % CW | H4: Fixed Qs | I4: Mobile Qs | J4: % Mobile Qs | K4: Rcvd Qs | L4: Rank | P4: =IFERROR(IF(N4="","",INDEX($L$6:$L$77,MATCH(N4,$B$6:$B$77,0))),"") ->  | R4: Sequence | S4: County | T4: CW Qs | U4: PH Qs | V4: Total Qs | W4: Rcvd Qs | X4: Rank
A6: Adams | B6: Adams | C6: 5 | D6: 143 | E6: 56 | F6: 199 | G6: 0.719 | H6: 56 | I6: 143 | J6: 0.719 | K6: 90 | L6: 1 | R6: 1 | T6: =IF(S6="","",VLOOKUP($S6,$B$6:$L$77,3,FALSE)) ->  | U6: =IF(S6="","",VLOOKUP($S6,$B$6:$L$77,4,FALSE)) ->  | V6: =IF(S6="","",VLOOKUP($S6,$B$6:$L$77,5,FALSE)) ->  | W6: =IF(S6="","",VLOOKUP($S6,$B$6:$L$77,10,FALSE)) ->  | X6: =IF(S6="","",INDEX($L$6:$L$77,MATCH(S6,$B$6:$B$77,0))) -> 
A7: Ashland | B7: Ashland | C7: 2 | D7: 51 | E7: 21 | F7: 72 | G7: 0.708 | H7: 0 | I7: 72 | J7: 1 | K7: 50 | L7: 2 | R7: 2 | T7: =IF(S7="","",VLOOKUP($S7,$B$6:$L$77,3,FALSE)) ->  | X7: =IF(S7="","",INDEX($L$6:$L$77,MATCH(S7,$B$6:$B$77,0))) -> 
A8: Barron | B8: Barron | C8: 4 | D8: 96 | E8: 26 | F8: 122 | G8: 0.787 | H8: 0 | I8: 122 | J8: 1 | K8: 176 | L8: 3 | R8: 3
A9: Bayfield | B9: Bayfield | C9: 3 | D9: 49 | E9: 31 | F9: 80 | G9: 0.613 | H9: 0 | I9: 80 | J9: 1 | K9: 47 | L9: 4 | R9: 4
A10: Brown | B10: Brown | C10: 10 | D10: 86 | E10: 1607 | F10: 1693 | G10: 0.051 | H10: 1654 | I10: 39 | J10: 0.023 | K10: 802 | L10: 5 | R10: 5
A11: Buffalo | B11: Buffalo | C11: 3 | D11: 103 | E11: 27 | F11: 130 | G11: 0.792 | H11: 0 | I11: 130 | J11: 1 | K11: 142 | L11: 6 | R11: 6
A12: Burnett | B12: Burnett | C12: 3 | D12: 36 | E12: 12 | F12: 48 | G12: 0.75 | H12: 0 | I12: 48 | J12: 1 | K12: 275 | L12: 7 | R12: 7
A13: Calumet | B13: Calumet | C13: 3 | D13: 223 | E13: 11 | F13: 234 | G13: 0.953 | H13: 204 | I13: 30 | J13: 0.128 | K13: 171 | L13: 8 | R13: 8
A14: Chippewa | B14: Chippewa | C14: 5 | D14: 132 | E14: 130 | F14: 262 | G14: 0.504 | H14: 90 | I14: 172 | J14: 0.656 | K14: 192 | L14: 9 | R14: 9
A15: Clark | B15: Clark | C15: 1 | D15: 16 | E15: 0 | F15: 16 | G15: 1 | H15: 0 | I15: 16 | J15: 1 | K15: 10 | L15: 10 | R15: 10
A16: Columbia | B16: Columbia | C16: 7 | D16: 211 | E16: 150 | F16: 361 | G16: 0.584 | H16: 198 | I16: 163 | J16: 0.452 | K16: 398 | L16: 11 | R16: 11
A17: Crawford | B17: Crawford | C17: 2 | D17: 46 | E17: 95 | F17: 141 | G17: 0.326 | H17: 95 | I17: 46 | J17: 0.326 | K17: 110 | L17: 12 | R17: 12
A18: Dane | B18: Dane | C18: 16 | D18: 1607 | E18: 1909 | F18: 3516 | G18: 0.457 | H18: 3472 | I18: 44 | J18: 0.013 | K18: 2255 | L18: 13 | R18: 13
A19: Dodge | B19: Dodge | C19: 7 | D19: 44 | E19: 490 | F19: 534 | G19: 0.082 | H19: 496 | I19: 38 | J19: 0.071 | K19: 555 | L19: 14 | R19: 14
A20: Door | B20: Door | C20: 3 | D20: 15 | E20: 456 | F20: 471 | G20: 0.032 | H20: 442 | I20: 29 | J20: 0.062 | K20: 323 | L20: 15 | R20: 15
A21: Douglas | B21: Douglas | C21: 3 | D21: 60 | E21: 22 | F21: 82 | G21: 0.732 | H21: 0 | I21: 82 | J21: 1 | K21: 51 | L21: 16 | R21: 16
A22: Dunn | B22: Dunn | C22: 4 | D22: 83 | E22: 74 | F22: 157 | G22: 0.529 | H22: 31 | I22: 126 | J22: 0.803 | K22: 140 | L22: 17 | R22: 17
A23: Eau Claire | B23: Eau Claire | C23: 5 | D23: 803 | E23: 1134 | F23: 1937 | G23: 0.415 | H23: 1859 | I23: 78 | J23: 0.04 | K23: 1303 | L23: 18 | R23: 18
A24: Florence | B24: Florence | C24: 3 | D24: 128 | E24: 17 | F24: 145 | G24: 0.883 | H24: 79 | I24: 66 | J24: 0.455 | K24: 161 | L24: 19 | R24: 19
A25: Fond du Lac | B25: Fond du Lac | C25: 12 | D25: 0 | E25: 1877 | F25: 1877 | G25: 0 | H25: 1835 | I25: 42 | J25: 0.022 | K25: 906 | L25: 20 | R25: 20
A26: Forest | B26: Forest | C26: 4 | D26: 133 | E26: 0 | F26: 133 | G26: 1 | H26: 0 | I26: 133 | J26: 1 | K26: 102 | L26: 21 | R26: 21
A27: Grant | B27: Grant | C27: 5 | D27: 500 | E27: 430 | F27: 930 | G27: 0.538 | H27: 883 | I27: 47 | J27: 0.051 | K27: 610 | L27: 22 | R27: 22
A28: Green | B28: Green | C28: 2 | D28: 96 | E28: 0 | F28: 96 | G28: 1 | H28: 0 | I28: 96 | J28: 1 | K28: 79 | L28: 23 | R28: 23
A29: Green Lake | B29: Green Lake | C29: 0 | D29: 0 | E29: 0 | F29: 0 | G29: 0 | H29: 0 | I29: 0 | J29: 0 | K29: 2 | L29: 24 | R29: 24
A30: Iowa | B30: Iowa | C30: 2 | D30: 121 | E30: 0 | F30: 121 | G30: 1 | H30: 0 | I30: 121 | J30: 1 | K30: 99 | L30: 25 | R30: 25
A31: Iron | B31: Iron | C31: 1 | D31: 38 | E31: 0 | F31: 38 | G31: 1 | H31: 0 | I31: 38 | J31: 1 | K31: 27 | L31: 26 | R31: 26
A32: Jackson | B32: Jackson | C32: 2 | D32: 91 | E32: 0 | F32: 91 | G32: 1 | H32: 0 | I32: 91 | J32: 1 | K32: 55 | L32: 27 | R32: 27
A33: Jefferson | B33: Jefferson | C33: 5 | D33: 247 | E33: 221 | F33: 468 | G33: 0.528 | H33: 414 | I33: 54 | J33: 0.115 | K33: 401 | L33: 28 | R33: 28
A34: Juneau | B34: Juneau | C34: 4 | D34: 147 | E34: 0 | F34: 147 | G34: 1 | H34: 0 | I34: 147 | J34: 1 | K34: 97 | L34: 29 | R34: 29
A35: Kenosha | B35: Kenosha | C35: 2 | D35: 399 | E35: 381 | F35: 780 | G35: 0.512 | H35: 767 | I35: 13 | J35: 0.017 | K35: 535 | L35: 30 | R35: 30
A36: Kewaunee | B36: Kewaunee | C36: 3 | D36: 13 | E36: 194 | F36: 207 | G36: 0.063 | H36: 188 | I36: 19 | J36: 0.092 | K36: 203 | L36: 31
A37: La Crosse | B37: La Crosse | C37: 7 | D37: 121 | E37: 897 | F37: 1018 | G37: 0.119 | H37: 897 | I37: 121 | J37: 0.119 | K37: 620 | L37: 32 | R37: Average need out of 72. A lower number is more needed overall: | X37: =(IFERROR(SUM(X6:X36)/COUNTIF(X6:X35,">0"),"")) -> 
A38: Lafayette | B38: Lafayette | C38: 4 | D38: 381 | E38: 8 | F38: 389 | G38: 0.979 | H38: 321 | I38: 68 | J38: 0.175 | K38: 248 | L38: 33
A39: Langlade | B39: Langlade | C39: 4 | D39: 111 | E39: 0 | F39: 111 | G39: 1 | H39: 0 | I39: 111 | J39: 1 | K39: 75 | L39: 34
A40: Lincoln | B40: Lincoln | C40: 4 | D40: 170 | E40: 5 | F40: 175 | G40: 0.971 | H40: 0 | I40: 175 | J40: 1 | K40: 148 | L40: 35
A41: Manitowoc | B41: Manitowoc | C41: 2 | D41: 0 | E41: 145 | F41: 145 | G41: 0 | H41: 140 | I41: 5 | J41: 0.034 | K41: 307 | L41: 36
A42: Marathon | B42: Marathon | C42: 8 | D42: 219 | E42: 262 | F42: 481 | G42: 0.455 | H42: 238 | I42: 243 | J42: 0.505 | K42: 373 | L42: 37
A43: Marinette | B43: Marinette | C43: 1 | D43: 32 | E43: 0 | F43: 32 | G43: 1 | H43: 0 | I43: 32 | J43: 1 | K43: 82 | L43: 38
A44: Marquette | B44: Marquette | C44: 5 | D44: 117 | E44: 425 | F44: 542 | G44: 0.216 | H44: 393 | I44: 149 | J44: 0.275 | K44: 272 | L44: 39
A45: Menominee | B45: Menominee | C45: 2 | D45: 33 | E45: 24 | F45: 57 | G45: 0.579 | H45: 0 | I45: 57 | J45: 1 | K45: 49 | L45: 40
A46: Milwaukee | B46: Milwaukee | C46: 14 | D46: 546 | E46: 1107 | F46: 1653 | G46: 0.33 | H46: 1636 | I46: 17 | J46: 0.01 | K46: 1446 | L46: 41
A47: Monroe | B47: Monroe | C47: 4 | D47: 186 | E47: 0 | F47: 186 | G47: 1 | H47: 0 | I47: 186 | J47: 1 | K47: 123 | L47: 42
A48: Oconto | B48: Oconto | C48: 3 | D48: 51 | E48: 109 | F48: 160 | G48: 0.319 | H48: 104 | I48: 56 | J48: 0.35 | K48: 192 | L48: 43
A49: Oneida | B49: Oneida | C49: 5 | D49: 136 | E49: 190 | F49: 326 | G49: 0.417 | H49: 184 | I49: 142 | J49: 0.436 | K49: 222 | L49: 44
A50: Outagamie | B50: Outagamie | C50: 6 | D50: 191 | E50: 403 | F50: 594 | G50: 0.322 | H50: 546 | I50: 48 | J50: 0.081 | K50: 642 | L50: 45
A51: Ozaukee | B51: Ozaukee | C51: 3 | D51: 14 | E51: 109 | F51: 123 | G51: 0.114 | H51: 15 | I51: 108 | J51: 0.878 | K51: 77 | L51: 46
A52: Pepin | B52: Pepin | C52: 3 | D52: 114 | E52: 96 | F52: 210 | G52: 0.543 | H52: 0 | I52: 210 | J52: 1 | K52: 145 | L52: 47
A53: Pierce | B53: Pierce | C53: 4 | D53: 114 | E53: 61 | F53: 175 | G53: 0.651 | H53: 36 | I53: 139 | J53: 0.794 | K53: 187 | L53: 48
A54: Polk | B54: Polk | C54: 5 | D54: 98 | E54: 103 | F54: 201 | G54: 0.488 | H54: 84 | I54: 117 | J54: 0.582 | K54: 136 | L54: 49
A55: Portage | B55: Portage | C55: 6 | D55: 231 | E55: 547 | F55: 778 | G55: 0.297 | H55: 514 | I55: 264 | J55: 0.339 | K55: 351 | L55: 50
A56: Price | B56: Price | C56: 5 | D56: 346 | E56: 581 | F56: 927 | G56: 0.373 | H56: 793 | I56: 134 | J56: 0.145 | K56: 468 | L56: 51
A57: Racine | B57: Racine | C57: 3 | D57: 141 | E57: 369 | F57: 510 | G57: 0.276 | H57: 474 | I57: 36 | J57: 0.071 | K57: 149 | L57: 52
A58: Richland | B58: Richland | C58: 2 | D58: 311 | E58: 344 | F58: 655 | G58: 0.475 | H58: 617 | I58: 38 | J58: 0.058 | K58: 367 | L58: 53
A59: Rock | B59: Rock | C59: 7 | D59: 83 | E59: 639 | F59: 722 | G59: 0.115 | H59: 670 | I59: 52 | J59: 0.072 | K59: 641 | L59: 54
A60: Rusk | B60: Rusk | C60: 4 | D60: 120 | E60: 268 | F60: 388 | G60: 0.309 | H60: 295 | I60: 93 | J60: 0.24 | K60: 231 | L60: 55
A61: Sauk | B61: Sauk | C61: 8 | D61: 373 | E61: 236 | F61: 609 | G61: 0.612 | H61: 461 | I61: 148 | J61: 0.243 | K61: 467 | L61: 56
A62: Sawyer | B62: Sawyer | C62: 4 | D62: 110 | E62: 164 | F62: 274 | G62: 0.401 | H62: 160 | I62: 114 | J62: 0.416 | K62: 179 | L62: 57
A63: Shawano | B63: Shawano | C63: 3 | D63: 157 | E63: 33 | F63: 190 | G63: 0.826 | H63: 0 | I63: 190 | J63: 1 | K63: 135 | L63: 58
A64: Sheboygan | B64: Sheboygan | C64: 7 | D64: 223 | E64: 874 | F64: 1097 | G64: 0.203 | H64: 1046 | I64: 51 | J64: 0.046 | K64: 611 | L64: 59
A65: St Croix | B65: St Croix | C65: 5 | D65: 93 | E65: 76 | F65: 169 | G65: 0.55 | H65: 30 | I65: 139 | J65: 0.822 | K65: 95 | L65: 60
A66: Taylor | B66: Taylor | C66: 2 | D66: 34 | E66: 21 | F66: 55 | G66: 0.618 | H66: 0 | I66: 55 | J66: 1 | K66: 71 | L66: 61
A67: Trempealeau | B67: Trempealeau | C67: 3 | D67: 33 | E67: 151 | F67: 184 | G67: 0.179 | H67: 151 | I67: 33 | J67: 0.179 | K67: 121 | L67: 62
A68: Vernon | B68: Vernon | C68: 4 | D68: 224 | E68: 425 | F68: 649 | G68: 0.345 | H68: 561 | I68: 88 | J68: 0.136 | K68: 410 | L68: 63
A69: Vilas | B69: Vilas | C69: 4 | D69: 143 | E69: 65 | F69: 208 | G69: 0.688 | H69: 65 | I69: 143 | J69: 0.688 | K69: 137 | L69: 64
A70: Walworth | B70: Walworth | C70: 4 | D70: 128 | E70: 136 | F70: 264 | G70: 0.485 | H70: 246 | I70: 18 | J70: 0.068 | K70: 275 | L70: 65
A71: Washburn | B71: Washburn | C71: 4 | D71: 29 | E71: 300 | F71: 329 | G71: 0.088 | H71: 289 | I71: 40 | J71: 0.122 | K71: 126 | L71: 66
A72: Washington | B72: Washington | C72: 4 | D72: 10 | E72: 211 | F72: 221 | G72: 0.045 | H72: 178 | I72: 43 | J72: 0.195 | K72: 158 | L72: 67
A73: Waukesha | B73: Waukesha | C73: 13 | D73: 490 | E73: 1025 | F73: 1515 | G73: 0.323 | H73: 1429 | I73: 86 | J73: 0.057 | K73: 1138 | L73: 68
A74: Waupaca | B74: Waupaca | C74: 3 | D74: 344 | E74: 51 | F74: 395 | G74: 0.871 | H74: 234 | I74: 161 | J74: 0.408 | K74: 267 | L74: 69
A75: Waushara | B75: Waushara | C75: 5 | D75: 188 | E75: 19 | F75: 207 | G75: 0.908 | H75: 0 | I75: 207 | J75: 1 | K75: 136 | L75: 70
A76: Winnebago | B76: Winnebago | C76: 7 | D76: 464 | E76: 933 | F76: 1397 | G76: 0.332 | H76: 1340 | I76: 57 | J76: 0.041 | K76: 890 | L76: 71
A77: Wood | B77: Wood | C77: 2 | D77: 58 | E77: 0 | F77: 58 | G77: 1 | H77: 0 | I77: 58 | J77: 1 | K77: 73 | L77: 72
B79: Totals: | C79: =SUM(C6:C78) -> 324 | D79: =SUM(D6:D78) -> 12684 | E79: =SUM(E6:E78) -> 20783 | F79: =SUM(F6:F78) -> 33467 | G79: =D79/F79 -> 0.3790002092 | H79: =SUM(H6:H78) -> 26910 | I79: =SUM(I6:I78) -> 6557 | J79: =I79/F79 -> 0.1959243434 | K79: =SUM(K6:K78) -> 23207

Sheet 2015
B1: 2015
R2: Enter the county name in column "S" to populate QSOs & Rank
N3: Enter County | P3: Rank
B4: County | C4: Stations | D4: CW Qs | E4: Phone Qs | F4: Total Qs | G4: % CW | H4: Fixed Qs | I4: Mobile Qs | J4: % Mobile Qs | K4: Rcvd Qs | L4: Rank | P4: =IFERROR(IF(N4="","",INDEX($L$6:$L$77,MATCH(N4,$B$6:$B$77,0))),"") ->  | R4: Sequence | S4: County | T4: CW Qs | U4: PH Qs | V4: Total Qs | W4: Rcvd Qs | X4: Rank
A6: Adams | B6: Adams | C6: 3 | D6: 143 | E6: 3 | F6: 146 | G6: 0.979 | H6: 0 | I6: 146 | J6: 1 | K6: 104 | L6: 1 | R6: 1 | T6: =IF(S6="","",VLOOKUP($S6,$B$6:$L$77,3,FALSE)) ->  | U6: =IF(S6="","",VLOOKUP($S6,$B$6:$L$77,4,FALSE)) ->  | V6: =IF(S6="","",VLOOKUP($S6,$B$6:$L$77,5,FALSE)) ->  | W6: =IF(S6="","",VLOOKUP($S6,$B$6:$L$77,10,FALSE)) ->  | X6: =IF(S6="","",INDEX($L$6:$L$77,MATCH(S6,$B$6:$B$77,0))) -> 
A7: Ashland | B7: Ashland | C7: 1 | D7: 0 | E7: 5 | F7: 5 | G7: 0 | H7: 0 | I7: 5 | J7: 1 | K7: 85 | L7: 2 | R7: 2 | T7: =IF(S7="","",VLOOKUP($S7,$B$6:$L$77,3,FALSE)) ->  | X7: =IF(S7="","",INDEX($L$6:$L$77,MATCH(S7,$B$6:$B$77,0))) -> 
A8: Barron | B8: Barron | C8: 3 | D8: 112 | E8: 267 | F8: 379 | G8: 0.296 | H8: 267 | I8: 112 | J8: 0.296 | K8: 230 | L8: 3 | R8: 3
A9: Bayfield | B9: Bayfield | C9: 2 | D9: 0 | E9: 14 | F9: 14 | G9: 0 | H9: 1 | I9: 13 | J9: 0.929 | K9: 28 | L9: 4 | R9: 4
A10: Brown | B10: Brown | C10: 6 | D10: 276 | E10: 966 | F10: 1242 | G10: 0.222 | H10: 1164 | I10: 78 | J10: 0.063 | K10: 756 | L10: 5 | R10: 5
A11: Buffalo | B11: Buffalo | C11: 3 | D11: 105 | E11: 70 | F11: 175 | G11: 0.6 | H11: 70 | I11: 105 | J11: 0.6 | K11: 115 | L11: 6 | R11: 6
A12: Burnett | B12: Burnett | C12: 1 | D12: 49 | E12: 0 | F12: 49 | G12: 1 | H12: 0 | I12: 49 | J12: 1 | K12: 32 | L12: 7 | R12: 7
A13: Calumet | B13: Calumet | C13: 1 | D13: 25 | E13: 0 | F13: 25 | G13: 1 | H13: 0 | I13: 25 | J13: 1 | K13: 33 | L13: 8 | R13: 8
A14: Chippewa | B14: Chippewa | C14: 2 | D14: 131 | E14: 0 | F14: 131 | G14: 1 | H14: 0 | I14: 131 | J14: 1 | K14: 126 | L14: 9 | R14: 9
A15: Clark | B15: Clark | C15: 5 | D15: 159 | E15: 11 | F15: 170 | G15: 0.935 | H15: 0 | I15: 170 | J15: 1 | K15: 155 | L15: 10 | R15: 10
A16: Columbia | B16: Columbia | C16: 5 | D16: 41 | E16: 67 | F16: 108 | G16: 0.38 | H16: 29 | I16: 79 | J16: 0.731 | K16: 85 | L16: 11 | R16: 11
A17: Crawford | B17: Crawford | C17: 3 | D17: 127 | E17: 59 | F17: 186 | G17: 0.683 | H17: 59 | I17: 127 | J17: 0.683 | K17: 147 | L17: 12 | R17: 12
A18: Dane | B18: Dane | C18: 15 | D18: 1268 | E18: 1839 | F18: 3107 | G18: 0.408 | H18: 3016 | I18: 91 | J18: 0.029 | K18: 2016 | L18: 13 | R18: 13
A19: Dodge | B19: Dodge | C19: 6 | D19: 108 | E19: 327 | F19: 435 | G19: 0.248 | H19: 347 | I19: 88 | J19: 0.202 | K19: 338 | L19: 14 | R19: 14
A20: Door | B20: Door | C20: 0 | D20: 0 | E20: 0 | F20: 0 | G20: 0 | H20: 0 | I20: 0 | J20: 0 | K20: 42 | L20: 15 | R20: 15
A21: Douglas | B21: Douglas | C21: 1 | D21: 0 | E21: 47 | F21: 47 | G21: 0 | H21: 47 | I21: 0 | J21: 0 | K21: 39 | L21: 16 | R21: 16
A22: Dunn | B22: Dunn | C22: 5 | D22: 157 | E22: 45 | F22: 202 | G22: 0.777 | H22: 45 | I22: 157 | J22: 0.777 | K22: 209 | L22: 17 | R22: 17
A23: Eau Claire | B23: Eau Claire | C23: 5 | D23: 601 | E23: 1049 | F23: 1650 | G23: 0.364 | H23: 1531 | I23: 119 | J23: 0.072 | K23: 837 | L23: 18 | R23: 18
A24: Florence | B24: Florence | C24: 2 | D24: 48 | E24: 15 | F24: 63 | G24: 0.762 | H24: 0 | I24: 63 | J24: 1 | K24: 97 | L24: 19 | R24: 19
A25: Fond du Lac | B25: Fond du Lac | C25: 20 | D25: 198 | E25: 2644 | F25: 2842 | G25: 0.07 | H25: 2749 | I25: 93 | J25: 0.033 | K25: 1569 | L25: 20 | R25: 20
A26: Forest | B26: Forest | C26: 2 | D26: 60 | E26: 40 | F26: 100 | G26: 0.6 | H26: 0 | I26: 100 | J26: 1 | K26: 64 | L26: 21 | R26: 21
A27: Grant | B27: Grant | C27: 4 | D27: 542 | E27: 183 | F27: 725 | G27: 0.748 | H27: 670 | I27: 55 | J27: 0.076 | K27: 506 | L27: 22 | R27: 22
A28: Green | B28: Green | C28: 1 | D28: 47 | E28: 0 | F28: 47 | G28: 1 | H28: 0 | I28: 47 | J28: 1 | K28: 76 | L28: 23 | R28: 23
A29: Green Lake | B29: Green Lake | C29: 5 | D29: 103 | E29: 90 | F29: 193 | G29: 0.534 | H29: 77 | I29: 116 | J29: 0.601 | K29: 196 | L29: 24 | R29: 24
A30: Iowa | B30: Iowa | C30: 1 | D30: 70 | E30: 0 | F30: 70 | G30: 1 | H30: 0 | I30: 70 | J30: 1 | K30: 42 | L30: 25 | R30: 25
A31: Iron | B31: Iron | C31: 1 | D31: 0 | E31: 7 | F31: 7 | G31: 0 | H31: 0 | I31: 7 | J31: 1 | K31: 5 | L31: 26 | R31: 26
A32: Jackson | B32: Jackson | C32: 5 | D32: 261 | E32: 2 | F32: 263 | G32: 0.992 | H32: 0 | I32: 263 | J32: 1 | K32: 176 | L32: 27 | R32: 27
A33: Jefferson | B33: Jefferson | C33: 6 | D33: 198 | E33: 170 | F33: 368 | G33: 0.538 | H33: 280 | I33: 88 | J33: 0.239 | K33: 301 | L33: 28 | R33: 28
A34: Juneau | B34: Juneau | C34: 3 | D34: 148 | E34: 3 | F34: 151 | G34: 0.98 | H34: 0 | I34: 151 | J34: 1 | K34: 107 | L34: 29 | R34: 29
A35: Kenosha | B35: Kenosha | C35: 1 | D35: 358 | E35: 366 | F35: 724 | G35: 0.494 | H35: 724 | I35: 0 | J35: 0 | K35: 464 | L35: 30 | R35: 30
A36: Kewaunee | B36: Kewaunee | C36: 0 | D36: 0 | E36: 0 | F36: 0 | G36: 0 | H36: 0 | I36: 0 | J36: 0 | K36: 168 | L36: 31
A37: La Crosse | B37: La Crosse | C37: 6 | D37: 221 | E37: 455 | F37: 676 | G37: 0.327 | H37: 455 | I37: 221 | J37: 0.327 | K37: 662 | L37: 32 | R37: Average need out of 72. A lower number is more needed overall: | X37: =(IFERROR(SUM(X6:X36)/COUNTIF(X6:X35,">0"),"")) -> 
A38: Lafayette | B38: Lafayette | C38: 3 | D38: 316 | E38: 6 | F38: 322 | G38: 0.981 | H38: 275 | I38: 47 | J38: 0.146 | K38: 194 | L38: 33
A39: Langlade | B39: Langlade | C39: 3 | D39: 74 | E39: 24 | F39: 98 | G39: 0.755 | H39: 0 | I39: 98 | J39: 1 | K39: 81 | L39: 34
A40: Lincoln | B40: Lincoln | C40: 4 | D40: 90 | E40: 57 | F40: 147 | G40: 0.612 | H40: 30 | I40: 117 | J40: 0.796 | K40: 197 | L40: 35
A41: Manitowoc | B41: Manitowoc | C41: 1 | D41: 0 | E41: 325 | F41: 325 | G41: 0 | H41: 325 | I41: 0 | J41: 0 | K41: 147 | L41: 36
A42: Marathon | B42: Marathon | C42: 7 | D42: 99 | E42: 234 | F42: 333 | G42: 0.297 | H42: 225 | I42: 108 | J42: 0.324 | K42: 274 | L42: 37
A43: Marinette | B43: Marinette | C43: 2 | D43: 102 | E43: 262 | F43: 364 | G43: 0.28 | H43: 298 | I43: 66 | J43: 0.181 | K43: 244 | L43: 38
A44: Marquette | B44: Marquette | C44: 4 | D44: 143 | E44: 188 | F44: 331 | G44: 0.432 | H44: 221 | I44: 110 | J44: 0.332 | K44: 218 | L44: 39
A45: Menominee | B45: Menominee | C45: 3 | D45: 65 | E45: 51 | F45: 116 | G45: 0.56 | H45: 0 | I45: 116 | J45: 1 | K45: 93 | L45: 40
A46: Milwaukee | B46: Milwaukee | C46: 19 | D46: 336 | E46: 1553 | F46: 1889 | G46: 0.178 | H46: 1816 | I46: 73 | J46: 0.039 | K46: 1568 | L46: 41
A47: Monroe | B47: Monroe | C47: 3 | D47: 171 | E47: 0 | F47: 171 | G47: 1 | H47: 0 | I47: 171 | J47: 1 | K47: 274 | L47: 42
A48: Oconto | B48: Oconto | C48: 5 | D48: 520 | E48: 80 | F48: 600 | G48: 0.867 | H48: 505 | I48: 95 | J48: 0.158 | K48: 449 | L48: 43
A49: Oneida | B49: Oneida | C49: 4 | D49: 76 | E49: 25 | F49: 101 | G49: 0.752 | H49: 0 | I49: 101 | J49: 1 | K49: 293 | L49: 44
A50: Outagamie | B50: Outagamie | C50: 5 | D50: 119 | E50: 324 | F50: 443 | G50: 0.269 | H50: 344 | I50: 99 | J50: 0.223 | K50: 390 | L50: 45
A51: Ozaukee | B51: Ozaukee | C51: 1 | D51: 8 | E51: 15 | F51: 23 | G51: 0.348 | H51: 23 | I51: 0 | J51: 0 | K51: 33 | L51: 46
A52: Pepin | B52: Pepin | C52: 3 | D52: 103 | E52: 81 | F52: 184 | G52: 0.56 | H52: 81 | I52: 103 | J52: 0.56 | K52: 127 | L52: 47
A53: Pierce | B53: Pierce | C53: 3 | D53: 148 | E53: 56 | F53: 204 | G53: 0.725 | H53: 56 | I53: 148 | J53: 0.725 | K53: 211 | L53: 48
A54: Polk | B54: Polk | C54: 3 | D54: 110 | E54: 84 | F54: 194 | G54: 0.567 | H54: 84 | I54: 110 | J54: 0.567 | K54: 169 | L54: 49
A55: Portage | B55: Portage | C55: 4 | D55: 103 | E55: 9 | F55: 112 | G55: 0.92 | H55: 0 | I55: 112 | J55: 1 | K55: 366 | L55: 50
A56: Price | B56: Price | C56: 3 | D56: 156 | E56: 172 | F56: 328 | G56: 0.476 | H56: 321 | I56: 7 | J56: 0.021 | K56: 255 | L56: 51
A57: Racine | B57: Racine | C57: 3 | D57: 148 | E57: 70 | F57: 218 | G57: 0.679 | H57: 190 | I57: 28 | J57: 0.128 | K57: 242 | L57: 52
A58: Richland | B58: Richland | C58: 1 | D58: 50 | E58: 0 | F58: 50 | G58: 1 | H58: 0 | I58: 50 | J58: 1 | K58: 32 | L58: 53
A59: Rock | B59: Rock | C59: 3 | D59: 9 | E59: 149 | F59: 158 | G59: 0.057 | H59: 158 | I59: 0 | J59: 0 | K59: 286 | L59: 54
A60: Rusk | B60: Rusk | C60: 2 | D60: 43 | E60: 13 | F60: 56 | G60: 0.768 | H60: 0 | I60: 56 | J60: 1 | K60: 39 | L60: 55
A61: Sauk | B61: Sauk | C61: 3 | D61: 67 | E61: 50 | F61: 117 | G61: 0.573 | H61: 70 | I61: 47 | J61: 0.402 | K61: 166 | L61: 56
A62: Sawyer | B62: Sawyer | C62: 1 | D62: 0 | E62: 18 | F62: 18 | G62: 0 | H62: 0 | I62: 18 | J62: 1 | K62: 23 | L62: 57
A63: Shawano | B63: Shawano | C63: 2 | D63: 111 | E63: 27 | F63: 138 | G63: 0.804 | H63: 0 | I63: 138 | J63: 1 | K63: 105 | L63: 58
A64: Sheboygan | B64: Sheboygan | C64: 2 | D64: 19 | E64: 608 | F64: 627 | G64: 0.03 | H64: 627 | I64: 0 | J64: 0 | K64: 368 | L64: 59
A65: St Croix | B65: St Croix | C65: 6 | D65: 244 | E65: 57 | F65: 301 | G65: 0.811 | H65: 96 | I65: 205 | J65: 0.681 | K65: 258 | L65: 60
A66: Taylor | B66: Taylor | C66: 1 | D66: 0 | E66: 10 | F66: 10 | G66: 0 | H66: 0 | I66: 10 | J66: 1 | K66: 101 | L66: 61
A67: Trempealeau | B67: Trempealeau | C67: 2 | D67: 112 | E67: 0 | F67: 112 | G67: 1 | H67: 0 | I67: 112 | J67: 1 | K67: 88 | L67: 62
A68: Vernon | B68: Vernon | C68: 4 | D68: 218 | E68: 22 | F68: 240 | G68: 0.908 | H68: 84 | I68: 156 | J68: 0.65 | K68: 152 | L68: 63
A69: Vilas | B69: Vilas | C69: 4 | D69: 10 | E69: 394 | F69: 404 | G69: 0.025 | H69: 364 | I69: 40 | J69: 0.099 | K69: 256 | L69: 64
A70: Walworth | B70: Walworth | C70: 1 | D70: 0 | E70: 189 | F70: 189 | G70: 0 | H70: 189 | I70: 0 | J70: 0 | K70: 165 | L70: 65
A71: Washburn | B71: Washburn | C71: 2 | D71: 47 | E71: 295 | F71: 342 | G71: 0.137 | H71: 310 | I71: 32 | J71: 0.094 | K71: 163 | L71: 66
A72: Washington | B72: Washington | C72: 3 | D72: 57 | E72: 218 | F72: 275 | G72: 0.207 | H72: 218 | I72: 57 | J72: 0.207 | K72: 269 | L72: 67
A73: Waukesha | B73: Waukesha | C73: 15 | D73: 398 | E73: 1553 | F73: 1951 | G73: 0.204 | H73: 1867 | I73: 84 | J73: 0.043 | K73: 1372 | L73: 68
A74: Waupaca | B74: Waupaca | C74: 2 | D74: 77 | E74: 0 | F74: 77 | G74: 1 | H74: 0 | I74: 77 | J74: 1 | K74: 65 | L74: 69
A75: Waushara | B75: Waushara | C75: 4 | D75: 177 | E75: 11 | F75: 188 | G75: 0.941 | H75: 0 | I75: 188 | J75: 1 | K75: 163 | L75: 70
A76: Winnebago | B76: Winnebago | C76: 7 | D76: 585 | E76: 1134 | F76: 1719 | G76: 0.34 | H76: 1590 | I76: 129 | J76: 0.075 | K76: 1160 | L76: 71
A77: Wood | B77: Wood | C77: 4 | D77: 175 | E77: 12 | F77: 187 | G77: 0.936 | H77: 0 | I77: 187 | J77: 1 | K77: 145 | L77: 72
B79: Totals: | C79: =SUM(C6:C78) -> 276 | D79: =SUM(D6:D78) -> 10842 | E79: =SUM(E6:E78) -> 17120 | F79: =SUM(F6:F78) -> 27962 | G79: =D79/F79 -> 0.387740505 | H79: =SUM(H6:H78) -> 21898 | I79: =SUM(I6:I78) -> 6064 | J79: =I79/F79 -> 0.2168657464 | K79: =SUM(K6:K78) -> 21011

Sheet 2014
B1: 2014
R2: Enter the county name in column "S" to populate QSOs & Rank
N3: Enter County | P3: Rank
B4: County | C4: Stations | D4: CW Qs | E4: Phone Qs | F4: Total Qs | G4: % CW | H4: Fixed Qs | I4: Mobile Qs | J4: % Mobile Qs | K4: Rcvd Qs | L4: Rank | P4: =IFERROR(IF(N4="","",INDEX($L$6:$L$77,MATCH(N4,$B$6:$B$77,0))),"") ->  | R4: Sequence | S4: County | T4: CW Qs | U4: PH Qs | V4: Total Qs | W4: Rcvd Qs | X4: Rank
A6: Adams | B6: Adams | C6: 2 | D6: 52 | E6: 4 | F6: 56 | G6: 0.929 | H6: 0 | I6: 56 | J6: 1 | K6: 46 | L6: 1 | R6: 1 | T6: =IF(S6="","",VLOOKUP($S6,$B$6:$L$77,3,FALSE)) ->  | U6: =IF(S6="","",VLOOKUP($S6,$B$6:$L$77,4,FALSE)) ->  | V6: =IF(S6="","",VLOOKUP($S6,$B$6:$L$77,5,FALSE)) ->  | W6: =IF(S6="","",VLOOKUP($S6,$B$6:$L$77,10,FALSE)) ->  | X6: =IF(S6="","",INDEX($L$6:$L$77,MATCH(S6,$B$6:$B$77,0))) -> 
A7: Ashland | B7: Ashland | C7: 1 | D7: 57 | E7: 0 | F7: 57 | G7: 1 | H7: 0 | I7: 57 | J7: 1 | K7: 50 | L7: 2 | R7: 2 | T7: =IF(S7="","",VLOOKUP($S7,$B$6:$L$77,3,FALSE)) ->  | X7: =IF(S7="","",INDEX($L$6:$L$77,MATCH(S7,$B$6:$B$77,0))) -> 
A8: Barron | B8: Barron | C8: 3 | D8: 125 | E8: 0 | F8: 125 | G8: 1 | H8: 0 | I8: 125 | J8: 1 | K8: 184 | L8: 3 | R8: 3
A9: Bayfield | B9: Bayfield | C9: 1 | D9: 40 | E9: 0 | F9: 40 | G9: 1 | H9: 0 | I9: 40 | J9: 1 | K9: 69 | L9: 4 | R9: 4
A10: Brown | B10: Brown | C10: 8 | D10: 212 | E10: 682 | F10: 894 | G10: 0.237 | H10: 745 | I10: 149 | J10: 0.167 | K10: 673 | L10: 5 | R10: 5
A11: Buffalo | B11: Buffalo | C11: 4 | D11: 151 | E11: 60 | F11: 211 | G11: 0.716 | H11: 55 | I11: 156 | J11: 0.739 | K11: 167 | L11: 6 | R11: 6
A12: Burnett | B12: Burnett | C12: 3 | D12: 49 | E12: 55 | F12: 104 | G12: 0.471 | H12: 55 | I12: 49 | J12: 0.471 | K12: 376 | L12: 7 | R12: 7
A13: Calumet | B13: Calumet | C13: 6 | D13: 297 | E13: 316 | F13: 613 | G13: 0.485 | H13: 566 | I13: 47 | J13: 0.077 | K13: 369 | L13: 8 | R13: 8
A14: Chippewa | B14: Chippewa | C14: 2 | D14: 159 | E14: 0 | F14: 159 | G14: 1 | H14: 0 | I14: 159 | J14: 1 | K14: 183 | L14: 9 | R14: 9
A15: Clark | B15: Clark | C15: 0 | D15: 0 | E15: 0 | F15: 0 | G15: 0 | H15: 0 | I15: 0 | J15: 0 | K15: 18 | L15: 10 | R15: 10
A16: Columbia | B16: Columbia | C16: 2 | D16: 100 | E16: 71 | F16: 171 | G16: 0.585 | H16: 115 | I16: 56 | J16: 0.327 | K16: 213 | L16: 11 | R16: 11
A17: Crawford | B17: Crawford | C17: 3 | D17: 63 | E17: 131 | F17: 194 | G17: 0.325 | H17: 125 | I17: 69 | J17: 0.356 | K17: 195 | L17: 12 | R17: 12
A18: Dane | B18: Dane | C18: 16 | D18: 1147 | E18: 1940 | F18: 3087 | G18: 0.372 | H18: 3032 | I18: 55 | J18: 0.018 | K18: 2268 | L18: 13 | R18: 13
A19: Dodge | B19: Dodge | C19: 3 | D19: 24 | E19: 348 | F19: 372 | G19: 0.065 | H19: 370 | I19: 2 | J19: 0.005 | K19: 251 | L19: 14 | R19: 14
A20: Door | B20: Door | C20: 1 | D20: 28 | E20: 0 | F20: 28 | G20: 1 | H20: 0 | I20: 28 | J20: 1 | K20: 146 | L20: 15 | R20: 15
A21: Douglas | B21: Douglas | C21: 3 | D21: 204 | E21: 258 | F21: 462 | G21: 0.442 | H21: 421 | I21: 41 | J21: 0.089 | K21: 305 | L21: 16 | R21: 16
A22: Dunn | B22: Dunn | C22: 4 | D22: 102 | E22: 108 | F22: 210 | G22: 0.486 | H22: 108 | I22: 102 | J22: 0.486 | K22: 172 | L22: 17 | R22: 17
A23: Eau Claire | B23: Eau Claire | C23: 3 | D23: 493 | E23: 557 | F23: 1050 | G23: 0.47 | H23: 1002 | I23: 48 | J23: 0.046 | K23: 770 | L23: 18 | R23: 18
A24: Florence | B24: Florence | C24: 2 | D24: 104 | E24: 0 | F24: 104 | G24: 1 | H24: 0 | I24: 104 | J24: 1 | K24: 149 | L24: 19 | R24: 19
A25: Fond du Lac | B25: Fond du Lac | C25: 16 | D25: 121 | E25: 2153 | F25: 2274 | G25: 0.053 | H25: 2245 | I25: 29 | J25: 0.013 | K25: 1509 | L25: 20 | R25: 20
A26: Forest | B26: Forest | C26: 4 | D26: 365 | E26: 129 | F26: 494 | G26: 0.739 | H26: 357 | I26: 137 | J26: 0.277 | K26: 384 | L26: 21 | R26: 21
A27: Grant | B27: Grant | C27: 6 | D27: 612 | E27: 503 | F27: 1115 | G27: 0.549 | H27: 1024 | I27: 91 | J27: 0.082 | K27: 860 | L27: 22 | R27: 22
A28: Green | B28: Green | C28: 3 | D28: 142 | E28: 8 | F28: 150 | G28: 0.947 | H28: 0 | I28: 150 | J28: 1 | K28: 275 | L28: 23 | R28: 23
A29: Green Lake | B29: Green Lake | C29: 2 | D29: 88 | E29: 2 | F29: 90 | G29: 0.978 | H29: 0 | I29: 90 | J29: 1 | K29: 79 | L29: 24 | R29: 24
A30: Iowa | B30: Iowa | C30: 3 | D30: 153 | E30: 3 | F30: 156 | G30: 0.981 | H30: 0 | I30: 156 | J30: 1 | K30: 155 | L30: 25 | R30: 25
A31: Iron | B31: Iron | C31: 2 | D31: 47 | E31: 21 | F31: 68 | G31: 0.691 | H31: 21 | I31: 47 | J31: 0.691 | K31: 54 | L31: 26 | R31: 26
A32: Jackson | B32: Jackson | C32: 1 | D32: 66 | E32: 0 | F32: 66 | G32: 1 | H32: 0 | I32: 66 | J32: 1 | K32: 53 | L32: 27 | R32: 27
A33: Jefferson | B33: Jefferson | C33: 2 | D33: 238 | E33: 0 | F33: 238 | G33: 1 | H33: 238 | I33: 0 | J33: 0 | K33: 298 | L33: 28 | R33: 28
A34: Juneau | B34: Juneau | C34: 2 | D34: 98 | E34: 4 | F34: 102 | G34: 0.961 | H34: 0 | I34: 102 | J34: 1 | K34: 134 | L34: 29 | R34: 29
A35: Kenosha | B35: Kenosha | C35: 1 | D35: 374 | E35: 374 | F35: 748 | G35: 0.5 | H35: 748 | I35: 0 | J35: 0 | K35: 453 | L35: 30 | R35: 30
A36: Kewaunee | B36: Kewaunee | C36: 3 | D36: 77 | E36: 104 | F36: 181 | G36: 0.425 | H36: 104 | I36: 77 | J36: 0.425 | K36: 288 | L36: 31
A37: La Crosse | B37: La Crosse | C37: 2 | D37: 54 | E37: 22 | F37: 76 | G37: 0.711 | H37: 22 | I37: 54 | J37: 0.711 | K37: 140 | L37: 32 | R37: Average need out of 72. A lower number is more needed overall: | X37: =(IFERROR(SUM(X6:X36)/COUNTIF(X6:X35,">0"),"")) -> 
A38: Lafayette | B38: Lafayette | C38: 5 | D38: 374 | E38: 443 | F38: 817 | G38: 0.458 | H38: 717 | I38: 100 | J38: 0.122 | K38: 363 | L38: 33
A39: Langlade | B39: Langlade | C39: 4 | D39: 142 | E39: 30 | F39: 172 | G39: 0.826 | H39: 0 | I39: 172 | J39: 1 | K39: 137 | L39: 34
A40: Lincoln | B40: Lincoln | C40: 5 | D40: 140 | E40: 40 | F40: 180 | G40: 0.778 | H40: 17 | I40: 163 | J40: 0.906 | K40: 246 | L40: 35
A41: Manitowoc | B41: Manitowoc | C41: 3 | D41: 70 | E41: 320 | F41: 390 | G41: 0.179 | H41: 320 | I41: 70 | J41: 0.179 | K41: 419 | L41: 36
A42: Marathon | B42: Marathon | C42: 6 | D42: 155 | E42: 282 | F42: 437 | G42: 0.355 | H42: 273 | I42: 164 | J42: 0.375 | K42: 448 | L42: 37
A43: Marinette | B43: Marinette | C43: 2 | D43: 97 | E43: 0 | F43: 97 | G43: 1 | H43: 0 | I43: 97 | J43: 1 | K43: 135 | L43: 38
A44: Marquette | B44: Marquette | C44: 4 | D44: 166 | E44: 317 | F44: 483 | G44: 0.344 | H44: 328 | I44: 155 | J44: 0.321 | K44: 447 | L44: 39
A45: Menominee | B45: Menominee | C45: 2 | D45: 100 | E45: 0 | F45: 100 | G45: 1 | H45: 0 | I45: 100 | J45: 1 | K45: 76 | L45: 40
A46: Milwaukee | B46: Milwaukee | C46: 14 | D46: 297 | E46: 1201 | F46: 1498 | G46: 0.198 | H46: 1498 | I46: 0 | J46: 0 | K46: 1554 | L46: 41
A47: Monroe | B47: Monroe | C47: 1 | D47: 45 | E47: 0 | F47: 45 | G47: 1 | H47: 0 | I47: 45 | J47: 1 | K47: 66 | L47: 42
A48: Oconto | B48: Oconto | C48: 4 | D48: 382 | E48: 237 | F48: 619 | G48: 0.617 | H48: 576 | I48: 43 | J48: 0.069 | K48: 429 | L48: 43
A49: Oneida | B49: Oneida | C49: 4 | D49: 120 | E49: 124 | F49: 244 | G49: 0.492 | H49: 100 | I49: 144 | J49: 0.59 | K49: 185 | L49: 44
A50: Outagamie | B50: Outagamie | C50: 7 | D50: 190 | E50: 393 | F50: 583 | G50: 0.326 | H50: 530 | I50: 53 | J50: 0.091 | K50: 621 | L50: 45
A51: Ozaukee | B51: Ozaukee | C51: 2 | D51: 12 | E51: 304 | F51: 316 | G51: 0.038 | H51: 316 | I51: 0 | J51: 0 | K51: 171 | L51: 46
A52: Pepin | B52: Pepin | C52: 4 | D52: 114 | E52: 158 | F52: 272 | G52: 0.419 | H52: 153 | I52: 119 | J52: 0.438 | K52: 182 | L52: 47
A53: Pierce | B53: Pierce | C53: 4 | D53: 95 | E53: 46 | F53: 141 | G53: 0.674 | H53: 0 | I53: 141 | J53: 1 | K53: 191 | L53: 48
A54: Polk | B54: Polk | C54: 4 | D54: 98 | E54: 45 | F54: 143 | G54: 0.685 | H54: 45 | I54: 98 | J54: 0.685 | K54: 167 | L54: 49
A55: Portage | B55: Portage | C55: 6 | D55: 500 | E55: 499 | F55: 999 | G55: 0.501 | H55: 859 | I55: 140 | J55: 0.14 | K55: 773 | L55: 50
A56: Price | B56: Price | C56: 3 | D56: 295 | E56: 159 | F56: 454 | G56: 0.65 | H56: 385 | I56: 69 | J56: 0.152 | K56: 400 | L56: 51
A57: Racine | B57: Racine | C57: 1 | D57: 95 | E57: 28 | F57: 123 | G57: 0.772 | H57: 123 | I57: 0 | J57: 0 | K57: 169 | L57: 52
A58: Richland | B58: Richland | C58: 2 | D58: 114 | E58: 3 | F58: 117 | G58: 0.974 | H58: 0 | I58: 117 | J58: 1 | K58: 100 | L58: 53
A59: Rock | B59: Rock | C59: 7 | D59: 134 | E59: 385 | F59: 519 | G59: 0.258 | H59: 443 | I59: 76 | J59: 0.146 | K59: 383 | L59: 54
A60: Rusk | B60: Rusk | C60: 3 | D60: 113 | E60: 86 | F60: 199 | G60: 0.568 | H60: 86 | I60: 113 | J60: 0.568 | K60: 213 | L60: 55
A61: Sauk | B61: Sauk | C61: 6 | D61: 262 | E61: 313 | F61: 575 | G61: 0.456 | H61: 489 | I61: 86 | J61: 0.15 | K61: 624 | L61: 56
A62: Sawyer | B62: Sawyer | C62: 1 | D62: 74 | E62: 0 | F62: 74 | G62: 1 | H62: 0 | I62: 74 | J62: 1 | K62: 105 | L62: 57
A63: Shawano | B63: Shawano | C63: 2 | D63: 140 | E63: 0 | F63: 140 | G63: 1 | H63: 0 | I63: 140 | J63: 1 | K63: 119 | L63: 58
A64: Sheboygan | B64: Sheboygan | C64: 4 | D64: 40 | E64: 906 | F64: 946 | G64: 0.042 | H64: 906 | I64: 40 | J64: 0.042 | K64: 483 | L64: 59
A65: St Croix | B65: St Croix | C65: 3 | D65: 96 | E65: 4 | F65: 100 | G65: 0.96 | H65: 0 | I65: 100 | J65: 1 | K65: 96 | L65: 60
A66: Taylor | B66: Taylor | C66: 1 | D66: 30 | E66: 0 | F66: 30 | G66: 1 | H66: 0 | I66: 30 | J66: 1 | K66: 67 | L66: 61
A67: Trempealeau | B67: Trempealeau | C67: 2 | D67: 50 | E67: 305 | F67: 355 | G67: 0.141 | H67: 305 | I67: 50 | J67: 0.141 | K67: 233 | L67: 62
A68: Vernon | B68: Vernon | C68: 6 | D68: 157 | E68: 470 | F68: 627 | G68: 0.25 | H68: 501 | I68: 126 | J68: 0.201 | K68: 367 | L68: 63
A69: Vilas | B69: Vilas | C69: 3 | D69: 49 | E69: 250 | F69: 299 | G69: 0.164 | H69: 248 | I69: 51 | J69: 0.171 | K69: 229 | L69: 64
A70: Walworth | B70: Walworth | C70: 1 | D70: 0 | E70: 392 | F70: 392 | G70: 0 | H70: 392 | I70: 0 | J70: 0 | K70: 249 | L70: 65
A71: Washburn | B71: Washburn | C71: 3 | D71: 55 | E71: 255 | F71: 310 | G71: 0.177 | H71: 258 | I71: 52 | J71: 0.168 | K71: 174 | L71: 66
A72: Washington | B72: Washington | C72: 3 | D72: 0 | E72: 330 | F72: 330 | G72: 0 | H72: 330 | I72: 0 | J72: 0 | K72: 419 | L72: 67
A73: Waukesha | B73: Waukesha | C73: 6 | D73: 95 | E73: 714 | F73: 809 | G73: 0.117 | H73: 809 | I73: 0 | J73: 0 | K73: 649 | L73: 68
A74: Waupaca | B74: Waupaca | C74: 3 | D74: 234 | E74: 408 | F74: 642 | G74: 0.364 | H74: 595 | I74: 47 | J74: 0.073 | K74: 402 | L74: 69
A75: Waushara | B75: Waushara | C75: 4 | D75: 147 | E75: 24 | F75: 171 | G75: 0.86 | H75: 0 | I75: 171 | J75: 1 | K75: 158 | L75: 70
A76: Winnebago | B76: Winnebago | C76: 8 | D76: 612 | E76: 661 | F76: 1273 | G76: 0.481 | H76: 1191 | I76: 82 | J76: 0.064 | K76: 1084 | L76: 71
A77: Wood | B77: Wood | C77: 0 | D77: 0 | E77: 0 | F77: 0 | G77: 0 | H77: 0 | I77: 0 | J77: 0 | K77: 7 | L77: 72
B79: Totals: | C79: =SUM(C6:C78) -> 267 | D79: =SUM(D6:D78) -> 11731 | E79: =SUM(E6:E78) -> 17985 | F79: =SUM(F6:F78) -> 29716 | G79: =D79/F79 -> 0.394770494 | H79: =SUM(H6:H78) -> 24146 | I79: =SUM(I6:I78) -> 5570 | J79: =I79/F79 -> 0.1874411092 | K79: =SUM(K6:K78) -> 24626

Sheet 2013
B1: 2013
R2: Enter the county name in column "S" to populate QSOs & Rank
N3: Enter County | P3: Rank
B4: County | C4: Stations | D4: CW Qs | E4: Phone Qs | F4: Total Qs | G4: % CW | H4: Fixed Qs | I4: Mobile Qs | J4: % Mobile Qs | K4: Rcvd Qs | L4: Rank | P4: =IFERROR(IF(N4="","",INDEX($L$6:$L$77,MATCH(N4,$B$6:$B$77,0))),"") ->  | R4: Sequence | S4: County | T4: CW Qs | U4: PH Qs | V4: Total Qs | W4: Rcvd Qs | X4: Rank
A6: Adams | B6: Adams | C6: 1 | D6: 41 | E6: 0 | F6: 41 | G6: 1 | H6: 0 | I6: 41 | J6: 1 | K6: 61 | L6: 1 | R6: 1 | T6: =IF(S6="","",VLOOKUP($S6,$B$6:$L$77,3,FALSE)) ->  | U6: =IF(S6="","",VLOOKUP($S6,$B$6:$L$77,4,FALSE)) ->  | V6: =IF(S6="","",VLOOKUP($S6,$B$6:$L$77,5,FALSE)) ->  | W6: =IF(S6="","",VLOOKUP($S6,$B$6:$L$77,10,FALSE)) ->  | X6: =IF(S6="","",INDEX($L$6:$L$77,MATCH(S6,$B$6:$B$77,0))) -> 
A7: Ashland | B7: Ashland | C7: 4 | D7: 79 | E7: 204 | F7: 283 | G7: 0.279 | H7: 185 | I7: 98 | J7: 0.346 | K7: 196 | L7: 2 | R7: 2 | T7: =IF(S7="","",VLOOKUP($S7,$B$6:$L$77,3,FALSE)) ->  | X7: =IF(S7="","",INDEX($L$6:$L$77,MATCH(S7,$B$6:$B$77,0))) -> 
A8: Barron | B8: Barron | C8: 5 | D8: 194 | E8: 122 | F8: 316 | G8: 0.614 | H8: 116 | I8: 200 | J8: 0.633 | K8: 287 | L8: 3 | R8: 3
A9: Bayfield | B9: Bayfield | C9: 2 | D9: 52 | E9: 11 | F9: 63 | G9: 0.825 | H9: 0 | I9: 63 | J9: 1 | K9: 46 | L9: 4 | R9: 4
A10: Brown | B10: Brown | C10: 8 | D10: 151 | E10: 1248 | F10: 1399 | G10: 0.108 | H10: 1298 | I10: 101 | J10: 0.072 | K10: 1133 | L10: 5 | R10: 5
A11: Buffalo | B11: Buffalo | C11: 3 | D11: 134 | E11: 12 | F11: 146 | G11: 0.918 | H11: 0 | I11: 146 | J11: 1 | K11: 161 | L11: 6 | R11: 6
A12: Burnett | B12: Burnett | C12: 4 | D12: 37 | E12: 69 | F12: 106 | G12: 0.349 | H12: 67 | I12: 39 | J12: 0.368 | K12: 443 | L12: 7 | R12: 7
A13: Calumet | B13: Calumet | C13: 5 | D13: 345 | E13: 73 | F13: 418 | G13: 0.825 | H13: 298 | I13: 120 | J13: 0.287 | K13: 326 | L13: 8 | R13: 8
A14: Chippewa | B14: Chippewa | C14: 4 | D14: 191 | E14: 46 | F14: 237 | G14: 0.806 | H14: 0 | I14: 237 | J14: 1 | K14: 241 | L14: 9 | R14: 9
A15: Clark | B15: Clark | C15: 3 | D15: 21 | E15: 66 | F15: 87 | G15: 0.241 | H15: 12 | I15: 75 | J15: 0.862 | K15: 64 | L15: 10 | R15: 10
A16: Columbia | B16: Columbia | C16: 3 | D16: 73 | E16: 117 | F16: 190 | G16: 0.384 | H16: 165 | I16: 25 | J16: 0.132 | K16: 164 | L16: 11 | R16: 11
A17: Crawford | B17: Crawford | C17: 0 | D17: 0 | E17: 0 | F17: 0 | G17: 0 | H17: 0 | I17: 0 | J17: 0 | K17: 0 | L17: 12 | R17: 12
A18: Dane | B18: Dane | C18: 17 | D18: 1680 | E18: 2340 | F18: 4020 | G18: 0.418 | H18: 3962 | I18: 58 | J18: 0.014 | K18: 2631 | L18: 13 | R18: 13
A19: Dodge | B19: Dodge | C19: 2 | D19: 319 | E19: 588 | F19: 907 | G19: 0.352 | H19: 907 | I19: 0 | J19: 0 | K19: 563 | L19: 14 | R19: 14
A20: Door | B20: Door | C20: 0 | D20: 0 | E20: 0 | F20: 0 | G20: 0 | H20: 0 | I20: 0 | J20: 0 | K20: 159 | L20: 15 | R20: 15
A21: Douglas | B21: Douglas | C21: 2 | D21: 187 | E21: 10 | F21: 197 | G21: 0.949 | H21: 172 | I21: 25 | J21: 0.127 | K21: 192 | L21: 16 | R21: 16
A22: Dunn | B22: Dunn | C22: 5 | D22: 171 | E22: 17 | F22: 188 | G22: 0.91 | H22: 0 | I22: 188 | J22: 1 | K22: 158 | L22: 17 | R22: 17
A23: Eau Claire | B23: Eau Claire | C23: 5 | D23: 1070 | E23: 1028 | F23: 2098 | G23: 0.51 | H23: 1967 | I23: 131 | J23: 0.062 | K23: 1163 | L23: 18 | R23: 18
A24: Florence | B24: Florence | C24: 1 | D24: 56 | E24: 12 | F24: 68 | G24: 0.824 | H24: 0 | I24: 68 | J24: 1 | K24: 109 | L24: 19 | R24: 19
A25: Fond du Lac | B25: Fond du Lac | C25: 16 | D25: 416 | E25: 1992 | F25: 2408 | G25: 0.173 | H25: 2330 | I25: 78 | J25: 0.032 | K25: 1340 | L25: 20 | R25: 20
A26: Forest | B26: Forest | C26: 1 | D26: 77 | E26: 1 | F26: 78 | G26: 0.987 | H26: 0 | I26: 78 | J26: 1 | K26: 54 | L26: 21 | R26: 21
A27: Grant | B27: Grant | C27: 5 | D27: 679 | E27: 457 | F27: 1136 | G27: 0.598 | H27: 1116 | I27: 20 | J27: 0.018 | K27: 805 | L27: 22 | R27: 22
A28: Green | B28: Green | C28: 2 | D28: 0 | E28: 695 | F28: 695 | G28: 0 | H28: 695 | I28: 0 | J28: 0 | K28: 417 | L28: 23 | R28: 23
A29: Green Lake | B29: Green Lake | C29: 4 | D29: 151 | E29: 404 | F29: 555 | G29: 0.272 | H29: 443 | I29: 112 | J29: 0.202 | K29: 364 | L29: 24 | R29: 24
A30: Iowa | B30: Iowa | C30: 1 | D30: 53 | E30: 2 | F30: 55 | G30: 0.964 | H30: 0 | I30: 55 | J30: 1 | K30: 43 | L30: 25 | R30: 25
A31: Iron | B31: Iron | C31: 3 | D31: 45 | E31: 590 | F31: 635 | G31: 0.071 | H31: 571 | I31: 64 | J31: 0.101 | K31: 293 | L31: 26 | R31: 26
A32: Jackson | B32: Jackson | C32: 2 | D32: 147 | E32: 0 | F32: 147 | G32: 1 | H32: 0 | I32: 147 | J32: 1 | K32: 113 | L32: 27 | R32: 27
A33: Jefferson | B33: Jefferson | C33: 2 | D33: 235 | E33: 36 | F33: 271 | G33: 0.867 | H33: 271 | I33: 0 | J33: 0 | K33: 322 | L33: 28 | R33: 28
A34: Juneau | B34: Juneau | C34: 2 | D34: 26 | E34: 60 | F34: 86 | G34: 0.302 | H34: 0 | I34: 86 | J34: 1 | K34: 45 | L34: 29 | R34: 29
A35: Kenosha | B35: Kenosha | C35: 2 | D35: 0 | E35: 428 | F35: 428 | G35: 0 | H35: 428 | I35: 0 | J35: 0 | K35: 213 | L35: 30 | R35: 30
A36: Kewaunee | B36: Kewaunee | C36: 2 | D36: 0 | E36: 307 | F36: 307 | G36: 0 | H36: 307 | I36: 0 | J36: 0 | K36: 273 | L36: 31
A37: La Crosse | B37: La Crosse | C37: 6 | D37: 124 | E37: 301 | F37: 425 | G37: 0.292 | H37: 300 | I37: 125 | J37: 0.294 | K37: 425 | L37: 32 | R37: Average need out of 72. A lower number is more needed overall: | X37: =(IFERROR(SUM(X6:X36)/COUNTIF(X6:X35,">0"),"")) -> 
A38: Lafayette | B38: Lafayette | C38: 5 | D38: 373 | E38: 194 | F38: 567 | G38: 0.658 | H38: 541 | I38: 26 | J38: 0.046 | K38: 381 | L38: 33
A39: Langlade | B39: Langlade | C39: 1 | D39: 129 | E39: 0 | F39: 129 | G39: 1 | H39: 0 | I39: 129 | J39: 1 | K39: 95 | L39: 34
A40: Lincoln | B40: Lincoln | C40: 4 | D40: 137 | E40: 84 | F40: 221 | G40: 0.62 | H40: 0 | I40: 221 | J40: 1 | K40: 158 | L40: 35
A41: Manitowoc | B41: Manitowoc | C41: 6 | D41: 139 | E41: 691 | F41: 830 | G41: 0.167 | H41: 682 | I41: 148 | J41: 0.178 | K41: 622 | L41: 36
A42: Marathon | B42: Marathon | C42: 6 | D42: 74 | E42: 627 | F42: 701 | G42: 0.106 | H42: 561 | I42: 140 | J42: 0.2 | K42: 552 | L42: 37
A43: Marinette | B43: Marinette | C43: 1 | D43: 281 | E43: 107 | F43: 388 | G43: 0.724 | H43: 388 | I43: 0 | J43: 0 | K43: 370 | L43: 38
A44: Marquette | B44: Marquette | C44: 3 | D44: 109 | E44: 33 | F44: 142 | G44: 0.768 | H44: 0 | I44: 142 | J44: 1 | K44: 177 | L44: 39
A45: Menominee | B45: Menominee | C45: 1 | D45: 100 | E45: 1 | F45: 101 | G45: 0.99 | H45: 0 | I45: 101 | J45: 1 | K45: 74 | L45: 40
A46: Milwaukee | B46: Milwaukee | C46: 17 | D46: 1071 | E46: 2477 | F46: 3548 | G46: 0.302 | H46: 3515 | I46: 33 | J46: 0.009 | K46: 2448 | L46: 41
A47: Monroe | B47: Monroe | C47: 2 | D47: 49 | E47: 24 | F47: 73 | G47: 0.671 | H47: 0 | I47: 73 | J47: 1 | K47: 49 | L47: 42
A48: Oconto | B48: Oconto | C48: 1 | D48: 339 | E48: 0 | F48: 339 | G48: 1 | H48: 339 | I48: 0 | J48: 0 | K48: 279 | L48: 43
A49: Oneida | B49: Oneida | C49: 4 | D49: 139 | E49: 204 | F49: 343 | G49: 0.405 | H49: 146 | I49: 197 | J49: 0.574 | K49: 350 | L49: 44
A50: Outagamie | B50: Outagamie | C50: 6 | D50: 53 | E50: 444 | F50: 497 | G50: 0.107 | H50: 454 | I50: 43 | J50: 0.087 | K50: 507 | L50: 45
A51: Ozaukee | B51: Ozaukee | C51: 2 | D51: 59 | E51: 47 | F51: 106 | G51: 0.557 | H51: 46 | I51: 60 | J51: 0.566 | K51: 177 | L51: 46
A52: Pepin | B52: Pepin | C52: 4 | D52: 87 | E52: 223 | F52: 310 | G52: 0.281 | H52: 211 | I52: 99 | J52: 0.319 | K52: 287 | L52: 47
A53: Pierce | B53: Pierce | C53: 4 | D53: 66 | E53: 100 | F53: 166 | G53: 0.398 | H53: 100 | I53: 66 | J53: 0.398 | K53: 158 | L53: 48
A54: Polk | B54: Polk | C54: 4 | D54: 162 | E54: 97 | F54: 259 | G54: 0.625 | H54: 97 | I54: 162 | J54: 0.625 | K54: 243 | L54: 49
A55: Portage | B55: Portage | C55: 4 | D55: 440 | E55: 408 | F55: 848 | G55: 0.519 | H55: 736 | I55: 112 | J55: 0.132 | K55: 591 | L55: 50
A56: Price | B56: Price | C56: 2 | D56: 93 | E56: 13 | F56: 106 | G56: 0.877 | H56: 0 | I56: 106 | J56: 1 | K56: 355 | L56: 51
A57: Racine | B57: Racine | C57: 1 | D57: 74 | E57: 227 | F57: 301 | G57: 0.246 | H57: 301 | I57: 0 | J57: 0 | K57: 261 | L57: 52
A58: Richland | B58: Richland | C58: 0 | D58: 0 | E58: 0 | F58: 0 | G58: 0 | H58: 0 | I58: 0 | J58: 0 | K58: 0 | L58: 53
A59: Rock | B59: Rock | C59: 4 | D59: 355 | E59: 821 | F59: 1176 | G59: 0.302 | H59: 1176 | I59: 0 | J59: 0 | K59: 648 | L59: 54
A60: Rusk | B60: Rusk | C60: 4 | D60: 192 | E60: 48 | F60: 240 | G60: 0.8 | H60: 40 | I60: 200 | J60: 0.833 | K60: 168 | L60: 55
A61: Sauk | B61: Sauk | C61: 3 | D61: 55 | E61: 85 | F61: 140 | G61: 0.393 | H61: 44 | I61: 96 | J61: 0.686 | K61: 141 | L61: 56
A62: Sawyer | B62: Sawyer | C62: 3 | D62: 166 | E62: 13 | F62: 179 | G62: 0.927 | H62: 0 | I62: 179 | J62: 1 | K62: 174 | L62: 57
A63: Shawano | B63: Shawano | C63: 1 | D63: 113 | E63: 0 | F63: 113 | G63: 1 | H63: 0 | I63: 113 | J63: 1 | K63: 90 | L63: 58
A64: Sheboygan | B64: Sheboygan | C64: 5 | D64: 396 | E64: 285 | F64: 681 | G64: 0.581 | H64: 614 | I64: 67 | J64: 0.098 | K64: 674 | L64: 59
A65: St Croix | B65: St Croix | C65: 4 | D65: 393 | E65: 98 | F65: 491 | G65: 0.8 | H65: 324 | I65: 167 | J65: 0.34 | K65: 423 | L65: 60
A66: Taylor | B66: Taylor | C66: 3 | D66: 70 | E66: 58 | F66: 128 | G66: 0.547 | H66: 0 | I66: 128 | J66: 1 | K66: 187 | L66: 61
A67: Trempealeau | B67: Trempealeau | C67: 2 | D67: 69 | E67: 12 | F67: 81 | G67: 0.852 | H67: 0 | I67: 81 | J67: 1 | K67: 131 | L67: 62
A68: Vernon | B68: Vernon | C68: 4 | D68: 58 | E68: 456 | F68: 514 | G68: 0.113 | H68: 473 | I68: 41 | J68: 0.08 | K68: 299 | L68: 63
A69: Vilas | B69: Vilas | C69: 3 | D69: 153 | E69: 25 | F69: 178 | G69: 0.86 | H69: 0 | I69: 178 | J69: 1 | K69: 131 | L69: 64
A70: Walworth | B70: Walworth | C70: 1 | D70: 0 | E70: 369 | F70: 369 | G70: 0 | H70: 369 | I70: 0 | J70: 0 | K70: 222 | L70: 65
A71: Washburn | B71: Washburn | C71: 3 | D71: 68 | E71: 13 | F71: 81 | G71: 0.84 | H71: 0 | I71: 81 | J71: 1 | K71: 103 | L71: 66
A72: Washington | B72: Washington | C72: 4 | D72: 10 | E72: 463 | F72: 473 | G72: 0.021 | H72: 473 | I72: 0 | J72: 0 | K72: 409 | L72: 67
A73: Waukesha | B73: Waukesha | C73: 10 | D73: 738 | E73: 1378 | F73: 2116 | G73: 0.349 | H73: 2116 | I73: 0 | J73: 0 | K73: 1539 | L73: 68
A74: Waupaca | B74: Waupaca | C74: 4 | D74: 268 | E74: 156 | F74: 424 | G74: 0.632 | H74: 312 | I74: 112 | J74: 0.264 | K74: 320 | L74: 69
A75: Waushara | B75: Waushara | C75: 2 | D75: 69 | E75: 49 | F75: 118 | G75: 0.585 | H75: 0 | I75: 118 | J75: 1 | K75: 132 | L75: 70
A76: Winnebago | B76: Winnebago | C76: 5 | D76: 421 | E76: 727 | F76: 1148 | G76: 0.367 | H76: 1071 | I76: 77 | J76: 0.067 | K76: 941 | L76: 71
A77: Wood | B77: Wood | C77: 1 | D77: 7 | E77: 0 | F77: 7 | G77: 1 | H77: 7 | I77: 0 | J77: 0 | K77: 75 | L77: 72
B79: Totals: | C79: =SUM(C6:C78) -> 266 | D79: =SUM(D6:D78) -> 14329 | E79: =SUM(E6:E78) -> 22293 | F79: =SUM(F6:F78) -> 36622 | G79: =D79/F79 -> 0.3912675441 | H79: =SUM(H6:H78) -> 30746 | I79: =SUM(I6:I78) -> 5876 | J79: =I79/F79 -> 0.1604500027 | K79: =SUM(K6:K78) -> 27745

Sheet Notes
B1: NOTES:
B2: Click the blue Sort buttons at the top of any column to arrange the information from smallest to largest values. The sorted
B3: column header will highlight in yellow to indicate which sort was last applied.
B5: Except for the last column, all counts are the transmitted counts from all logs submitted. The last column is the received
B6: QSO count from each county. The difference reflects the fact that many stations do not submit logs. If everyone submitted
B7: a log, the transmitted counts and received counts would be equal.
B9: The All Years worksheet is a composite of all the individual worksheets. It gives an idea of the action in each county over multiple years.
B11: This workbook (Rev 2) was created by Robert Chudek - K0RC on 5-Feb-2024
C13: INSTRUCTIONS:
C14: 1) The BLUE buttons at the top of columns B through K will sort the table from smallest to largest values in the selected column
C15: 2) The sorted column header will highlight in YELLOW to identify the most recent sort
C16: 3) The sorts allow you to compare which counties were less represented on CW, Phone, Total Qs, or other columns
C17: 4) Enter a county name in cell N4 (or use the picklist) to quickly reveal its rank within the 72 counties (within the current sort you selected)
C18: 5) A lower ranking number indicates a more rare county, i.e. the sort is most rare to most popular (top to bottom)
C19: 6) Column S can be used to compare the "rarity" among different counties. Enter a few county names to reveal their relative rarity
C20: 7) The rarity comparison will depend upon the column sort that was chosen with the BLUE sort buttons
C21: 8) This allows you to quickly compare CW vs Phone modes or other criteria of your choosing
C22: 9) All of the above functions work the same for the individual years as well as the "All Years" worksheets
C23: 10) On the "All Years" worksheet Tylor and Door counties have been pre-entered in cell N4 to show they rank 1st and 3rd in "rarity"
C24: 11) On the "All Years" worksheet Grant has been pre-entered in column S and shows it ranks 66th out of 72 indicating it is not very rare
C25: 12) You can sort on the CW or Phone columns and you will see their ranking changes in comparison to the Total Qs sort
C26: 13) You can perform this same function on the individual years too. This will show the variation in what is rare from year to year
C27: 14) This ranking will change, depending whether you sort on the CW, Phone, Totas Qs or other colums
